{"text_format":"1","workbook":"xlsx","n_sheets":14,"sheets":["Budget Sheet Instructions","Demographics","PA1","PA2","PA3","PA4","PA5","PA6","PA7","PA8","PA9","PA10","Budget Summary","Reference Data"],"not_rendered":{"charts":0,"images":2,"macros":1,"external_links":0,"defined_names":247,"comments":10,"pivot_tables":0},"unopened":[],"bounds":{"document_bytes":16777216,"sheet_cells":100000,"rows_first":2000,"rows_last":500,"rows_between":2000,"halvings":0,"cell_chars":16384,"cell_head_chars":4096},"cells_cut":0,"cells_raw":0,"read":"whole","date_system":"1900"}

{"sheet":"Budget Sheet Instructions","index":0,"n_rows":33,"n_cols":11,"rows_kept":33,"cut":false,"hidden":false,"merged":[[32,1,32,10],[30,1,30,10],[31,1,31,10],[29,1,29,10],[23,0,23,10],[28,1,28,10],[27,1,27,10],[24,1,24,10],[25,1,25,10],[26,1,26,10],[0,0,0,10],[1,0,1,10],[5,0,5,10],[2,0,2,10],[6,0,6,10],[3,6,3,10],[3,0,3,4],[7,0,8,10],[22,1,22,8],[9,0,9,10],[4,0,4,10],[13,1,13,8],[14,1,14,8],[16,1,16,8],[19,1,19,8],[20,1,20,8],[17,1,17,8],[18,1,18,8],[15,1,15,8],[11,1,11,8],[12,1,12,8],[21,1,21,8]]}
["CTAS Budget Detail Worksheet FY24"]
["Worksheet Instructions"]
["Note: This document requires macros be enabled to work properly. Please ensure that macros are enabled before entering any data. You may be able to enable macros by choosing the \"Enable this content\" option from the Security Warning Ribbon above. \n\n\n\n\n\nIf the ribbon is not visible you may have been prompted to enable macros when you opened he document as pictured here. If you elected to disable macros, "]
[null,null,null,null,null,null," please close the document and reopen it with macros enabled. "]
["Purpose:"]
["The Budget Detail Worksheet is provided for your use in the preparation of the budget and budget narrative. All required information (including the budget narrative) must be provided. Funds may not be budgeted in the shaded categories under each purpose area. Indicate any non-federal (matching) amount in the appropriate category, if applicable."]
["How to use this Workbook:"]
["This workbook has been made available to CTAS applicants so that they can provide budgetary information for each Purpose Area they are applying for.  It is a required document and must be completed and uploaded to the JustGrants system as an attachment to your application. The workbook includes three different worksheets. The first worksheet (this one) is an instruction sheet; the second worksheet includes the Purpose Area specific budget detail worksheet and narrative and each must be filled out if the applicant is applying for that specific Purpose Area. If an application is not being submitted for a particular Purpose Area, no action on the budget worksheet is required. The last worksheet is a Budget Summary. It compiles all of the relevant budget information for all Purpose Areas into a single location and should be reviewed for correctness before the workbook is uploaded to the JustGrants application. \nStep by Step Usage:\n1. Please read and print this instruction page. It can be used as a reference while completing the rest of the document.\n2. A purpose area index for this workbook has been created for your convenience. Clicking on the link for each Purpose Area will take you directly to that tab in this document.\n3. Complete this document by selecting the relevant Purpose Area tabs for which funds are being requested and entering the budget detail information in the boxes.\n4. None of the purpose areas in this solicitation require a non-federal contribution.  However, if a successful application proposes a voluntary match amount, and DOJ approves the budget, the total match amount incorporated into the approved budget becomes mandatory and subject to audit.\n5. A budget narrative section is provided to you for each category within the worksheet.  This is where your justification and/or linkages to the program narrative may be entered.\n6. A Budget Summary is automatically calculated for you on the last worksheet.  Note:  Any errors detected on this page should be fixed on the Purpose Area specific tab.\n\nContact Information\n\nTechnical Assistance: For technical assistance with submitting the full application  in JustGrants, contact the JustGrants Service Desk at JustGrants.Support@usdoj.gov or 833-872-5175. The JustGrants Service Desk operates 7 a.m. to 9 p.m. eastern time (ET) Monday to Friday, and 9 a.m. to 5 p.m. ET on Saturday, Sunday, and federal holidays. \n\nProgrammatic Assistance: For programmatic and general assistance with the requirements of this solicitation, contact the DOJ Response Center at 1–800–421–6770 or by e-mail at tribalgrants@usdoj.gov. The DOJ Response Center’s hours of operation are Monday–Friday (except U.S. federal government holidays) from 9:00 a.m. to 5:00 p.m. Eastern Time. The DOJ Response Center will remain open on the solicitation closing date until 8:59 p.m. Eastern Time."]
[]
["Purpose Area Index:"]
["PA (#)","Name",null,null,null,null,null,null,null,"Program Office","CFDA #"]
["Demographics Form","CTAS Demographic Form"]
[1,"Public Safety and Community Policing ",null,null,null,null,null,null,null,"COPS","16.710"]
[2,"Comprehensive Tribal Justice Systems Strategic Planning",null,null,null,null,null,null,null,"BJA","16.608"]
[3,"Justice Systems and Alcohol and Substance Abuse",null,null,null,null,null,null,null,"BJA","16.608"]
[4,"Tribal Justice System Infrastructure Program",null,null,null,null,null,null,null,"BJA","16.596"]
[5,"Office on Violence Against Women Tribal Governments Program",null,null,null,null,null,null,null,"OVW","16.587"]
[6,"Children’s Justice Act Partnerships for Indian Communities",null,null,null,null,null,null,null,"OVC","16.853"]
[7,"Tribal Victim Services Program",null,null,null,null,null,null,null,"OVC","16.841"]
[8,"Tribal Juvenile Healing To Wellness Courts",null,null,null,null,null,null,null,"OJJDP","16.585"]
[9,"Tribal Youth Program",null,null,null,null,null,null,null,"OJJDP","16.731"]
[10,"Addressing Violent Crime in Tribal Communities",null,null,null,null,null,null,null,"BJA","16.738"]
[null,"Budget Summary"]
["Budget Category Descriptions:"]
["Personnel","List each position by title and name of employee, if available. Show the annual salary rate and the percentage of time to be devoted to the project. Compensation paid for employees engaged in grant activities must be consistent with that paid for similar work within the applicant organization. In the budget narrative, include a description of the responsibilities and duties of each position in relationship to fulfilling the project goals and objectives. All requested information must be included in the budget detail worksheet and budget narrative.\n\nFor Purpose Area 1 applicants, the budget worksheet will assist your law enforcement agency in reporting your agency’s current entry-level salary and benefits and identifying the total salary and benefits request per officer position for the length of the grant term. List the current entry-level base salary and fringe benefits rounded to the nearest whole dollar for one full-time sworn officer position within your agency. When determining the fringe benefit costs in section B, do not include the employee contributions. List only the portion of each fringe benefit that will be contributed by the agency. The Personnel section will consist of the gross salary of the entry-level officer (or Meth/Opioid Coordinator), plus the agency portion of fringe benefit contributions.\n"]
["Fringe Benefits","Fringe benefits (e.g. Social Security, Worker’s Compensation, Health Insurance etc.) should be based on actual known costs or an approved negotiated rate by a Federal agency. If not based on an approved negotiated rate, list the composition of the fringe benefit package. Fringe benefits are for the personnel listed in the budget category (A) and only for the percentage of time devoted to the project. All requested information must be included in the budget detail worksheet and budget narrative.\n\nFor Purpose Area 1 applicants: For agencies that do not include fringe benefits as part of the base salary costs and typically calculate these separately, the allowable fringe benefits may be included in Section B of the Budget Detail Worksheet. Any fringe benefits that are already included as part of the agency’s base salary (within Section A of the Budget Detail Worksheet) should not be listed as a duplicative requested line item (within Section B of the Budget Detail Worksheet)."]
["Travel","Itemize travel expenses of staff personnel (e.g. staff to training, field interviews, advisory group meeting, etc.). Describe the purpose of each travel expenditure in reference to the project objectives. Show the basis of computation (e.g., six people to 3-day training at $X airfare, $X lodging, $X subsistence). In training projects, travel and meals for trainees should be listed separately. Show the number of trainees and the unit costs involved. Identify the location of travel, if known; or if unknown, indicate \"location to be determined.\" Indicate whether applicant's formal written travel policy or the Federal Travel Regulations are followed. Note: Travel expenses for consultants should be included in the “Consultant Travel” data fields under the “Subawards (Subgrants)/Procurement Contracts” category. For each Purpose Area applied for, the budget should include the specific travel expenses outlined in the Purpose Area Travel section of the solicitation. All requested information must be included in the budget detail worksheet and budget narrative. "]
["Equipment","List non-expendable items that are to be purchased (Note: Organization's own capitalization policy for classification of equipment should be used). Expendable items should be included in the \"Supplies\" category. Applicants should analyze the cost benefits of purchasing versus leasing equipment, especially high cost items and those subject to rapid technological advances. Rented or leased equipment costs should be listed in the “Contracts” data fields under the “Subawards (Subgrants)/Procurement Contracts\" category. In the budget narrative, explain how the equipment is necessary for the success of the project, and describe the procurement method to be used. All requested information must be included in the budget detail worksheet and budget narrative."]
["Supplies","List items by type (office supplies, postage, training materials, copy paper, and expendable equipment items costing less than $5,000, such as books, hand held tape recorders) and show the basis for computation. Generally, supplies include any materials that are expendable or consumed during the course of the project. All requested information must be included in the budget detail worksheet and budget narrative."]
["Construction","Provide a description of the construction project and an estimate of the costs.  Construction costs are only allowed for Purpose Area #4.  Minor repairs or renovations may be allowable in other Purpose Areas and should be classified in the “Other” category.  Consult with the program office before budgeting funds in this category.  All requested information must be included in the budget detail worksheet and  budget narrative. "]
["Subawards (Subgrants) / Procurement Contracts","Procurement contracts (see “Contract” definition at 2 CFR 200.317 through 2 CFR 200.326): Provide a description of the product or service to be procured by contract and an estimate of the cost.  Indicate whether the applicant’s formal, written Procurement Policy or the Federal Acquisition Regulation is followed.  Applicants are encouraged to promote free and open competition in awarding procurement contracts.  A separate justification must be provided for sole source procurements in excess of the Simplified Acquisition Threshold set in accordance with 41 U.S.C. 1908 (currently set at $250,000).\n\nConsultant Fees:  For each consultant enter the name, if known, service to be provided, hourly or daily fee (8-hour day), and estimated time on the project.  Consultant fees in excess of the DOJ grant-making component’s maximum rate for an 8-hour day (currently $650) require additional justification and prior approval from the respective DOJ grant-making component.  All requested information must be included in the budget detail worksheet and budget narrative.\n\nSubawards (see “Subaward” definition at 2 CFR 200.92):  Provide a description of the Federal award activities proposed to be carried out by any subrecipient and an estimate of the cost (include the cost per subrecipient, to the extent known prior to application submission).  For each subrecipient, enter the subrecipient entity name, if known.  Please indicate any subaward information included under budget category G. Subawards (Subgrants)/Procurement Contracts by including the label “(subaward)” with each subaward entry."]
["Other Costs","List items (e.g., rent, reproduction, telephone, janitorial or security services, and investigative or confidential funds) by type and the basis of the computation. For example, provide the square footage and the cost per square foot for rent, or provide a monthly rental cost and how many months to rent. All requested information must be included in the budget detail worksheet and budget narrative."]
["Indirect Costs","Funding requests for indirect costs are only allowable if the applicant has a current federally approved indirect cost rate. \nIf the rate agreement is current at the time of application, attach a copy of the fully-executed and approved Indirect Cost Negotiation Agreement to the application. \nIf the rate agreement is expired at the time of application, then the applicant should be able to demonstrate that negotiations with the Interior Business Center for a current rate are in progress. Attach a copy of the expired fully-executed and approved Indirect Cost Negotiation Agreement to the application, and the approved amount of indirect cost will be calculated and placed on hold until a current fully-executed and approved Indirect Cost Negotiation Agreement is submitted to the awarding agency.\nApplicants that do not have an approved rate may request one through the Interior Business Center, which will review all documentation and approve a rate for the applicant organization, or, if the applicant’s accounting system permits, costs may be allocated in the direct cost categories. (Applicant Indian tribal governments, in particular, should review Appendix VII to Part 200—States and Local Government and Indian Tribe Indirect Cost Proposals regarding submission and documentation of indirect cost proposals.) \nNon-Federal entities that have never received a federally-approved indirect cost rate may elect to charge a de minimis rate of 10% of modified total direct costs (MTDC), as described in 2 C.F.R. 200.414(f), which may be used indefinitely. (See paragraph D.1.b. in Appendix VII to Part 200—States and Local Government and Indian Tribe Indirect Cost Proposals for a description of entities that may not be eligible to elect to use the “de minimis” rate.)   In order to use the “de minimis” indirect rate an applicant would need to attach written documentation to the application that advises DOJ of both the applicant’s eligibility (to use the “de minimis” rate) and its election. If the applicant elects the de minimis method, costs must be consistently charged as either indirect or direct costs, but may not be double charged or inconsistently charged as both. In addition, if this method is chosen then it must be used consistently for all federal awards until such time as the applicant entity chooses to negotiate a federally approved indirect cost rate.\nAs a condition of the fully-executed and approved Indirect Cost Negotiation Agreement, the applicant must apply the approved rate to the appropriate distribution base as listed in Section I: “Rate”, of the Agreement. It is suggested that the applicant use the narrative portion of the Indirect Costs category on the budget detail worksheet to provide details regarding the applicant’s level of capitalization for equipment, show composition of base amount, and also provide a list of requested budget items that will be applied to the indirect cost distribution base.\n"]

{"sheet":"Demographics","index":1,"n_rows":101,"n_cols":8,"rows_kept":101,"cut":false,"hidden":true,"merged":[[34,6,34,8],[35,2,35,5],[35,6,35,8],[58,1,58,8],[59,2,59,8],[37,1,37,8],[38,0,44,1],[38,2,44,8],[49,1,49,8],[30,2,30,5],[30,6,30,8],[31,2,31,5],[31,6,31,8],[32,2,32,5],[32,6,32,8],[25,1,25,8],[27,2,27,8],[28,2,28,5],[28,6,28,8],[29,2,29,5],[29,6,29,8],[15,7,15,8],[17,1,18,5],[15,1,16,5],[17,7,17,8],[24,0,24,3],[19,7,19,8],[19,1,20,5],[21,1,22,5],[21,7,21,8],[0,0,0,9],[2,0,2,3],[5,1,5,8],[6,3,6,8],[1,0,1,9],[3,1,3,4],[3,7,3,8],[4,2,4,5],[100,2,100,6],[100,7,100,8],[89,1,89,8],[90,3,90,4],[91,3,91,4],[91,5,91,6],[91,7,91,8],[93,2,94,6],[94,7,94,8],[96,2,96,6],[96,7,96,8],[98,2,98,6],[98,7,98,8],[76,7,76,8],[33,2,33,5],[33,6,33,8],[34,2,34,5],[50,1,50,8],[46,1,46,8],[66,1,66,8],[67,2,67,8],[68,3,68,4],[70,1,70,8],[72,5,72,6],[72,7,72,8],[72,3,72,4],[68,5,68,6],[68,7,68,8],[60,5,60,8],[8,1,8,6],[55,5,55,8],[74,1,74,8],[75,3,75,4],[87,7,87,8],[81,7,81,8],[83,2,83,6],[81,2,81,6],[83,7,83,8],[85,2,85,6],[85,7,85,8],[87,1,87,6],[78,2,79,6],[79,7,79,8],[76,3,76,4],[76,5,76,6],[9,5,9,8],[11,3,11,4],[11,5,11,8],[13,3,13,4],[13,5,13,8],[63,2,63,8],[62,1,62,8],[64,3,64,4],[64,5,64,6],[64,7,64,8]]}
["Demographic Form"]
["The Demographic Form collects important demographic information that pertains to Purpose Area 1 and only applicants applying for Purpose Area 1 should complete the demographic form."]
["I. Tribe Information"]
[null,"1. Please enter your SAM Registration Date: ",null,null,null,null,null,"MM/DD/YYYY"]
[null,null,"Note: Contact the SAM Service Desk at 866-606-8220 or view/update your registration information at http://www.sam.gov"]
[null,"2. The name of each federally-recognized Indian Tribe that will be served by the proposed project(s):"]
[null,"Name(s)",null,"The name(s) of your tribe and represented tribes. "]
[]
[null,"2b. Please enter current Government Executive Information Including:"]
[null,null,null,null,"Name:"]
[]
[null,null,null,"E-Mail Address:"]
[]
[null,null,null,"Phone Number:"]
[]
[null,"3. What is the Tribe's current enrollment, including members living both on and off the reservation?"]
[]
[null,"4. What is the Tribe’s juvenile population (0 – 17 years old) living on reservation?"]
[]
[null,"5. What is the current local population base?"]
[]
[null,"6. Please enter the approximate square mileage of the reservation/jurisdiction to be served: (sq. miles)"]
[]
[]
["II. Property/Violent Crime"]
[null,"Using the most recent available data and to the best of your ability using the UCR crime definitions, enter the actual number of incidents reported to your Tribe for the following crime types. Note that only those incidents for which your Tribe had primary response authority should be provided."]
[]
[null,null,"UCR Data *"]
[null,null,"Year"]
[null,null,"Criminal Homicide"]
[null,null,"Forcible Rape"]
[null,null,"Robbery"]
[null,null,"Aggravated Assault"]
[null,null,"Burglary"]
[null,null,"Larceny (except motor vehicle theft)"]
[null,null,"Motor Vehicle Theft"]
[]
[null,"*Note: If your Tribe is not using UCR data or reports to NIBRS, please explain the source or methods used to report your crime data. If you do not report crime incidents at all please explain why you are unable to provide such data. If instructions are needed on converting your data to UCR Summary Data style please view the COPS Application Guide of the FBI's UCR Handbook (www.fbi.gov/ucr/handbook/ucrhandbook04.pdf) for more information."]
[]
[]
[]
[]
[]
[]
[]
[]
[null,"The FBI is retiring the current Summary Reporting System (SRS) and will transition to an all-NIBRS data collection system within the next five years. The transition to NIBRS will provide a more complete and accurate picture of crime at the tribal, national, state, and local level. As of 2021, the FBI will no longer collect summary data and will only accept data in the NIBRS format and COPS Office awards will be based on submitted NIBRS data. Transitioning all law enforcement agencies to NIBRS is the first step in gathering more comprehensive crime data. Tribal, state, and local COPS grantees are encouraged to expedite the transition to NIBRS in their jurisdictions so that they will remain eligible to receive COPS Office awards."]
[]
["III. Tribal Law Enforcement Information"]
[null,"Please answer the following questions. NOTE: If you choose \"none\" for question 1 you are finished completing this section and do not need to answer 1a or 1b."]
[null,"1. What law enforcement agency or departments does your Tribe operate? (check all that apply):"]
[]
[]
[]
[]
[]
[]
[]
[null,"a. What is the actual population your department serves as the primary law enforcement agency entity?"]
[null,null,"This may or may not be the same as the population reported in the U.S. Census, the Tribe's current enrollment or the local population base. A Tribe with primary law enforcement authority is defined as having first responder responsibility to calls for service for all types of criminal incidents within its jurisdiction."]
[]
[]
[null,"b. Enter the Fiscal Year Budgeted Sworn Force Strength for the current fiscal year below:"]
[null,null,"The budgeted number of sworn officer positions is the number of sworn positions funded in your agency's budget, including funded but frozen postions, as well as state, Bureau of Indian Affairs, and/or locally funded vacancies. Do not include unfunded vacancies or unpaid/reserve officers."]
[null,null,"Full-Time:",null,null,"Part-Time:"]
[]
[null,"c. Enter the current Fiscal Year Actual Sworn Force Strength as of the date of this application:"]
[null,null,"The actual number of sworn officer positions is the actual number of sworn positions employed by your Tribe as of the date of this application. Do not include funded but currently vacant positions or unpaid positions. NOTE: For Tribes with multiple component law enforcement departments (e.g. Department of Public Safety and Fish and Wildlife Department), please report cumulative, full- and part-time sworn-force strength number for all law enforcement departments in your Tribe which would receive funding through this request if awarded."]
[null,null,"Full-Time:",null,null,"Part-Time:"]
[]
[null,"2. Using the most recent available data enter the total number of annual calls for service (e.g., 911 calls, non-emergency calls, alarm, other source, self dispatched, or self initiated) received and dispatched by your tribal law enforcement agency."]
[]
[null,null,"Year:",null,null,"Calls for Service:"]
[]
[null,"3. On average how many hours of IN-SERVICE (non-recruit) training (e.g. FTO, continuing professional education, roll call, standard) are required annually for each of your agency’s officers/deputies in the following categories (if none, please indicate 0 hours)?"]
[]
[null,null,"Use of Force:",null,null,"De-escalation of conflict:"]
[]
[null,null,"Racial and ethnic bias that includes elements of implicit/unconscious bias:     "]
[]
[]
[null,null,"Gender bias in response to domestic violence and sexual assault:"]
[]
[null,null,"Bias towards lesbian, gay, bisexual, and transgender (LGBT) individuals:"]
[]
[null,null,"Community engagement (e.g., community policing and problem solving):"]
[]
[null,"4. Does your agency administer a police training academy? ",null,null,null,null,null,"No"]
[]
[null,"5. How many total hours of basic/recruit ACADEMY training are required for each of your agency’s officer/deputy recruits in the following categories (if none, please indicate 0 hours)?"]
[]
[null,null,"Use of Force:",null,null,"De-escalation of conflict:"]
[]
[null,null,"Racial and ethnic bias that includes elements of implicit/unconscious bias:     "]
[]
[]
[null,null,"Gender bias in response to domestic violence and sexual assault:"]
[]
[null,null,"Bias towards lesbian, gay, bisexual, and transgender (LGBT) individuals:"]
[]
[null,null,"Community engagement (e.g., community policing and problem solving):"]

{"sheet":"PA1","index":2,"n_rows":195,"n_cols":37,"rows_kept":195,"cut":false,"hidden":false,"merged":[[137,2,137,4],[137,0,137,1],[141,0,141,14],[122,15,125,15],[122,17,125,17],[122,3,125,5],[120,2,121,2],[120,3,121,5],[144,0,144,17],[133,5,134,11],[122,13,125,13],[120,12,121,12],[135,12,136,14],[120,0,121,1],[120,6,121,10],[122,6,125,10],[120,16,121,16],[120,17,121,17],[120,15,121,15],[120,13,121,13],[150,0,150,5],[120,14,121,14],[137,12,137,14],[122,14,125,14],[133,12,134,17],[130,0,130,17],[135,16,136,16],[135,17,136,17],[142,0,142,17],[135,15,136,15],[132,0,132,17],[133,0,134,1],[147,0,147,5],[145,0,145,17],[147,6,148,14],[129,0,129,14],[149,0,149,5],[147,15,148,17],[133,2,134,4],[135,0,136,1],[135,2,136,4],[122,16,125,16],[131,0,131,17],[122,0,125,2],[105,0,105,17],[96,17,97,17],[96,15,97,15],[104,0,104,17],[94,6,95,14],[98,6,98,14],[118,12,118,17],[119,12,119,17],[118,6,119,10],[117,0,117,17],[108,16,109,16],[108,15,109,15],[108,13,109,13],[108,5,109,12],[108,17,109,17],[118,3,118,5],[119,3,119,5],[110,0,110,1],[118,0,118,2],[119,0,119,2],[110,5,110,12],[114,0,114,14],[115,0,115,17],[110,2,110,4],[193,0,193,16],[194,0,194,16],[180,0,180,17],[181,0,181,16],[182,0,182,16],[183,0,183,16],[184,0,184,16],[185,0,185,16],[186,0,186,16],[187,0,187,16],[188,0,188,16],[189,0,189,16],[190,0,190,16],[191,0,191,16],[192,0,192,16],[177,0,177,1],[177,3,177,5],[177,7,177,9],[173,7,173,9],[178,0,178,1],[178,3,178,5],[178,7,178,9],[179,0,179,1],[179,3,179,5],[176,0,176,1],[174,7,174,9],[175,3,175,5],[175,7,175,9],[173,0,173,1],[173,3,173,5],[174,0,174,1],[174,3,174,5],[179,7,179,9],[175,0,175,1],[176,3,176,5],[176,7,176,9],[172,0,172,1],[172,3,172,5],[172,7,172,9],[170,0,170,1],[170,3,170,5],[170,7,170,9],[169,0,169,9],[171,0,171,1],[171,3,171,5],[171,7,171,9],[168,0,168,17],[166,0,166,14],[157,0,157,17],[161,13,161,14],[161,11,161,12],[162,13,162,14],[162,11,162,12],[159,11,159,17],[160,11,160,17],[159,3,160,10],[161,3,161,10],[162,3,162,10],[160,0,160,2],[162,0,162,2],[161,0,161,2],[159,0,159,2],[80,0,80,1],[83,5,83,9],[92,0,92,17],[89,0,89,17],[80,12,80,14],[78,0,79,8],[80,2,80,8],[78,16,79,16],[116,0,116,17],[106,13,107,17],[106,5,107,12],[98,0,98,5],[106,0,107,1],[106,2,107,4],[84,0,84,14],[96,0,97,14],[91,0,91,3],[95,0,95,5],[94,15,94,17],[95,15,95,17],[102,0,102,14],[103,0,103,17],[108,2,109,4],[108,14,109,14],[77,0,77,1],[74,0,74,17],[78,15,79,15],[96,16,97,16],[66,12,66,14],[66,9,66,11],[72,0,73,17],[94,0,94,5],[93,0,93,17],[83,0,83,3],[86,0,87,17],[78,12,79,14],[78,9,79,11],[80,9,80,11],[66,2,66,8],[76,9,76,17],[77,9,77,17],[76,2,77,8],[70,0,70,14],[66,0,66,1],[76,0,76,1],[83,10,83,14],[78,17,79,17],[90,0,90,17],[57,0,57,14],[56,5,56,9],[50,14,53,14],[53,7,53,9],[50,7,50,9],[50,0,53,1],[64,9,65,11],[51,7,51,9],[64,15,65,15],[59,0,59,17],[50,3,53,6],[50,10,50,11],[51,10,51,11],[52,10,52,11],[53,10,53,11],[50,12,50,13],[51,12,51,13],[52,12,52,13],[53,12,53,13],[50,2,53,2],[50,15,53,15],[52,7,52,9],[48,3,49,6],[32,0,32,2],[26,0,26,3],[31,4,31,14],[43,0,43,14],[47,10,47,17],[46,10,46,17],[46,0,46,1],[47,0,47,1],[48,14,49,14],[48,15,49,15],[48,10,49,11],[48,12,49,13],[46,7,46,9],[47,7,47,9],[42,0,42,14],[39,0,39,14],[36,0,36,14],[37,0,37,14],[44,0,44,17],[46,3,47,6],[21,0,21,3],[22,0,22,3],[31,0,31,1],[4,0,4,17],[5,1,5,17],[6,7,6,12],[6,15,6,17],[7,15,7,17],[15,12,15,13],[12,0,12,3],[15,2,15,3],[13,5,13,9],[13,4,14,4],[13,2,13,3],[13,0,13,1],[13,10,14,11],[15,10,15,11],[13,12,14,13],[13,16,14,16],[13,15,14,15],[13,14,14,14],[17,0,17,4],[18,0,18,4],[15,0,15,1],[0,14,0,17],[0,0,0,10],[1,3,2,10],[9,0,9,17],[1,0,2,1],[7,1,7,4],[7,7,7,12],[6,1,6,4],[11,4,11,17],[11,0,11,3],[11,28,33,28],[19,10,19,14],[18,5,18,17],[11,18,33,18],[17,5,17,17],[16,4,16,7],[16,12,16,15],[19,16,20,16],[19,17,20,17],[19,15,20,15],[19,5,19,9],[19,0,20,4],[33,0,33,17],[30,0,30,3],[24,0,24,3],[25,0,25,3],[12,4,12,17],[14,0,14,1],[13,17,14,17],[14,2,14,3],[29,0,29,3],[23,0,23,3],[27,0,27,3],[28,0,28,3],[148,0,148,5],[137,5,137,11],[156,0,156,17],[154,0,154,14],[150,6,150,14],[40,0,40,14],[38,0,38,14],[41,0,41,14],[63,0,63,1],[62,0,62,1],[64,12,65,14],[62,9,62,17],[62,2,63,8],[64,0,65,8],[63,9,63,17],[60,0,60,17],[48,7,49,9],[48,17,49,17],[48,0,49,2],[48,16,49,16],[50,16,53,16],[50,17,53,17],[64,17,65,17],[64,16,65,16]]}
[{"$f":"'Budget Sheet Instructions'!B13","v":"Public Safety and Community Policing "},null,null,null,null,null,null,null,null,null,null,null,null,null,"Purpose Area (1)",null,null,null,null,null,0,0,0,0,0,0,0,0,0,0]
["Program Office",null,null,null,null,null,null,null,null,null,null,null,null,null,null,{"$f":"'Budget Sheet Instructions'!J13","v":"COPS"},{"$f":"'Budget Sheet Instructions'!K13","v":"16.710"},null,null,null,"Personnel Salary Values","Personnel Fringe Values","Non-Federal Salary Values","Non-Federal Fringe Values"]
[]
["Note: Non-Federal match is not required for this purpose area but can be provided if desired."]
["Budget Point of Contact Information:"]
["Tribe Name: "]
["Contact Last Name: ",null,null,null,null,"First: ",null,null,null,null,null,null,null,null,"Middle: "]
["Contact Phone: ",null,null,null,null,"Fax:",null,null,null,null,null,null,null,null,"Email:"]
["A. Personnel"]
[]
["A. Personnel"]
["Type of Position",null,null,null,"Computation"]
[null,null,null,null,"Show annual salary rate & amount of time devoted to the project for each name/position.",null,null,null,null,null,null,null,null,null,null,null,null,null,null,null,null,null,null,null,null,null,null,null,null,null,{"$f":"A13","v":0},{"$f":"P16","v":0},{"$f":"Q16","v":0},{"$f":"R16","v":0},{"$f":"P32","v":0},{"$f":"Q32","v":0},{"$f":"R32","v":0}]
["Name/Position",null,"Sworn Officer Category",null,"# of Positions","Rate",null,null,null,null,"Salary ",null,"Time Worked\n(# of  years)",null,"%","Total Cost","Non-Federal Contribution","Federal Request"]
["Select appropriate position below using drop down arrow.",null,"Select appropriate type for Sworn Officer using drop down arrow.",null,null,"Year 1","Year 2","Year 3","Year 4","Year 5"]
[null,null,null,null,0,0,0,0,0,0,{"$f":"SUM(F16:J16)","v":0},null,{"$f":"5","v":5},null,{"$f":"100%","v":1},{"$f":"(E16*K16)","v":0},0,{"$f":"IF(P16-Q16<0,0,P16-Q16)","v":0},null,null,{"$f":"P16","v":0},null,{"$f":"Q16","v":0}]
["B.Fringe Benefits",null,null,null,"Does Salary include Sick Leave?",null,null,null,null,"Choose One",null,null,"Does Salary include Vacation Time?",null,null,null,"Choose One",null,null,null,null,null,null,null,null,"Yes"]
["Type of Benefit",null,null,null,null,"Computation",null,null,null,null,null,null,null,null,null,null,null,null,null,null,null,null,null,null,null,"No"]
["List each grant-support fringe benefit that is provided to the grant-funded position.",null,null,null,null,"Show the basis for computation."]
[null,null,null,null,null,"Base",null,null,null,null,"Rate",null,null,null,null,"Total Cost (Per Position)","Non-Federal Contribution","Federal Request"]
[null,null,null,null,null,"Year 1","Year 2","Year 3","Year 4","Year 5","Year 1","Year 2","Year 3","Year 4","Year 5"]
["Social Security",null,null,null,null,{"$f":"(F16*K22)","v":0},{"$f":"(G16*L22)","v":0},{"$f":"(H16*M22)","v":0},{"$f":"(I16*N22)","v":0},{"$f":"(J16*O22)","v":0},0,0,0,0,0,{"$f":"SUM(F22:J22)","v":0},0,{"$f":"IF(P22-Q22<0,0,P22-Q22)","v":0}]
["Medicare",null,null,null,null,{"$f":"(F16*K23)","v":0},{"$f":"(G16*L23)","v":0},{"$f":"(H16*M23)","v":0},{"$f":"(I16*N23)","v":0},{"$f":"(J16*O23)","v":0},0,0,0,0,0,{"$f":"SUM(F23:J23)","v":0},0,0]
["Health Insurance",null,null,null,null,{"$f":"(F16*K24)","v":0},{"$f":"(G16*L24)","v":0},{"$f":"(H16*M24)","v":0},{"$f":"(I16*N24)","v":0},{"$f":"(J16*O24)","v":0},0,0,0,0,0,0,0,0]
["Life Insurance",null,null,null,null,{"$f":"(F16*K25)","v":0},{"$f":"(G16*L25)","v":0},{"$f":"(H16*M25)","v":0},{"$f":"(I16*N25)","v":0},{"$f":"(J16*O25)","v":0},0,0,0,0,0,0,0,0]
["Vacation",null,null,null,null,{"$f":"(F16*K26)","v":0},{"$f":"(G16*L26)","v":0},{"$f":"(H16*M26)","v":0},{"$f":"(I16*N26)","v":0},{"$f":"(J16*O26)","v":0},0,0,0,0,0,0,0,0]
["Sick Leave",null,null,null,null,{"$f":"(F16*K27)","v":0},{"$f":"(G16*L27)","v":0},{"$f":"(H16*M27)","v":0},{"$f":"(I16*N27)","v":0},{"$f":"(J16*O27)","v":0},0,0,0,0,0,0,0,0]
["Retirement",null,null,null,null,{"$f":"(F16*K28)","v":0},{"$f":"(G16*L28)","v":0},{"$f":"(H16*M28)","v":0},{"$f":"(I16*N28)","v":0},{"$f":"(J16*O28)","v":0},0,0,0,0,0,0,0,0]
["Worker's Compensation",null,null,null,null,{"$f":"(F16*K29)","v":0},{"$f":"(G16*L29)","v":0},{"$f":"(H16*M29)","v":0},{"$f":"(I16*N29)","v":0},{"$f":"(J16*O29)","v":0},0,0,0,0,0,0,0,0]
["Unemployment Insurance",null,null,null,null,{"$f":"(F16*K30)","v":0},{"$f":"(G16*L30)","v":0},{"$f":"(H16*M30)","v":0},{"$f":"(I16*N30)","v":0},{"$f":"(J16*O30)","v":0},0,0,0,0,0,0,0,0]
["Other (Please specify in Narrative field below)",null,null,null,null,{"$f":"(F16*K31)","v":0},{"$f":"(G16*L31)","v":0},{"$f":"(H16*M31)","v":0},{"$f":"(I16*N31)","v":0},{"$f":"(J16*O31)","v":0},0,0,0,0,0,0,0,0]
["Number of Positions:",null,{"$f":"E16","v":0},null,"Total Fringe (All Positions)",null,null,null,null,null,null,null,null,null,null,{"$f":"SUM(P22:P31)*C32","v":0},{"$f":"SUM(Q22:Q31)*C32","v":0},{"$f":"SUM(P32-Q32)","v":0},null,null,null,{"$f":"P32","v":0},null,{"$f":"Q32","v":0}]
["Personnel Salary & Fringe Benefits Narrative  "]
[]
[]
[]
[null,null,null,null,null,null,null,null,null,null,null,null,null,null,null,"Total Cost","Non-Federal Contribution","Total"]
["Sworn Personnel Salary Total",null,null,null,null,null,null,null,null,null,null,null,null,null,null,{"$f":"SUMIF(AE1:AE504,\"Sworn Officer\",AF1:AF504)","v":0},{"$f":"SUMIF(AE1:AE504,\"Sworn Officer\",AG1:AG504)","v":0},{"$f":"SUMIF(AE1:AE504,\"Sworn Officer\",AH1:AH504)","v":0}]
["Sworn Personnel Fringe Total",null,null,null,null,null,null,null,null,null,null,null,null,null,null,{"$f":"SUMIF(AE1:AE504,\"Sworn Officer\",AI1:AI504)","v":0},{"$f":"SUMIF(AE1:AE504,\"Sworn Officer\",AJ1:AJ504)","v":0},{"$f":"SUMIF(AE1:AE504,\"Sworn Officer\",AK1:AK504)","v":0}]
["Sworn Personnel Total",null,null,null,null,null,null,null,null,null,null,null,null,null,null,{"$f":"SUM(P38+P39)","v":0},{"$f":"SUM(Q38+Q39)","v":0},{"$f":"SUM(R38+R39)","v":0}]
["Civilian Personnel Salary Total",null,null,null,null,null,null,null,null,null,null,null,null,null,null,{"$f":"SUMIF(AE1:AE504,\"Civilian Position\",AF1:AF504)","v":0},{"$f":"SUMIF(AE1:AE504,\"Civilian Position\",AG1:AG504)","v":0},{"$f":"SUMIF(AE1:AE504,\"Civilian Position\",AH1:AH504)","v":0}]
["Civilian Personnel Fringe Total",null,null,null,null,null,null,null,null,null,null,null,null,null,null,{"$f":"SUMIF(AE1:AE504,\"Civilian Position\",AI1:AI504)","v":0},{"$f":"SUMIF(AE1:AE504,\"Civilian Position\",AJ1:AJ504)","v":0},{"$f":"SUMIF(AE1:AE504,\"Civilian Position\",AK1:AK504)","v":0}]
["Civilian Personnel Total",null,null,null,null,null,null,null,null,null,null,null,null,null,null,{"$f":"SUM(P41+P42)","v":0},{"$f":"SUM(Q41+Q42)","v":0},{"$f":"SUM(R41+R42)","v":0}]
["All Personnel Grand Total",null,null,null,null,null,null,null,null,null,null,null,null,null,null,{"$f":"SUM(SalaryTotal+FringeTotal)","v":0},{"$f":"SUM(LocalSalaryTotal+LocalFringeTotal)","v":0},{"$f":"SUM(R40+R43)","v":0}]
[]
["C. Travel"]
["Event Title",null,"Location","Item Narrative",null,null,null,"Type of Expense",null,null,"Computation"]
["Indicate the purpose of each trip or type of trip (training, advisory group meeting)",null,"Indicate the location of the event",null,null,null,null,"Registration, Hotel, airfare, per diem",null,null,"Compute the cost of each type of expense X the number of people traveling."]
[null,null,null,null,null,null,null,"Type of Expense",null,null,"Cost Per Staff",null,"Duration or Distance (text only)",null,"# of Staff","Total Cost","Non-Federal Contribution","Federal Request"]
[null,null,null,null,null,null,null,"Type of Expense"]
[null,null,null,null,null,null,null,"Registration:",null,null,null,null,null,null,null,{"$f":"SUM(K51:K54)*O51","v":0},0,{"$f":"IF(P51-Q51<0,0,P51-Q51)","v":0}]
[null,null,null,null,null,null,null,"Transportation:"]
[null,null,null,null,null,null,null,"Lodging:"]
[null,null,null,null,null,null,null,"Per Diem:"]
[]
[]
[null,null,null,null,null,null,null,null,null,null,null,null,null,null,null,0,0,0]
["Total",null,null,null,null,null,null,null,null,null,null,null,null,null,null,{"$f":"SUM(P51:P57)","v":0},{"$f":"SUM(Q51:Q57)","v":0},{"$f":"SUM(P58-Q58)","v":0}]
["Travel Narrative"]
[]
[]
["D. Equipment"]
["Item",null,"Item Narrative",null,null,null,null,null,null,"Computation"]
["List and describe each item of equipment that will be purchased",null,null,null,null,null,null,null,null,"Compute the cost (e.g., the number of each item to be purchased X the cost per item)"]
[null,null,null,null,null,null,null,null,null,"# of Items",null,null,"Cost",null,null,"Total Cost","Non-Federal Contribution","Federal Request"]
[]
[null,null,null,null,null,null,null,null,null,null,null,null,null,null,null,{"$f":"CEILING(J67*M67,1)","v":0},0,{"$f":"IF(P67-Q67<0,0,P67-Q67)","v":0}]
[]
[]
[null,null,null,null,null,null,null,null,null,null,null,null,null,null,null,0,0]
["Total",null,null,null,null,null,null,null,null,null,null,null,null,null,null,{"$f":"SUM(P67:P70)","v":0},{"$f":"SUM(Q67:Q70)","v":0},{"$f":"SUM(P71-Q71)","v":0}]
["Equipment Narrative"]
[]
[]
[]
["E. Supplies"]
["Supply Items",null,"Item Narrative",null,null,null,null,null,null,"Computation"]
["Provide a list of the types of items to be purchased with grant funds.",null,null,null,null,null,null,null,null,"Describe the item and the compute the costs. Computation: The number of each item to be purchased X the cost per item."]
[null,null,null,null,null,null,null,null,null,"# of Items",null,null,"Cost",null,null,"Total Cost","Non-Federal Contribution","Federal Request"]
[]
[null,null,null,null,null,null,null,null,null,null,null,null,null,null,null,{"$f":"CEILING(J81*M81,1)","v":0},0,{"$f":"IF(P81-Q81<0,0,P81-Q81)","v":0}]
[]
[]
[null,null,null,null,null,null,null,null,null,null,null,null,null,null,null,0,0,0]
["Total",null,null,null,null,null,null,null,null,null,null,null,null,null,null,{"$f":"SUM(P81:P84)","v":0},{"$f":"SUM(Q81:Q84)","v":0},{"$f":"SUM(P85-Q85)","v":0}]
["Supplies Narrative"]
[]
[]
["F. Construction"]
[]
[]
["G. Subawards (Subgrants)/Procurement Contracts"]
["Subawards (Subgrants) or Procurement Contracts"]
["Procurement contracts: Provide a cost estimate for the product or service to be procured by contract.\nSubawards (Subgrants): Provide a cost estimate for activities to be carried out by subrecipients."]
["Item",null,null,null,null,null,"Item Narrative",null,null,null,null,null,null,null,null,"Computation"]
["Procurement contracts:  Provide a description of the products or services to be procured by contract and an estimate of the costs.  Applicants are encouraged to promote free and open competition in awarding contracts.  A separate justification must be provided for sole source procurements in excess of the Simplified Acquisition Threshold (currently $250,000). \nSubawards (Subgrants):  Provide a description of the activities to be carried out by subrecipients.  Include “(subaward)” label for each “Subawards (Subgrants)” entry.",null,null,null,null,null,null,null,null,null,null,null,null,null,null,"Compute the cost (e.g Cost-Non-Federal Contribution)"]
[null,null,null,null,null,null,null,null,null,null,null,null,null,null,null,"Total Cost","Non-Federal Contribution","Federal Request"]
[]
[null,null,null,null,null,null,null,null,null,null,null,null,null,null,null,0,0,{"$f":"IF(P99-Q99<0,0,P99-Q99)","v":0}]
[]
[]
[null,null,null,null,null,null,null,null,null,null,null,null,null,null,null,0]
["Total",null,null,null,null,null,null,null,null,null,null,null,null,null,null,{"$f":"SUM(P99:P102)","v":0},{"$f":"SUM(Q99:Q102)","v":0},{"$f":"SUM(P103-Q103)","v":0}]
[]
["Consultant Fees"]
["For each consultant enter the name (if known), service to be provided, hourly or daily fee (based upon an 8-hour day), and estimated length of time on the project."]
["Consultant Name/Title",null,"Consultant Services Provided",null,null,"Item Narrative",null,null,null,null,null,null,null,"Computation"]
[]
[null,null,null,null,null,null,null,null,null,null,null,null,null,"Daily Rate","Number of Days","Total Cost","Non-Federal Contribution","Federal Request"]
[]
[null,null,null,null,null,null,null,null,null,null,null,null,null,0,0,{"$f":"N111*O111","v":0},0,{"$f":"IF(P111-Q111<0,0,P111-Q111)","v":0}]
[]
[]
[null,null,null,null,null,null,null,null,null,null,null,null,null,null,null,0,0]
["Total",null,null,null,null,null,null,null,null,null,null,null,null,null,null,{"$f":"SUM(P111:P114)","v":0},{"$f":"SUM(Q111:Q114)","v":0},{"$f":"SUM(P115-Q115)","v":0}]
[]
["Consultant Travel"]
["List all travel-related expenses to be paid from the grant to the individual consultants (e.g., transportation, meals, lodging) separate from their consultant fees."]
["Event Title",null,null,"Location",null,null,"Item Narrative",null,null,null,null,"Type of Expense","Computation"]
["Indicate the purpose of each trip or type of trip (training, advisory group meeting)",null,null,"Indicate the location of the event",null,null,null,null,null,null,null,"Hotel, airfare, per diem","Compute the cost of each type of expense X the number of people traveling."]
[null,null,null,null,null,null,null,null,null,null,null,null,"Cost","Duration or Distance","# of Staff","Total Cost","Non-Federal Contribution","Federal Request"]
[]
[null,null,null,null,null,null,null,null,null,null,null,"Registration:",null,null,null,{"$f":"SUM(M123:M126)*O123","v":0},0,{"$f":"IF(P123-Q126<0,0,P123-Q126)","v":0}]
[null,null,null,null,null,null,null,null,null,null,null,"Transportation:"]
[null,null,null,null,null,null,null,null,null,null,null,"Lodging:"]
[null,null,null,null,null,null,null,null,null,null,null,"Per Diem:"]
[]
[]
[null,null,null,null,null,null,null,null,null,null,null,null,null,null,null,0,0]
["Total",null,null,null,null,null,null,null,null,null,null,null,null,null,null,{"$f":"SUM(P123:P129)","v":0},{"$f":"SUM(Q123:Q129)","v":0},{"$f":"SUM(P130-Q130)","v":0}]
[]
["Consultant Expenses"]
["List all expenses to be paid from the grant to the individual consultants separate from their consultant fees and travel expenses (e.g., computer equipment and office supplies)."]
["Consultant Name/Title",null,"Item",null,null,"Item Narrative",null,null,null,null,null,null,"Computation"]
[]
[null,null,null,null,null,null,null,null,null,null,null,null,"Cost",null,null,"Total Cost","Non-Federal Contribution","Federal Request"]
[]
[null,null,null,null,null,null,null,null,null,null,null,null,0,null,null,{"$f":"SUM(M138)","v":0},0,{"$f":"IF(P138-Q138<0,0,P138-Q138)","v":0}]
[]
[]
[null,null,null,null,null,null,null,null,null,null,null,null,null,null,null,0,0]
["Total",null,null,null,null,null,null,null,null,null,null,null,null,null,null,{"$f":"SUM(P138:P141)","v":0},{"$f":"SUM(Q138:Q141)","v":0},{"$f":"SUM(P142-Q142)","v":0}]
[]
["Consultant Narrative"]
[]
[]
["H. Other Costs"]
["Description ",null,null,null,null,null,"Item Narrative",null,null,null,null,null,null,null,null,"Computation"]
["List and describe items that will be paid with grants funds."]
[null,null,null,null,null,null,null,null,null,null,null,null,null,null,null,"Total Cost","Non-Federal Contribution","Federal Request"]
[null,null,null,null,null,null,null,null,null,null,null,null,null,null,null,null,null,{"$f":"IF(P151-Q151<0,0,P151-Q151)","v":0}]
[]
[]
[null,null,null,null,null,null,null,null,null,null,null,null,null,null,null,0,0]
["Total",null,null,null,null,null,null,null,null,null,null,null,null,null,null,{"$f":"SUM(P151:P154)","v":0},{"$f":"SUM(Q151:Q154)","v":0},{"$f":"SUM(P155-Q155)","v":0}]
["Other Costs Narrative"]
[]
[]
["I. Indirect Costs"]
["Description",null,null,"Item Narrative",null,null,null,null,null,null,null,"Computation"]
["Describe what the approved rate is and how it is applied.",null,null,null,null,null,null,null,null,null,null,"Compute the indirect costs for those portions of the program which allow such costs."]
[null,null,null,null,null,null,null,null,null,null,null,"Base",null,"Indirect Cost Rate",null,"Total Cost","Non-Federal Contribution","Federal Request"]
[null,null,null,null,null,null,null,null,null,null,null,null,null,null,null,{"$f":"CEILING(L163*N163,1)","v":0},0,{"$f":"IF(P163-Q163<0,0,P163-Q163)","v":0}]
[]
[]
[null,null,null,null,null,null,null,null,null,null,null,null,null,null,null,0,0]
["Total",null,null,null,null,null,null,null,null,null,null,null,null,null,null,{"$f":"SUM(P163:P166)","v":0},{"$f":"SUM(Q163:Q166)","v":0},{"$f":"SUM(P167-Q167)","v":0}]
["Indirect Costs Narrative"]
[]
["Summary Totals"]
[null,null,"Project Total","Non-Federal Total",null,null,null,"Federal Total"]
["A. Personnel Salary",null,{"$f":"SalaryTotal","v":0},{"$f":"LocalSalaryTotal","v":0},null,null,null,{"$f":"SalaryGrandTotal","v":0}]
["B. Personnel Fringe",null,{"$f":"FringeTotal","v":0},{"$f":"LocalFringeTotal","v":0},null,null,null,{"$f":"FringeGrandTotal","v":0}]
["C. Travel",null,{"$f":"TravelTotal","v":0},{"$f":"TravelLocalTotal","v":0},null,null,null,{"$f":"TravelFederalTotal","v":0}]
["D. Equipment",null,{"$f":"EquipmentTotal","v":0},{"$f":"EquipmentLocalTotal","v":0},null,null,null,{"$f":"EquipmentFederalTotal","v":0}]
["E. Supplies",null,{"$f":"SuppliesTotal","v":0},{"$f":"SuppliesLocalTotal","v":0},null,null,null,{"$f":"SuppliesFederalTotal","v":0}]
["G. Consultants/Contracts",null,{"$f":"ContractsItemTotal+ConsultantFeesTotal+ContractsTravelTotal+CunsultantExpensesTotal","v":0},{"$f":"ContractsItemLocalTotal+ConsultantFeesLocalTotal+ContractsTravelLocalTotal+ConsultantExpensesLocalTotal","v":0},null,null,null,{"$f":"ContractsItemFederalTotal+ConsultantFeesFederalTotal+ContractsTravelFederalTotal+ConsultantExpensesFederalTotal","v":0}]
["H. Other Costs",null,{"$f":"OtherTotal","v":0},{"$f":"OtherLocalTotal","v":0},null,null,null,{"$f":"OtherFederalTotal","v":0}]
["I. Indirect Costs",null,{"$f":"IndirectTotal","v":0},{"$f":"IndirectLocalTotal","v":0},null,null,null,{"$f":"IndirectFederalTotal","v":0}]
["Totals",null,{"$f":"SUM(C172:C179)","v":0},{"$f":"SUM(D172:F179)","v":0},null,null,null,{"$f":"SUM(H172:J179)","v":0}]
["Budget Summary"]
["A. Personnel",null,null,null,null,null,null,null,null,null,null,null,null,null,null,null,null,{"$f":"'Budget Summary'!B7","v":0}]
["B. Fringe Benefits",null,null,null,null,null,null,null,null,null,null,null,null,null,null,null,null,{"$f":"'Budget Summary'!B8","v":0}]
["C. Travel",null,null,null,null,null,null,null,null,null,null,null,null,null,null,null,null,{"$f":"'Budget Summary'!B9","v":0}]
["D. Equipment",null,null,null,null,null,null,null,null,null,null,null,null,null,null,null,null,{"$f":"'Budget Summary'!B10","v":0}]
["E. Supplies",null,null,null,null,null,null,null,null,null,null,null,null,null,null,null,null,{"$f":"'Budget Summary'!B11","v":0}]
["F. Construction",null,null,null,null,null,null,null,null,null,null,null,null,null,null,null,null,{"$f":"'Budget Summary'!B12","v":"N/A"}]
["G. Subawards (Subgrants)/ Procurement Contracts",null,null,null,null,null,null,null,null,null,null,null,null,null,null,null,null,{"$f":"'Budget Summary'!B13","v":0}]
["H. Other",null,null,null,null,null,null,null,null,null,null,null,null,null,null,null,null,{"$f":"'Budget Summary'!B14","v":0}]
["Total Direct Costs",null,null,null,null,null,null,null,null,null,null,null,null,null,null,null,null,{"$f":"'Budget Summary'!B16","v":0}]
["I. Indirect Costs",null,null,null,null,null,null,null,null,null,null,null,null,null,null,null,null,{"$f":"'Budget Summary'!B17","v":0}]
["Total Project Costs",null,null,null,null,null,null,null,null,null,null,null,null,null,null,null,null,{"$f":"'Budget Summary'!B19","v":0}]
["Federal Request",null,null,null,null,null,null,null,null,null,null,null,null,null,null,null,null,{"$f":"'Budget Summary'!B22","v":0}]
["Non-Federal Contribution",null,null,null,null,null,null,null,null,null,null,null,null,null,null,null,null,{"$f":"'Budget Summary'!B23","v":0}]
["Required Match Met",null,null,null,null,null,null,null,null,null,null,null,null,null,null,null,null,{"$f":"'Budget Summary'!B24","v":"N/A"}]

{"sheet":"PA2","index":3,"n_rows":128,"n_cols":11,"rows_kept":128,"cut":false,"hidden":false,"merged":[[113,0,113,10],[114,0,114,9],[115,0,115,9],[116,0,116,9],[117,0,117,9],[118,0,118,9],[119,0,119,9],[120,0,120,9],[121,0,121,9],[122,0,122,9],[123,0,123,9],[124,0,124,9],[125,0,125,9],[126,0,126,9],[127,0,127,9],[36,3,36,4],[37,0,37,7],[39,0,40,10],[43,3,43,10],[44,3,45,4],[44,5,45,7],[44,8,45,8],[44,9,45,9],[46,0,46,2],[44,0,45,2],[43,0,43,2],[42,0,42,2],[42,3,42,10],[44,10,45,10],[46,3,46,4],[46,5,46,7],[48,0,48,7],[50,0,51,10],[22,5,23,7],[22,8,23,8],[22,9,23,9],[22,10,23,10],[22,0,23,2],[21,0,21,2],[20,0,20,2],[13,0,13,1],[13,5,13,6],[14,0,14,1],[14,5,14,6],[15,0,15,7],[17,0,18,10],[20,3,20,10],[21,3,21,10],[22,3,23,4],[24,0,24,2],[24,3,24,4],[26,0,26,7],[0,0,0,5],[0,7,0,10],[1,0,2,0],[1,1,2,5],[9,0,9,1],[10,0,10,1],[11,0,12,1],[11,3,12,3],[11,4,12,4],[11,5,12,6],[11,7,12,7],[11,8,12,8],[11,9,12,9],[11,10,12,10],[11,2,12,2],[24,5,24,7],[25,0,25,1],[25,3,25,4],[25,5,25,7],[10,2,10,10],[9,2,9,10],[35,3,35,4],[35,1,35,2],[28,0,29,10],[31,3,31,4],[31,5,31,10],[32,3,32,4],[32,5,32,10],[33,10,34,10],[33,8,34,8],[33,9,34,9],[31,1,31,2],[33,0,34,4],[33,5,34,5],[33,6,34,6],[33,7,34,7],[32,1,32,2],[53,3,53,10],[55,0,56,2],[53,0,53,2],[54,0,54,2],[47,0,47,1],[47,3,47,4],[47,5,47,7],[57,3,57,4],[57,5,57,7],[58,0,58,1],[58,3,58,4],[58,5,58,7],[57,0,57,2],[54,3,54,10],[55,3,56,4],[55,5,56,7],[55,8,56,8],[55,9,56,9],[55,10,56,10],[66,3,67,4],[66,5,67,7],[66,0,67,2],[69,0,69,2],[66,8,67,8],[68,0,68,2],[66,9,67,9],[66,10,67,10],[59,0,59,7],[61,0,62,10],[64,3,64,10],[65,3,65,10],[65,0,65,2],[64,0,64,2],[68,3,68,4],[68,5,68,7],[69,3,69,4],[69,5,69,7],[85,3,85,4],[86,3,86,4],[87,0,87,7],[89,0,90,10],[92,0,92,10],[83,0,84,4],[83,5,84,5],[83,6,84,6],[83,7,84,7],[83,8,84,8],[83,9,84,9],[83,10,84,10],[85,1,85,2],[97,0,97,7],[98,0,98,7],[100,0,101,10],[103,3,103,10],[104,3,104,10],[93,0,93,10],[94,0,95,7],[94,8,95,8],[94,9,95,9],[94,10,95,10],[96,0,96,7],[104,0,104,2],[103,0,103,2],[109,0,109,7],[111,0,112,10],[107,3,107,4],[107,5,107,7],[108,0,108,1],[108,3,108,4],[108,5,108,7],[105,3,106,4],[105,5,106,7],[105,8,106,8],[105,9,106,9],[105,10,106,10],[105,0,106,2],[107,0,107,2],[79,0,79,7],[80,0,80,7],[81,3,81,4],[81,5,81,10],[82,3,82,4],[82,5,82,10],[70,0,70,7],[72,0,73,10],[75,0,75,10],[76,0,76,10],[77,0,78,7],[77,8,78,8],[77,9,78,9],[77,10,78,10],[82,1,82,2],[81,1,81,2],[74,0,74,1],[6,11,6,13],[7,11,7,13],[4,0,4,10],[5,1,5,10],[6,1,6,2],[6,9,6,10],[7,9,7,10],[7,1,7,2],[6,4,6,7],[7,4,7,7]]}
[{"$f":"'Budget Sheet Instructions'!B14","v":"Comprehensive Tribal Justice Systems Strategic Planning"},null,null,null,null,null,null,"Purpose Area (2)"]
["Program Office",null,null,null,null,null,null,null,"BJA","16.608"]
[]
["Note: Non-Federal match is not required for this purpose area but can be provided if desired."]
["Budget Point of Contact Information:"]
["Tribe Name: "]
["Contact Last Name:",null,null,"First:",null,null,null,null,"Middle: "]
["Contact Phone: ",null,null,"Fax:",null,null,null,null,"Email:"]
["A. Personnel"]
["Name/Position",null,"Computation"]
["List each position and name, if known. New positions may be grouped by type.",null,"Show annual salary rate & amount of time devoted to the project for each name/position."]
[null,null,"# of Positions","Salary ","Rate","Time Worked\n(# of hours, days, months, years)",null,"%","Total Cost","Non-Federal Contribution","Federal Request"]
[]
[null,null,null,null,null,null,null,null,{"$f":"CEILING(C14*D14*F14*H14,1)","v":0},null,{"$f":"IF(I14-J14<0,0,I14-J14)","v":0}]
[null,null,null,null,null,null,null,null,{"$f":"CEILING(D15*F15*H15,1)","v":0},null,{"$f":"IF(I15-J15<0,0,I15-J15)","v":0}]
["Total(s)",null,null,null,null,null,null,null,{"$f":"SUM(I14:I15)","v":0},{"$f":"SUM(J14:J15)","v":0},{"$f":"SUM(K14:K15)","v":0}]
["Narrative"]
[]
[]
["B. Fringe Benefits"]
["Type of Benefit",null,null,"Computation"]
["List each grant-support fringe benefit that is provided to the grant-funded position.",null,null,"Show the basis for computation."]
[null,null,null,"Base",null,"Rate",null,null,"Total Cost","Non-Federal Contribution","Federal Request"]
[]
[null,null,null,null,null,null,null,null,{"$f":"CEILING(D25*F25,1)","v":0},null,{"$f":"IF(I25-J25<0,0,I25-J25)","v":0}]
[null,null,null,null,null,null,null,null,0,null,0]
["Total",null,null,null,null,null,null,null,{"$f":"SUM(I25:I26)","v":0},{"$f":"SUM(J25:J26)","v":0},{"$f":"SUM(K25:K26)","v":0}]
["Narrative"]
[]
[]
["C. Travel"]
["Purpose of Travel","Location",null,"Type of Expense",null,"Computation"]
["Indicate the purpose of each trip or type of trip (training, advisory group meeting)","Indicate the travel destination.",null,"Hotel, airfare, per diem",null,"Compute the cost of each type of expense X the number of people traveling."]
[null,null,null,null,null,"Cost","Duration or Distance","# of Staff","Total Cost","Non-Federal Contribution","Federal Request"]
[]
[null,null,null,null,null,null,null,null,{"$f":"CEILING(F36*G36*H36,1)","v":0},null,{"$f":"IF(I36-J36<0,0,I36-J36)","v":0}]
[null,null,null,null,null,null,null,null,0,null,0]
["Total",null,null,null,null,null,null,null,{"$f":"SUM(I36:I37)","v":0},{"$f":"SUM(J36:J37)","v":0},{"$f":"SUM(K36:K37)","v":0}]
["Narrative"]
[]
[]
["D. Equipment"]
["Item",null,null,"Computation"]
["List and describe each item of equipment that will be purchased",null,null,"Compute the cost (e.g., the number of each item to be purchased X the cost per item)"]
[null,null,null,"# of Items",null,"Cost",null,null,"Total Cost","Non-Federal Contribution","Federal Request"]
[]
[null,null,null,null,null,null,null,null,{"$f":"CEILING(D47*F47,1)","v":0},null,{"$f":"IF(I47-J47<0,0,I47-J47)","v":0}]
[null,null,null,null,null,null,null,null,{"$f":"CEILING(D48*F48,1)","v":0},null,{"$f":"IF(I48-J48<0,0,I48-J48)","v":0}]
["Total",null,null,null,null,null,null,null,{"$f":"SUM(I47:I48)","v":0},{"$f":"SUM(J47:J48)","v":0},{"$f":"SUM(K47:K48)","v":0}]
["Narrative"]
[]
[]
["E. Supplies"]
["Supply Items",null,null,"Computation"]
["Provide a list of the types of items to be purchased with grant funds.",null,null,"Describe the item and the compute the costs. Computation: The number of each item to be purchased X the cost per item."]
[null,null,null,"# of Items",null,"Cost",null,null,"Total Cost","Non-Federal Contribution","Federal Request"]
[]
[null,null,null,null,null,null,null,null,{"$f":"CEILING(D58*F58,1)","v":0},null,{"$f":"IF(I58-J58<0,0,I58-J58)","v":0}]
[null,null,null,null,null,null,null,null,0,null,0]
["Total",null,null,null,null,null,null,null,{"$f":"SUM(I58:I59)","v":0},{"$f":"SUM(J58:J59)","v":0},{"$f":"SUM(K58:K59)","v":0}]
["Narrative"]
[]
[]
["F. Construction"]
["List of Construction Activities",null,null,"Computation"]
["List and describe each item that is part of construction.",null,null,"Compute the costs (e.g., the number of each item to be purchased X the cost per item)"]
[null,null,null,"# of Items",null,"Cost",null,null,"Total Cost","Non-Federal Contribution","Federal Request"]
[]
[null,null,null,null,null,null,null,null,{"$f":"CEILING(D69*F69,1)","v":0},null,{"$f":"IF(I69-J69<0,0,I69-J69)","v":0}]
["N/A",null,null,null,null,null,null,null,{"$f":"CEILING(D70*F70,1)","v":0},null,{"$f":"IF(I70-J70<0,0,I70-J70)","v":0}]
["Total",null,null,null,null,null,null,null,{"$f":"SUM(I69:I70)","v":0},{"$f":"SUM(J69:J70)","v":0},{"$f":"SUM(K69:K70)","v":0}]
["Narrative"]
[]
[]
["G. Subawards (Subgrants)/Procurement Contracts"]
["Item"]
["Procurement contracts:  Provide a description of the products or services to be procured by contract and an estimate of the costs.  Applicants are encouraged to promote free and open competition in awarding contracts.  A separate justification must be provided for sole source procurements in excess of the Simplified Acquisition Threshold (currently $250,000). \n\nSubawards (Subgrants):  Provide a description of the activities to be carried out by subrecipients.  Include “(subaward)” label for each “Subawards (Subgrants)” entry."]
[null,null,null,null,null,null,null,null,"Total Cost","Non-Federal Contribution","Federal Request"]
[]
[null,null,null,null,null,null,null,null,null,null,{"$f":"IF(I80-J80<0,0,I80-J80)","v":0}]
[null,null,null,null,null,null,null,null,null,null,{"$f":"IF(I81-J81<0,0,I81-J81)","v":0}]
["Purpose of Travel","Location",null,"Type of Expense",null,"Computation"]
["Indicate the purpose of each trip or type of trip (training, advisory group meeting)","Indicate the travel destination.",null,"Hotel, airfare, per diem",null,"Compute the cost of each type of expense X the number of people traveling."]
[null,null,null,null,null,"Cost","Duration or Distance","# of Staff","Total Cost","Non-Federal Contribution","Federal Request"]
[]
[null,null,null,null,null,null,null,null,{"$f":"CEILING(F86*G86*H86,1)","v":0},null,{"$f":"IF(I86-J86<0,0,I86-J86)","v":0}]
[null,null,null,null,null,null,null,null,0,null,0]
["Total",null,null,null,null,null,null,null,{"$f":"SUM(I80:I81,I86:I87)","v":0},{"$f":"SUM(J80:J87)","v":0},{"$f":"SUM(K80:K87)","v":0}]
["Narrative"]
[]
[]
["H. Other Costs"]
["Description "]
["List and describe items that will be paid with grants funds."]
[null,null,null,null,null,null,null,null,"Total Cost","Non-Federal Contribution","Federal Request"]
[]
[null,null,null,null,null,null,null,null,null,null,{"$f":"IF(I97-J97<0,0,I97-J97)","v":0}]
[null,null,null,null,null,null,null,null,null,null,0]
["Total",null,null,null,null,null,null,null,{"$f":"SUM(I97:I98)","v":0},{"$f":"SUM(J97:J98)","v":0},{"$f":"SUM(K97:K98)","v":0}]
["Narrative"]
[]
[]
["I. Indirect Costs"]
["Description",null,null,"Computation"]
["Describe what the approved rate is and how it is applied.",null,null,"Compute the indirect costs for those portions of the program which allow such costs."]
[null,null,null,"Base",null,"Indirect Cost Rate",null,null,"Total Cost","Non-Federal Contribution","Federal Request"]
[]
[null,null,null,null,null,null,null,null,{"$f":"CEILING(D108*F108,1)","v":0},null,{"$f":"IF(I108-J108<0,0,I108-J108)","v":0}]
[null,null,null,null,null,null,null,null,{"$f":"CEILING(D109*F109,1)","v":0},null,{"$f":"IF(I109-J109<0,0,I109-J109)","v":0}]
["Total",null,null,null,null,null,null,null,{"$f":"SUM(I108:I109)","v":0},{"$f":"SUM(J108:J109)","v":0},{"$f":"SUM(K108:K109)","v":0}]
["Narrative"]
[]
[]
["Budget Summary"]
["A. Personnel",null,null,null,null,null,null,null,null,null,{"$f":"'Budget Summary'!C7","v":0}]
["B. Fringe Benefits",null,null,null,null,null,null,null,null,null,{"$f":"'Budget Summary'!C8","v":0}]
["C. Travel",null,null,null,null,null,null,null,null,null,{"$f":"'Budget Summary'!C9","v":0}]
["D. Equipment",null,null,null,null,null,null,null,null,null,{"$f":"'Budget Summary'!C10","v":0}]
["E. Supplies",null,null,null,null,null,null,null,null,null,{"$f":"'Budget Summary'!C11","v":0}]
["F. Construction",null,null,null,null,null,null,null,null,null,{"$f":"'Budget Summary'!C12","v":"N/A"}]
["G. Subawards (Subgrants)/ Procurement Contracts",null,null,null,null,null,null,null,null,null,{"$f":"'Budget Summary'!C13","v":0}]
["H. Other",null,null,null,null,null,null,null,null,null,{"$f":"'Budget Summary'!C14","v":0}]
["Total Direct Costs",null,null,null,null,null,null,null,null,null,{"$f":"'Budget Summary'!C16","v":0}]
["I. Indirect Costs",null,null,null,null,null,null,null,null,null,{"$f":"'Budget Summary'!C17","v":0}]
["Total Project Costs",null,null,null,null,null,null,null,null,null,{"$f":"'Budget Summary'!C19","v":0}]
["Federal Request",null,null,null,null,null,null,null,null,null,{"$f":"'Budget Summary'!C22","v":0}]
["Non-Federal Contribution",null,null,null,null,null,null,null,null,null,{"$f":"'Budget Summary'!C23","v":0}]
["Required Match Met",null,null,null,null,null,null,null,null,null,{"$f":"'Budget Summary'!C24","v":"N/A"}]

{"sheet":"PA3","index":4,"n_rows":128,"n_cols":11,"rows_kept":128,"cut":false,"hidden":false,"merged":[[122,0,122,9],[123,0,123,9],[124,0,124,9],[125,0,125,9],[126,0,126,9],[127,0,127,9],[113,0,113,10],[114,0,114,9],[115,0,115,9],[116,0,116,9],[117,0,117,9],[118,0,118,9],[119,0,119,9],[120,0,120,9],[121,0,121,9],[0,0,0,5],[0,7,0,10],[1,0,2,0],[1,1,2,5],[9,0,9,1],[11,10,12,10],[13,0,13,1],[13,5,13,6],[14,0,14,1],[14,5,14,6],[10,0,10,1],[11,0,12,1],[11,3,12,3],[11,4,12,4],[11,5,12,6],[11,7,12,7],[11,8,12,8],[11,9,12,9],[11,2,12,2],[10,2,10,10],[9,2,9,10],[4,0,4,10],[5,1,5,10],[6,1,6,2],[22,3,23,4],[22,5,23,7],[22,8,23,8],[22,9,23,9],[22,10,23,10],[17,0,18,10],[20,3,20,10],[21,3,21,10],[15,0,15,7],[21,0,21,2],[20,0,20,2],[22,0,23,2],[24,3,24,4],[24,5,24,7],[25,0,25,1],[25,3,25,4],[25,5,25,7],[33,0,34,4],[33,5,34,5],[33,6,34,6],[33,7,34,7],[32,1,32,2],[24,0,24,2],[35,3,35,4],[36,3,36,4],[37,0,37,7],[39,0,40,10],[42,3,42,10],[44,10,45,10],[26,0,26,7],[28,0,29,10],[31,3,31,4],[31,5,31,10],[32,3,32,4],[32,5,32,10],[33,10,34,10],[33,8,34,8],[33,9,34,9],[35,1,35,2],[31,1,31,2],[42,0,42,2],[46,3,46,4],[46,5,46,7],[47,0,47,1],[47,3,47,4],[47,5,47,7],[43,3,43,10],[44,3,45,4],[44,5,45,7],[44,8,45,8],[44,9,45,9],[46,0,46,2],[43,0,43,2],[44,0,45,2],[55,3,56,4],[55,5,56,7],[55,8,56,8],[55,9,56,9],[55,10,56,10],[48,0,48,7],[50,0,51,10],[53,3,53,10],[54,3,54,10],[55,0,56,2],[54,0,54,2],[53,0,53,2],[66,9,67,9],[66,10,67,10],[59,0,59,7],[61,0,62,10],[64,3,64,10],[65,3,65,10],[65,0,65,2],[64,0,64,2],[57,3,57,4],[57,5,57,7],[58,0,58,1],[58,3,58,4],[58,5,58,7],[57,0,57,2],[68,3,68,4],[68,5,68,7],[69,3,69,4],[69,5,69,7],[66,3,67,4],[66,5,67,7],[69,0,69,2],[66,0,67,2],[66,8,67,8],[68,0,68,2],[70,0,70,7],[72,0,73,10],[75,0,75,10],[76,0,76,10],[77,0,78,7],[77,8,78,8],[77,9,78,9],[77,10,78,10],[82,1,82,2],[81,1,81,2],[74,0,74,1],[83,0,84,4],[83,5,84,5],[83,6,84,6],[83,7,84,7],[83,8,84,8],[83,9,84,9],[79,0,79,7],[80,0,80,7],[81,3,81,4],[81,5,81,10],[82,3,82,4],[82,5,82,10],[83,10,84,10],[96,0,96,7],[104,0,104,2],[103,0,103,2],[85,3,85,4],[86,3,86,4],[87,0,87,7],[89,0,90,10],[92,0,92,10],[85,1,85,2],[97,0,97,7],[98,0,98,7],[100,0,101,10],[103,3,103,10],[104,3,104,10],[93,0,93,10],[94,0,95,7],[7,1,7,2],[6,4,6,7],[7,4,7,7],[6,9,6,10],[6,11,6,13],[7,9,7,10],[7,11,7,13],[109,0,109,7],[111,0,112,10],[107,3,107,4],[107,5,107,7],[108,0,108,1],[108,3,108,4],[108,5,108,7],[105,3,106,4],[105,5,106,7],[105,8,106,8],[105,9,106,9],[105,10,106,10],[105,0,106,2],[107,0,107,2],[94,8,95,8],[94,9,95,9],[94,10,95,10]]}
[{"$f":"'Budget Sheet Instructions'!B15","v":"Justice Systems and Alcohol and Substance Abuse"},null,null,null,null,null,null,"Purpose Area (3)"]
["Program Office",null,null,null,null,null,null,null,{"$f":"'Budget Sheet Instructions'!J15","v":"BJA"},{"$f":"'Budget Sheet Instructions'!K15","v":"16.608"}]
[]
["Note: Non-Federal match is not required for this purpose area but can be provided if desired."]
["Budget Point of Contact Information:"]
["Tribe Name: "]
["Contact Last Name:",null,null,"First:",null,null,null,null,"Middle: "]
["Contact Phone: ",null,null,"Fax:",null,null,null,null,"Email:"]
["A. Personnel"]
["Name/Position",null,"Computation"]
["List each position and name, if known. New positions may be grouped by type.",null,"Show annual salary rate & amount of time devoted to the project for each name/position."]
[null,null,"# of Positions","Salary ","Rate","Time Worked\n(# of hours, days, months, years)",null,"%","Total Cost","Non-Federal Contribution","Federal Request"]
[]
[null,null,null,null,null,null,null,null,{"$f":"CEILING(C14*D14*F14*H14,1)","v":0},null,{"$f":"IF(I14-J14<0,0,I14-J14)","v":0}]
[null,null,null,null,null,null,null,null,{"$f":"CEILING(D15*F15*H15,1)","v":0},null,{"$f":"IF(I15-J15<0,0,I15-J15)","v":0}]
["Total(s)",null,null,null,null,null,null,null,{"$f":"SUM(I14:I15)","v":0},{"$f":"SUM(J14:J15)","v":0},{"$f":"SUM(K14:K15)","v":0}]
["Narrative"]
[]
[]
["B. Fringe Benefits"]
["Type of Benefit",null,null,"Computation"]
["List each grant-support fringe benefit that is provided to the grant-funded position.",null,null,"Show the basis for computation."]
[null,null,null,"Base",null,"Rate",null,null,"Total Cost","Non-Federal Contribution","Federal Request"]
[]
[null,null,null,null,null,null,null,null,{"$f":"CEILING(D25*F25,1)","v":0},null,{"$f":"IF(I25-J25<0,0,I25-J25)","v":0}]
[null,null,null,null,null,null,null,null,{"$f":"CEILING(D26*F26,1)","v":0},null,{"$f":"IF(I26-J26<0,0,I26-J26)","v":0}]
["Total",null,null,null,null,null,null,null,{"$f":"SUM(I25:I26)","v":0},{"$f":"SUM(J25:J26)","v":0},{"$f":"SUM(K25:K26)","v":0}]
["Narrative"]
[]
[]
["C. Travel"]
["Purpose of Travel","Location",null,"Type of Expense",null,"Computation"]
["Indicate the purpose of each trip or type of trip (training, advisory group meeting)","Indicate the travel destination.",null,"Hotel, airfare, per diem",null,"Compute the cost of each type of expense X the number of people traveling."]
[null,null,null,null,null,"Cost","Duration or Distance","# of Staff","Total Cost","Non-Federal Contribution","Federal Request"]
[]
[null,null,null,null,null,null,null,null,{"$f":"CEILING(F36*G36*H36,1)","v":0},null,{"$f":"IF(I36-J36<0,0,I36-J36)","v":0}]
[null,null,null,null,null,null,null,null,{"$f":"CEILING(F37*G37*H37,1)","v":0},null,{"$f":"IF(I37-J37<0,0,I37-J37)","v":0}]
["Total",null,null,null,null,null,null,null,{"$f":"SUM(I36:I37)","v":0},{"$f":"SUM(J36:J37)","v":0},{"$f":"SUM(K36:K37)","v":0}]
["Narrative"]
[]
[]
["D. Equipment"]
["Item",null,null,"Computation"]
["List and describe each item of equipment that will be purchased",null,null,"Compute the cost (e.g., the number of each item to be purchased X the cost per item)"]
[null,null,null,"# of Items",null,"Cost",null,null,"Total Cost","Non-Federal Contribution","Federal Request"]
[]
[null,null,null,null,null,null,null,null,{"$f":"CEILING(D47*F47,1)","v":0},null,{"$f":"IF(I47-J47<0,0,I47-J47)","v":0}]
[null,null,null,null,null,null,null,null,{"$f":"CEILING(D48*F48,1)","v":0},null,{"$f":"IF(I48-J48<0,0,I48-J48)","v":0}]
["Total",null,null,null,null,null,null,null,{"$f":"SUM(I47:I48)","v":0},{"$f":"SUM(J47:J48)","v":0},{"$f":"SUM(K47:K48)","v":0}]
["Narrative"]
[]
[]
["E. Supplies"]
["Supply Items",null,null,"Computation"]
["Provide a list of the types of items to be purchased with grant funds.",null,null,"Describe the item and the compute the costs. Computation: The number of each item to be purchased X the cost per item."]
[null,null,null,"# of Items",null,"Cost",null,null,"Total Cost","Non-Federal Contribution","Federal Request"]
[]
[null,null,null,null,null,null,null,null,{"$f":"CEILING(D58*F58,1)","v":0},null,{"$f":"IF(I58-J58<0,0,I58-J58)","v":0}]
[null,null,null,null,null,null,null,null,{"$f":"CEILING(D59*F59,1)","v":0},null,{"$f":"IF(I59-J59<0,0,I59-J59)","v":0}]
["Total",null,null,null,null,null,null,null,{"$f":"SUM(I58:I59)","v":0},{"$f":"SUM(J58:J59)","v":0},{"$f":"SUM(K58:K59)","v":0}]
["Narrative"]
[]
[]
["F. Construction"]
["List of Construction Activities",null,null,"Computation"]
["List and describe each item that is part of construction.",null,null,"Compute the costs (e.g., the number of each item to be purchased X the cost per item)"]
[null,null,null,"# of Items",null,"Cost",null,null,"Total Cost","Non-Federal Contribution","Federal Request"]
[]
[null,null,null,null,null,null,null,null,{"$f":"CEILING(D69*F69,1)","v":0},null,{"$f":"IF(I69-J69<0,0,I69-J69)","v":0}]
["N/A",null,null,null,null,null,null,null,{"$f":"CEILING(D70*F70,1)","v":0},null,{"$f":"IF(I70-J70<0,0,I70-J70)","v":0}]
["Total",null,null,null,null,null,null,null,{"$f":"SUM(I69:I70)","v":0},{"$f":"SUM(J69:J70)","v":0},{"$f":"SUM(K69:K70)","v":0}]
["Narrative"]
[]
[]
["G. Subawards (Subgrants)/Procurement Contracts"]
["Item"]
["Procurement contracts:  Provide a description of the products or services to be procured by contract and an estimate of the costs.  Applicants are encouraged to promote free and open competition in awarding contracts.  A separate justification must be provided for sole source procurements in excess of the Simplified Acquisition Threshold (currently $250,000). \n\nSubawards (Subgrants):  Provide a description of the activities to be carried out by subrecipients.  Include “(subaward)” label for each “Subawards (Subgrants)” entry.\n"]
[null,null,null,null,null,null,null,null,"Total Cost","Non-Federal Contribution","Federal Request"]
[]
[null,null,null,null,null,null,null,null,null,null,{"$f":"IF(I80-J80<0,0,I80-J80)","v":0}]
[null,null,null,null,null,null,null,null,null,null,{"$f":"IF(I81-J81<0,0,I81-J81)","v":0}]
["Purpose of Travel","Location",null,"Type of Expense",null,"Computation"]
["Indicate the purpose of each trip or type of trip (training, advisory group meeting)","Indicate the travel destination.",null,"Hotel, airfare, per diem",null,"Compute the cost of each type of expense X the number of people traveling."]
[null,null,null,null,null,"Cost","Duration or Distance","# of Staff","Total Cost","Non-Federal Contribution","Federal Request"]
[]
[null,null,null,null,null,null,null,null,{"$f":"CEILING(F86*G86*H86,1)","v":0},null,{"$f":"IF(I86-J86<0,0,I86-J86)","v":0}]
[null,null,null,null,null,null,null,null,{"$f":"CEILING(F87*G87*H87,1)","v":0},null,{"$f":"IF(I87-J87<0,0,I87-J87)","v":0}]
["Total",null,null,null,null,null,null,null,{"$f":"SUM(I80:I81,I86:I87)","v":0},{"$f":"SUM(J80:J87)","v":0},{"$f":"SUM(K80:K87)","v":0}]
["Narrative"]
[]
[]
["H. Other Costs"]
["Description "]
["List and describe items that will be paid with grants funds."]
[null,null,null,null,null,null,null,null,"Total Cost","Non-Federal Contribution","Federal Request"]
[]
[null,null,null,null,null,null,null,null,null,null,{"$f":"IF(I97-J97<0,0,I97-J97)","v":0}]
[null,null,null,null,null,null,null,null,null,null,{"$f":"IF(I98-J98<0,0,I98-J98)","v":0}]
["Total",null,null,null,null,null,null,null,{"$f":"SUM(I97:I98)","v":0},{"$f":"SUM(J97:J98)","v":0},{"$f":"SUM(K97:K98)","v":0}]
["Narrative"]
[]
[]
["I. Indirect Costs"]
["Description",null,null,"Computation"]
["Describe what the approved rate is and how it is applied.",null,null,"Compute the indirect costs for those portions of the program which allow such costs."]
[null,null,null,"Base",null,"Indirect Cost Rate",null,null,"Total Cost","Non-Federal Contribution","Federal Request"]
[]
[null,null,null,null,null,null,null,null,{"$f":"CEILING(D108*F108,1)","v":0},null,{"$f":"IF(I108-J108<0,0,I108-J108)","v":0}]
[null,null,null,null,null,null,null,null,{"$f":"CEILING(D109*F109,1)","v":0},null,{"$f":"IF(I109-J109<0,0,I109-J109)","v":0}]
["Total",null,null,null,null,null,null,null,{"$f":"SUM(I108:I109)","v":0},{"$f":"SUM(J108:J109)","v":0},{"$f":"SUM(K108:K109)","v":0}]
["Narrative"]
[]
[]
["Budget Summary"]
["A. Personnel",null,null,null,null,null,null,null,null,null,{"$f":"'Budget Summary'!D7","v":0}]
["B. Fringe Benefits",null,null,null,null,null,null,null,null,null,{"$f":"'Budget Summary'!D8","v":0}]
["C. Travel",null,null,null,null,null,null,null,null,null,{"$f":"'Budget Summary'!D9","v":0}]
["D. Equipment",null,null,null,null,null,null,null,null,null,{"$f":"'Budget Summary'!D10","v":0}]
["E. Supplies",null,null,null,null,null,null,null,null,null,{"$f":"'Budget Summary'!D11","v":0}]
["F. Construction",null,null,null,null,null,null,null,null,null,{"$f":"'Budget Summary'!D12","v":"N/A"}]
["G. Subawards (Subgrants)/ Procurement Contracts",null,null,null,null,null,null,null,null,null,{"$f":"'Budget Summary'!D13","v":0}]
["H. Other",null,null,null,null,null,null,null,null,null,{"$f":"'Budget Summary'!D14","v":0}]
["Total Direct Costs",null,null,null,null,null,null,null,null,null,{"$f":"'Budget Summary'!D16","v":0}]
["I. Indirect Costs",null,null,null,null,null,null,null,null,null,{"$f":"'Budget Summary'!D17","v":0}]
["Total Project Costs",null,null,null,null,null,null,null,null,null,{"$f":"'Budget Summary'!D19","v":0}]
["Federal Request",null,null,null,null,null,null,null,null,null,{"$f":"'Budget Summary'!D22","v":0}]
["Non-Federal Contribution",null,null,null,null,null,null,null,null,null,{"$f":"'Budget Summary'!D23","v":0}]
["Required Match Met",null,null,null,null,null,null,null,null,null,{"$f":"'Budget Summary'!D24","v":"N/A"}]

{"sheet":"PA4","index":5,"n_rows":128,"n_cols":11,"rows_kept":128,"cut":false,"hidden":false,"merged":[[122,0,122,9],[123,0,123,9],[124,0,124,9],[125,0,125,9],[126,0,126,9],[127,0,127,9],[113,0,113,10],[114,0,114,9],[115,0,115,9],[116,0,116,9],[117,0,117,9],[118,0,118,9],[119,0,119,9],[120,0,120,9],[121,0,121,9],[0,0,0,5],[0,7,0,10],[1,0,2,0],[1,1,2,5],[9,0,9,1],[11,10,12,10],[13,0,13,1],[13,5,13,6],[14,0,14,1],[14,5,14,6],[10,0,10,1],[11,0,12,1],[11,3,12,3],[11,4,12,4],[11,5,12,6],[11,7,12,7],[11,8,12,8],[11,9,12,9],[11,2,12,2],[10,2,10,10],[9,2,9,10],[4,0,4,10],[5,1,5,10],[6,1,6,2],[22,3,23,4],[22,5,23,7],[22,8,23,8],[22,9,23,9],[22,10,23,10],[17,0,18,10],[20,3,20,10],[21,3,21,10],[15,0,15,7],[21,0,21,2],[20,0,20,2],[22,0,23,2],[26,0,26,7],[28,0,29,10],[31,3,31,4],[31,5,31,10],[32,3,32,4],[32,5,32,10],[33,10,34,10],[24,3,24,4],[24,5,24,7],[25,0,25,1],[25,3,25,4],[25,5,25,7],[33,0,34,4],[33,5,34,5],[33,6,34,6],[33,7,34,7],[33,8,34,8],[33,9,34,9],[32,1,32,2],[24,0,24,2],[31,1,31,2],[43,3,43,10],[44,3,45,4],[44,5,45,7],[44,8,45,8],[44,9,45,9],[35,3,35,4],[36,3,36,4],[37,0,37,7],[39,0,40,10],[42,3,42,10],[44,10,45,10],[35,1,35,2],[43,0,43,2],[42,0,42,2],[44,0,45,2],[55,8,56,8],[55,9,56,9],[55,10,56,10],[48,0,48,7],[50,0,51,10],[53,3,53,10],[54,3,54,10],[46,3,46,4],[46,5,46,7],[47,0,47,1],[47,3,47,4],[47,5,47,7],[46,0,46,2],[54,0,54,2],[53,0,53,2],[57,3,57,4],[57,5,57,7],[58,0,58,1],[58,3,58,4],[58,5,58,7],[55,3,56,4],[55,5,56,7],[57,0,57,2],[55,0,56,2],[66,9,67,9],[66,10,67,10],[59,0,59,7],[61,0,62,10],[64,3,64,10],[65,3,65,10],[66,0,67,2],[65,0,65,2],[64,0,64,2],[68,3,68,4],[68,5,68,7],[69,0,69,1],[69,3,69,4],[69,5,69,7],[66,3,67,4],[66,5,67,7],[68,0,68,2],[66,8,67,8],[70,0,70,7],[72,0,73,10],[75,0,75,10],[76,0,76,10],[77,0,78,7],[77,8,78,8],[77,9,78,9],[77,10,78,10],[82,1,82,2],[81,1,81,2],[74,0,74,1],[83,0,84,4],[83,5,84,5],[83,6,84,6],[83,7,84,7],[83,8,84,8],[83,9,84,9],[79,0,79,7],[80,0,80,7],[81,3,81,4],[81,5,81,10],[82,3,82,4],[82,5,82,10],[83,10,84,10],[96,0,96,7],[104,0,104,2],[103,0,103,2],[85,3,85,4],[86,3,86,4],[87,0,87,7],[89,0,90,10],[92,0,92,10],[85,1,85,2],[97,0,97,7],[98,0,98,7],[100,0,101,10],[103,3,103,10],[104,3,104,10],[93,0,93,10],[94,0,95,7],[6,4,6,7],[7,4,7,7],[6,9,6,10],[6,11,6,13],[7,9,7,10],[7,11,7,13],[7,1,7,2],[109,0,109,7],[111,0,112,10],[107,3,107,4],[107,5,107,7],[108,0,108,1],[108,3,108,4],[108,5,108,7],[105,3,106,4],[105,5,106,7],[105,8,106,8],[105,9,106,9],[105,10,106,10],[105,0,106,2],[107,0,107,2],[94,8,95,8],[94,9,95,9],[94,10,95,10]]}
[{"$f":"'Budget Sheet Instructions'!B16","v":"Tribal Justice System Infrastructure Program"},null,null,null,null,null,null,"Purpose Area (4)"]
["Program Office",null,null,null,null,null,null,null,{"$f":"'Budget Sheet Instructions'!J16","v":"BJA"},{"$f":"'Budget Sheet Instructions'!K16","v":"16.596"}]
[]
["Note: Non-Federal match is not required for this purpose area but can be provided if desired."]
["Budget Point of Contact Information:"]
["Tribe Name: "]
["Contact Last Name:",null,null,"First:",null,null,null,null,"Middle: "]
["Contact Phone: ",null,null,"Fax:",null,null,null,null,"Email:"]
["A. Personnel"]
["Name/Position",null,"Computation"]
["List each position and name, if known. New positions may be grouped by type.",null,"Show annual salary rate & amount of time devoted to the project for each name/position."]
[null,null,"# of Positions","Salary ","Rate","Time Worked\n(# of hours, days, months, years)",null,"%","Total Cost","Non-Federal Contribution","Federal Request"]
[]
[null,null,null,null,null,null,null,null,{"$f":"CEILING(C14*D14*F14*H14,1)","v":0},null,{"$f":"IF(I14-J14<0,0,I14-J14)","v":0}]
[null,null,null,null,null,null,null,null,{"$f":"CEILING(D15*F15*H15,1)","v":0},null,{"$f":"IF(I15-J15<0,0,I15-J15)","v":0}]
["Total(s)",null,null,null,null,null,null,null,{"$f":"SUM(I14:I15)","v":0},{"$f":"SUM(J14:J15)","v":0},{"$f":"SUM(K14:K15)","v":0}]
["Narrative"]
[]
[]
["B. Fringe Benefits"]
["Type of Benefit",null,null,"Computation"]
["List each grant-support fringe benefit that is provided to the grant-funded position.",null,null,"Show the basis for computation."]
[null,null,null,"Base",null,"Rate",null,null,"Total Cost","Non-Federal Contribution","Federal Request"]
[]
[null,null,null,null,null,null,null,null,{"$f":"CEILING(D25*F25,1)","v":0},null,{"$f":"IF(I25-J25<0,0,I25-J25)","v":0}]
[null,null,null,null,null,null,null,null,{"$f":"CEILING(D26*F26,1)","v":0},null,{"$f":"IF(I26-J26<0,0,I26-J26)","v":0}]
["Total",null,null,null,null,null,null,null,{"$f":"SUM(I25:I26)","v":0},{"$f":"SUM(J25:J26)","v":0},{"$f":"SUM(K25:K26)","v":0}]
["Narrative"]
[]
[]
["C. Travel"]
["Purpose of Travel","Location",null,"Type of Expense",null,"Computation"]
["Indicate the purpose of each trip or type of trip (training, advisory group meeting)","Indicate the travel destination.",null,"Hotel, airfare, per diem",null,"Compute the cost of each type of expense X the number of people traveling."]
[null,null,null,null,null,"Cost","Duration or Distance","# of Staff","Total Cost","Non-Federal Contribution","Federal Request"]
[]
[null,null,null,null,null,null,null,null,{"$f":"CEILING(F36*G36*H36,1)","v":0},null,{"$f":"IF(I36-J36<0,0,I36-J36)","v":0}]
[null,null,null,null,null,null,null,null,{"$f":"CEILING(F37*G37*H37,1)","v":0},null,{"$f":"IF(I37-J37<0,0,I37-J37)","v":0}]
["Total",null,null,null,null,null,null,null,{"$f":"SUM(I36:I37)","v":0},{"$f":"SUM(J36:J37)","v":0},{"$f":"SUM(K36:K37)","v":0}]
["Narrative"]
[]
[]
["D. Equipment"]
["Item",null,null,"Computation"]
["List and describe each item of equipment that will be purchased",null,null,"Compute the cost (e.g., the number of each item to be purchased X the cost per item)"]
[null,null,null,"# of Items",null,"Cost",null,null,"Total Cost","Non-Federal Contribution","Federal Request"]
[]
[null,null,null,null,null,null,null,null,{"$f":"CEILING(D47*F47,1)","v":0},null,{"$f":"IF(I47-J47<0,0,I47-J47)","v":0}]
[null,null,null,null,null,null,null,null,{"$f":"CEILING(D48*F48,1)","v":0},null,{"$f":"IF(I48-J48<0,0,I48-J48)","v":0}]
["Total",null,null,null,null,null,null,null,{"$f":"SUM(I47:I48)","v":0},{"$f":"SUM(J47:J48)","v":0},{"$f":"SUM(K47:K48)","v":0}]
["Narrative"]
[]
[]
["E. Supplies"]
["Supply Items",null,null,"Computation"]
["Provide a list of the types of items to be purchased with grant funds.",null,null,"Describe the item and the compute the costs. Computation: The number of each item to be purchased X the cost per item."]
[null,null,null,"# of Items",null,"Cost",null,null,"Total Cost","Non-Federal Contribution","Federal Request"]
[]
[null,null,null,null,null,null,null,null,{"$f":"CEILING(D58*F58,1)","v":0},null,{"$f":"IF(I58-J58<0,0,I58-J58)","v":0}]
[null,null,null,null,null,null,null,null,{"$f":"CEILING(D59*F59,1)","v":0},null,{"$f":"IF(I59-J59<0,0,I59-J59)","v":0}]
["Total",null,null,null,null,null,null,null,{"$f":"SUM(I58:I59)","v":0},{"$f":"SUM(J58:J59)","v":0},{"$f":"SUM(K58:K59)","v":0}]
["Narrative"]
[]
[]
["F. Construction"]
["List of Construction Activities",null,null,"Computation"]
["List and describe each item that is part of construction.",null,null,"Compute the costs (e.g., the number of each item to be purchased X the cost per item)"]
[null,null,null,"# of Items",null,"Cost",null,null,"Total Cost","Non-Federal Contribution","Federal Request"]
[]
[null,null,null,null,null,null,null,null,{"$f":"CEILING(D69*F69,1)","v":0},null,{"$f":"IF(I69-J69<0,0,I69-J69)","v":0}]
[null,null,null,null,null,null,null,null,{"$f":"CEILING(D70*F70,1)","v":0},null,{"$f":"IF(I70-J70<0,0,I70-J70)","v":0}]
["Total",null,null,null,null,null,null,null,{"$f":"SUM(I69:I70)","v":0},{"$f":"SUM(J69:J70)","v":0},{"$f":"SUM(K69:K70)","v":0}]
["Narrative"]
[]
[]
["G. Subawards (Subgrants)/Procurement Contracts"]
["Item"]
["Procurement contracts:  Provide a description of the products or services to be procured by contract and an estimate of the costs.  Applicants are encouraged to promote free and open competition in awarding contracts.  A separate justification must be provided for sole source procurements in excess of the Simplified Acquisition Threshold (currently $250,000). \n\nSubawards (Subgrants):  Provide a description of the activities to be carried out by subrecipients.  Include “(subaward)” label for each “Subawards (Subgrants)” entry."]
[null,null,null,null,null,null,null,null,"Total Cost","Non-Federal Contribution","Federal Request"]
[]
[null,null,null,null,null,null,null,null,null,null,{"$f":"IF(I80-J80<0,0,I80-J80)","v":0}]
[null,null,null,null,null,null,null,null,null,null,{"$f":"IF(I81-J81<0,0,I81-J81)","v":0}]
["Purpose of Travel","Location",null,"Type of Expense",null,"Computation"]
["Indicate the purpose of each trip or type of trip (training, advisory group meeting)","Indicate the travel destination.",null,"Hotel, airfare, per diem",null,"Compute the cost of each type of expense X the number of people traveling."]
[null,null,null,null,null,"Cost","Duration or Distance","# of Staff","Total Cost","Non-Federal Contribution","Federal Request"]
[]
[null,null,null,null,null,null,null,null,{"$f":"CEILING(F86*G86*H86,1)","v":0},null,{"$f":"IF(I86-J86<0,0,I86-J86)","v":0}]
[null,null,null,null,null,null,null,null,{"$f":"CEILING(F87*G87*H87,1)","v":0},null,{"$f":"IF(I87-J87<0,0,I87-J87)","v":0}]
["Total",null,null,null,null,null,null,null,{"$f":"SUM(I80:I81,I86:I87)","v":0},{"$f":"SUM(J80:J87)","v":0},{"$f":"SUM(K80:K87)","v":0}]
["Narrative"]
[]
[]
["H. Other Costs"]
["Description "]
["List and describe items that will be paid with grants funds."]
[null,null,null,null,null,null,null,null,"Total Cost","Non-Federal Contribution","Federal Request"]
[]
[null,null,null,null,null,null,null,null,null,null,{"$f":"IF(I97-J97<0,0,I97-J97)","v":0}]
[null,null,null,null,null,null,null,null,null,null,{"$f":"IF(I98-J98<0,0,I98-J98)","v":0}]
["Total",null,null,null,null,null,null,null,{"$f":"SUM(I97:I98)","v":0},{"$f":"SUM(J97:J98)","v":0},{"$f":"SUM(K97:K98)","v":0}]
["Narrative"]
[]
[]
["I. Indirect Costs"]
["Description",null,null,"Computation"]
["Describe what the approved rate is and how it is applied.",null,null,"Compute the indirect costs for those portions of the program which allow such costs."]
[null,null,null,"Base",null,"Indirect Cost Rate",null,null,"Total Cost","Non-Federal Contribution","Federal Request"]
[]
[null,null,null,null,null,null,null,null,{"$f":"CEILING(D108*F108,1)","v":0},null,{"$f":"IF(I108-J108<0,0,I108-J108)","v":0}]
[null,null,null,null,null,null,null,null,{"$f":"CEILING(D109*F109,1)","v":0},null,{"$f":"IF(I109-J109<0,0,I109-J109)","v":0}]
["Total",null,null,null,null,null,null,null,{"$f":"SUM(I108:I109)","v":0},{"$f":"SUM(J108:J109)","v":0},{"$f":"SUM(K108:K109)","v":0}]
["Narrative"]
[]
[]
["Budget Summary"]
["A. Personnel",null,null,null,null,null,null,null,null,null,{"$f":"'Budget Summary'!E7","v":0}]
["B. Fringe Benefits",null,null,null,null,null,null,null,null,null,{"$f":"'Budget Summary'!E8","v":0}]
["C. Travel",null,null,null,null,null,null,null,null,null,{"$f":"'Budget Summary'!E9","v":0}]
["D. Equipment",null,null,null,null,null,null,null,null,null,{"$f":"'Budget Summary'!E10","v":0}]
["E. Supplies",null,null,null,null,null,null,null,null,null,{"$f":"'Budget Summary'!E11","v":0}]
["F. Construction",null,null,null,null,null,null,null,null,null,{"$f":"'Budget Summary'!E12","v":0}]
["G. Subawards (Subgrants)/ Procurement Contracts",null,null,null,null,null,null,null,null,null,{"$f":"'Budget Summary'!E13","v":0}]
["H. Other",null,null,null,null,null,null,null,null,null,{"$f":"'Budget Summary'!E14","v":0}]
["Total Direct Costs",null,null,null,null,null,null,null,null,null,{"$f":"'Budget Summary'!E16","v":0}]
["I. Indirect Costs",null,null,null,null,null,null,null,null,null,{"$f":"'Budget Summary'!E17","v":0}]
["Total Project Costs",null,null,null,null,null,null,null,null,null,{"$f":"'Budget Summary'!E19","v":0}]
["Federal Request",null,null,null,null,null,null,null,null,null,{"$f":"'Budget Summary'!E22","v":0}]
["Non-Federal Contribution",null,null,null,null,null,null,null,null,null,{"$f":"'Budget Summary'!E23","v":0}]
["Required Match Met",null,null,null,null,null,null,null,null,null,{"$f":"'Budget Summary'!E24","v":"N/A"}]

{"sheet":"PA5","index":6,"n_rows":128,"n_cols":11,"rows_kept":128,"cut":false,"hidden":true,"merged":[[122,0,122,9],[123,0,123,9],[124,0,124,9],[125,0,125,9],[126,0,126,9],[127,0,127,9],[113,0,113,10],[114,0,114,9],[115,0,115,9],[116,0,116,9],[117,0,117,9],[118,0,118,9],[119,0,119,9],[120,0,120,9],[121,0,121,9],[0,0,0,5],[0,7,0,10],[1,0,2,0],[1,1,2,5],[9,0,9,1],[11,10,12,10],[13,0,13,1],[13,5,13,6],[14,0,14,1],[14,5,14,6],[10,0,10,1],[11,0,12,1],[11,3,12,3],[11,4,12,4],[11,5,12,6],[11,7,12,7],[11,8,12,8],[11,9,12,9],[11,2,12,2],[10,2,10,10],[9,2,9,10],[4,0,4,10],[5,1,5,10],[6,1,6,2],[22,3,23,4],[22,5,23,7],[22,8,23,8],[22,9,23,9],[22,10,23,10],[17,0,18,10],[20,3,20,10],[21,3,21,10],[15,0,15,7],[21,0,21,2],[20,0,20,2],[22,0,23,2],[24,3,24,4],[24,5,24,7],[25,0,25,1],[25,3,25,4],[25,5,25,7],[33,0,34,4],[33,5,34,5],[33,6,34,6],[33,7,34,7],[32,1,32,2],[24,0,24,2],[35,3,35,4],[36,3,36,4],[37,0,37,7],[39,0,40,10],[42,3,42,10],[44,10,45,10],[26,0,26,7],[28,0,29,10],[31,3,31,4],[31,5,31,10],[32,3,32,4],[32,5,32,10],[33,10,34,10],[33,8,34,8],[33,9,34,9],[35,1,35,2],[31,1,31,2],[42,0,42,2],[46,3,46,4],[46,5,46,7],[47,0,47,1],[47,3,47,4],[47,5,47,7],[43,3,43,10],[44,3,45,4],[44,5,45,7],[44,8,45,8],[44,9,45,9],[46,0,46,2],[43,0,43,2],[44,0,45,2],[55,3,56,4],[55,5,56,7],[55,8,56,8],[55,9,56,9],[55,10,56,10],[48,0,48,7],[50,0,51,10],[53,3,53,10],[54,3,54,10],[54,0,54,2],[53,0,53,2],[55,0,56,2],[66,9,67,9],[66,10,67,10],[59,0,59,7],[61,0,62,10],[64,3,64,10],[65,3,65,10],[65,0,65,2],[64,0,64,2],[57,3,57,4],[57,5,57,7],[58,0,58,1],[58,3,58,4],[58,5,58,7],[57,0,57,2],[68,3,68,4],[68,5,68,7],[69,3,69,4],[69,5,69,7],[66,3,67,4],[66,5,67,7],[66,0,67,2],[69,0,69,2],[66,8,67,8],[68,0,68,2],[79,0,79,7],[80,0,80,7],[81,3,81,4],[81,5,81,10],[82,3,82,4],[82,5,82,10],[83,10,84,10],[70,0,70,7],[72,0,73,10],[75,0,75,10],[76,0,76,10],[77,0,78,7],[77,8,78,8],[77,9,78,9],[77,10,78,10],[82,1,82,2],[81,1,81,2],[74,0,74,1],[104,3,104,10],[93,0,93,10],[94,0,95,7],[94,8,95,8],[94,9,95,9],[83,0,84,4],[83,5,84,5],[83,6,84,6],[83,7,84,7],[83,8,84,8],[83,9,84,9],[103,0,103,2],[85,3,85,4],[86,3,86,4],[87,0,87,7],[89,0,90,10],[92,0,92,10],[85,1,85,2],[97,0,97,7],[98,0,98,7],[100,0,101,10],[103,3,103,10],[7,1,7,2],[6,4,6,7],[7,4,7,7],[6,9,6,10],[6,11,6,13],[7,9,7,10],[7,11,7,13],[109,0,109,7],[111,0,112,10],[107,3,107,4],[107,5,107,7],[108,0,108,1],[108,3,108,4],[108,5,108,7],[105,3,106,4],[105,5,106,7],[105,8,106,8],[105,9,106,9],[105,10,106,10],[105,0,106,2],[107,0,107,2],[94,10,95,10],[96,0,96,7],[104,0,104,2]]}
[{"$f":"'Budget Sheet Instructions'!B17","v":"Office on Violence Against Women Tribal Governments Program"},null,null,null,null,null,null,"Purpose Area (5)"]
["Program Office",null,null,null,null,null,null,null,{"$f":"'Budget Sheet Instructions'!J17","v":"OVW"},{"$f":"'Budget Sheet Instructions'!K17","v":"16.587"}]
[]
["Note: Non-Federal match is not required for this purpose area but can be provided if desired."]
["Budget Point of Contact Information:"]
["Tribe Name: "]
["Contact Last Name:",null,null,"First:",null,null,null,null,"Middle: "]
["Contact Phone: ",null,null,"Fax:",null,null,null,null,"Email:"]
["A. Personnel"]
["Name/Position",null,"Computation"]
["List each position and name, if known. New positions may be grouped by type.",null,"Show annual salary rate & amount of time devoted to the project for each name/position."]
[null,null,"# of Positions","Salary ","Rate","Time Worked\n(# of hours, days, months, years)",null,"%","Total Cost","Non-Federal Contribution","Federal Request"]
[]
[null,null,null,null,null,null,null,null,{"$f":"CEILING(C14*D14*F14*H14,1)","v":0},null,{"$f":"IF(I14-J14<0,0,I14-J14)","v":0}]
[null,null,null,null,null,null,null,null,{"$f":"CEILING(D15*F15*H15,1)","v":0},null,{"$f":"IF(I15-J15<0,0,I15-J15)","v":0}]
["Total(s)",null,null,null,null,null,null,null,{"$f":"SUM(I14:I15)","v":0},{"$f":"SUM(J14:J15)","v":0},{"$f":"SUM(K14:K15)","v":0}]
["Narrative"]
[]
[]
["B. Fringe Benefits"]
["Type of Benefit",null,null,"Computation"]
["List each grant-support fringe benefit that is provided to the grant-funded position.",null,null,"Show the basis for computation."]
[null,null,null,"Base",null,"Rate",null,null,"Total Cost","Non-Federal Contribution","Federal Request"]
[]
[null,null,null,null,null,null,null,null,{"$f":"CEILING(D25*F25,1)","v":0},null,{"$f":"IF(I25-J25<0,0,I25-J25)","v":0}]
[null,null,null,null,null,null,null,null,{"$f":"CEILING(D26*F26,1)","v":0},null,{"$f":"IF(I26-J26<0,0,I26-J26)","v":0}]
["Total",null,null,null,null,null,null,null,{"$f":"SUM(I25:I26)","v":0},{"$f":"SUM(J25:J26)","v":0},{"$f":"SUM(K25:K26)","v":0}]
["Narrative"]
[]
[]
["C. Travel"]
["Purpose of Travel","Location",null,"Type of Expense",null,"Computation"]
["Indicate the purpose of each trip or type of trip (training, advisory group meeting)","Indicate the travel destination.",null,"Hotel, airfare, per diem",null,"Compute the cost of each type of expense X the number of people traveling."]
[null,null,null,null,null,"Cost","Duration or Distance","# of Staff","Total Cost","Non-Federal Contribution","Federal Request"]
[]
[null,null,null,null,null,null,null,null,{"$f":"CEILING(F36*G36*H36,1)","v":0},null,{"$f":"IF(I36-J36<0,0,I36-J36)","v":0}]
[null,null,null,null,null,null,null,null,{"$f":"CEILING(F37*G37*H37,1)","v":0},null,{"$f":"IF(I37-J37<0,0,I37-J37)","v":0}]
["Total",null,null,null,null,null,null,null,{"$f":"SUM(I36:I37)","v":0},{"$f":"SUM(J36:J37)","v":0},{"$f":"SUM(K36:K37)","v":0}]
["Narrative"]
[]
[]
["D. Equipment"]
["Item",null,null,"Computation"]
["List and describe each item of equipment that will be purchased",null,null,"Compute the cost (e.g., the number of each item to be purchased X the cost per item)"]
[null,null,null,"# of Items",null,"Cost",null,null,"Total Cost","Non-Federal Contribution","Federal Request"]
[]
[null,null,null,null,null,null,null,null,{"$f":"CEILING(D47*F47,1)","v":0},null,{"$f":"IF(I47-J47<0,0,I47-J47)","v":0}]
[null,null,null,null,null,null,null,null,{"$f":"CEILING(D48*F48,1)","v":0},null,{"$f":"IF(I48-J48<0,0,I48-J48)","v":0}]
["Total",null,null,null,null,null,null,null,{"$f":"SUM(I47:I48)","v":0},{"$f":"SUM(J47:J48)","v":0},{"$f":"SUM(K47:K48)","v":0}]
["Narrative"]
[]
[]
["E. Supplies"]
["Supply Items",null,null,"Computation"]
["Provide a list of the types of items to be purchased with grant funds.",null,null,"Describe the item and the compute the costs. Computation: The number of each item to be purchased X the cost per item."]
[null,null,null,"# of Items",null,"Cost",null,null,"Total Cost","Non-Federal Contribution","Federal Request"]
[]
[null,null,null,null,null,null,null,null,{"$f":"CEILING(D58*F58,1)","v":0},null,{"$f":"IF(I58-J58<0,0,I58-J58)","v":0}]
[null,null,null,null,null,null,null,null,{"$f":"CEILING(D59*F59,1)","v":0},null,{"$f":"IF(I59-J59<0,0,I59-J59)","v":0}]
["Total",null,null,null,null,null,null,null,{"$f":"SUM(I58:I59)","v":0},{"$f":"SUM(J58:J59)","v":0},{"$f":"SUM(K58:K59)","v":0}]
["Narrative"]
[]
[]
["F. Construction"]
["List of Construction Activities",null,null,"Computation"]
["List and describe each item that is part of construction.",null,null,"Compute the costs (e.g., the number of each item to be purchased X the cost per item)"]
[null,null,null,"# of Items",null,"Cost",null,null,"Total Cost","Non-Federal Contribution","Federal Request"]
[]
[null,null,null,null,null,null,null,null,{"$f":"CEILING(D69*F69,1)","v":0},null,{"$f":"IF(I69-J69<0,0,I69-J69)","v":0}]
["N/A",null,null,null,null,null,null,null,{"$f":"CEILING(D70*F70,1)","v":0},null,{"$f":"IF(I70-J70<0,0,I70-J70)","v":0}]
["Total",null,null,null,null,null,null,null,{"$f":"SUM(I69:I70)","v":0},{"$f":"SUM(J69:J70)","v":0},{"$f":"SUM(K69:K70)","v":0}]
["Narrative"]
[]
[]
["G. Subawards (Subgrants)/Procurement Contracts"]
["Item"]
["Procurement contracts:  Provide a description of the products or services to be procured by contract and an estimate of the costs.  Applicants are encouraged to promote free and open competition in awarding contracts.  A separate justification must be provided for sole source procurements in excess of the Simplified Acquisition Threshold (currently $150,000). \n\nSubawards (Subgrants):  Provide a description of the activities to be carried out by subrecipients.  Include “(subaward)” label for each “Subawards (Subgrants)” entry."]
[null,null,null,null,null,null,null,null,"Total Cost","Non-Federal Contribution","Federal Request"]
[]
[null,null,null,null,null,null,null,null,null,null,{"$f":"IF(I80-J80<0,0,I80-J80)","v":0}]
[null,null,null,null,null,null,null,null,null,null,{"$f":"IF(I81-J81<0,0,I81-J81)","v":0}]
["Purpose of Travel","Location",null,"Type of Expense",null,"Computation"]
["Indicate the purpose of each trip or type of trip (training, advisory group meeting)","Indicate the travel destination.",null,"Hotel, airfare, per diem",null,"Compute the cost of each type of expense X the number of people traveling."]
[null,null,null,null,null,"Cost","Duration or Distance","# of Staff","Total Cost","Non-Federal Contribution","Federal Request"]
[]
[null,null,null,null,null,null,null,null,{"$f":"CEILING(F86*G86*H86,1)","v":0},null,{"$f":"IF(I86-J86<0,0,I86-J86)","v":0}]
[null,null,null,null,null,null,null,null,{"$f":"CEILING(F87*G87*H87,1)","v":0},null,{"$f":"IF(I87-J87<0,0,I87-J87)","v":0}]
["Total",null,null,null,null,null,null,null,{"$f":"SUM(I80:I81,I86:I87)","v":0},{"$f":"SUM(J80:J87)","v":0},{"$f":"SUM(K80:K87)","v":0}]
["Narrative"]
[]
[]
["H. Other Costs"]
["Description "]
["List and describe items that will be paid with grants funds."]
[null,null,null,null,null,null,null,null,"Total Cost","Non-Federal Contribution","Federal Request"]
[]
[null,null,null,null,null,null,null,null,null,null,{"$f":"IF(I97-J97<0,0,I97-J97)","v":0}]
[null,null,null,null,null,null,null,null,null,null,{"$f":"IF(I98-J98<0,0,I98-J98)","v":0}]
["Total",null,null,null,null,null,null,null,{"$f":"SUM(I97:I98)","v":0},{"$f":"SUM(J97:J98)","v":0},{"$f":"SUM(K97:K98)","v":0}]
["Narrative"]
[]
[]
["I. Indirect Costs"]
["Description",null,null,"Computation"]
["Describe what the approved rate is and how it is applied.",null,null,"Compute the indirect costs for those portions of the program which allow such costs."]
[null,null,null,"Base",null,"Indirect Cost Rate",null,null,"Total Cost","Non-Federal Contribution","Federal Request"]
[]
[null,null,null,null,null,null,null,null,{"$f":"CEILING(D108*F108,1)","v":0},null,{"$f":"IF(I108-J108<0,0,I108-J108)","v":0}]
[null,null,null,null,null,null,null,null,{"$f":"CEILING(D109*F109,1)","v":0},null,{"$f":"IF(I109-J109<0,0,I109-J109)","v":0}]
["Total",null,null,null,null,null,null,null,{"$f":"SUM(I108:I109)","v":0},{"$f":"SUM(J108:J109)","v":0},{"$f":"SUM(K108:K109)","v":0}]
["Narrative"]
[]
[]
["Budget Summary"]
["A. Personnel",null,null,null,null,null,null,null,null,null,{"$f":"'Budget Summary'!F7","v":0}]
["B. Fringe Benefits",null,null,null,null,null,null,null,null,null,{"$f":"'Budget Summary'!F8","v":0}]
["C. Travel",null,null,null,null,null,null,null,null,null,{"$f":"'Budget Summary'!F9","v":0}]
["D. Equipment",null,null,null,null,null,null,null,null,null,{"$f":"'Budget Summary'!F10","v":0}]
["E. Supplies",null,null,null,null,null,null,null,null,null,{"$f":"'Budget Summary'!F11","v":0}]
["F. Construction",null,null,null,null,null,null,null,null,null,{"$f":"'Budget Summary'!F12","v":"N/A"}]
["G. Subawards (Subgrants)/ Procurement Contracts",null,null,null,null,null,null,null,null,null,{"$f":"'Budget Summary'!F13","v":0}]
["H. Other",null,null,null,null,null,null,null,null,null,{"$f":"'Budget Summary'!F14","v":0}]
["Total Direct Costs",null,null,null,null,null,null,null,null,null,{"$f":"'Budget Summary'!F16","v":0}]
["I. Indirect Costs",null,null,null,null,null,null,null,null,null,{"$f":"'Budget Summary'!F17","v":0}]
["Total Project Costs",null,null,null,null,null,null,null,null,null,{"$f":"'Budget Summary'!F19","v":0}]
["Federal Request",null,null,null,null,null,null,null,null,null,{"$f":"'Budget Summary'!F22","v":0}]
["Non-Federal Contribution",null,null,null,null,null,null,null,null,null,{"$f":"'Budget Summary'!F23","v":0}]
["Required Match Met",null,null,null,null,null,null,null,null,null,{"$f":"'Budget Summary'!F24","v":"N/A"}]

{"sheet":"PA6","index":7,"n_rows":128,"n_cols":11,"rows_kept":128,"cut":false,"hidden":false,"merged":[[122,0,122,9],[123,0,123,9],[124,0,124,9],[125,0,125,9],[126,0,126,9],[127,0,127,9],[113,0,113,10],[114,0,114,9],[115,0,115,9],[116,0,116,9],[117,0,117,9],[118,0,118,9],[119,0,119,9],[120,0,120,9],[121,0,121,9],[108,0,108,1],[108,3,108,4],[108,5,108,7],[109,0,109,7],[111,0,112,10],[107,3,107,4],[107,5,107,7],[107,0,107,2],[104,3,104,10],[105,3,106,4],[105,5,106,7],[105,8,106,8],[105,9,106,9],[105,10,106,10],[96,0,96,7],[97,0,97,7],[98,0,98,7],[100,0,101,10],[103,3,103,10],[104,0,104,2],[103,0,103,2],[105,0,106,2],[92,0,92,10],[93,0,93,10],[94,0,95,7],[94,8,95,8],[94,9,95,9],[94,10,95,10],[83,10,84,10],[85,3,85,4],[86,3,86,4],[87,0,87,7],[89,0,90,10],[83,0,84,4],[83,5,84,5],[83,6,84,6],[83,7,84,7],[83,8,84,8],[83,9,84,9],[85,1,85,2],[82,3,82,4],[82,5,82,10],[70,0,70,7],[72,0,73,10],[75,0,75,10],[76,0,76,10],[77,0,78,7],[77,8,78,8],[77,9,78,9],[77,10,78,10],[82,1,82,2],[81,1,81,2],[65,0,65,2],[66,0,67,2],[69,0,69,2],[68,0,68,2],[79,0,79,7],[80,0,80,7],[81,3,81,4],[81,5,81,10],[68,3,68,4],[68,5,68,7],[69,3,69,4],[69,5,69,7],[65,3,65,10],[66,3,67,4],[66,5,67,7],[66,8,67,8],[66,9,67,9],[66,10,67,10],[74,0,74,1],[58,0,58,1],[58,3,58,4],[58,5,58,7],[59,0,59,7],[61,0,62,10],[64,3,64,10],[57,3,57,4],[57,5,57,7],[64,0,64,2],[57,0,57,2],[46,0,46,2],[54,3,54,10],[55,3,56,4],[55,5,56,7],[55,8,56,8],[55,9,56,9],[55,10,56,10],[47,0,47,1],[47,3,47,4],[47,5,47,7],[48,0,48,7],[50,0,51,10],[53,3,53,10],[54,0,54,2],[53,0,53,2],[55,0,56,2],[46,3,46,4],[46,5,46,7],[44,8,45,8],[44,9,45,9],[44,10,45,10],[35,3,35,4],[36,3,36,4],[37,0,37,7],[39,0,40,10],[42,3,42,10],[42,0,42,2],[35,1,35,2],[43,0,43,2],[43,3,43,10],[44,0,45,2],[44,3,45,4],[44,5,45,7],[32,3,32,4],[32,5,32,10],[33,0,34,4],[33,5,34,5],[33,6,34,6],[33,7,34,7],[33,8,34,8],[33,9,34,9],[33,10,34,10],[32,1,32,2],[25,0,25,1],[25,3,25,4],[25,5,25,7],[26,0,26,7],[28,0,29,10],[31,3,31,4],[31,5,31,10],[24,3,24,4],[24,5,24,7],[31,1,31,2],[24,0,24,2],[30,1,30,10],[22,3,23,4],[22,5,23,7],[22,8,23,8],[22,9,23,9],[22,10,23,10],[15,0,15,7],[17,0,18,10],[20,3,20,10],[21,3,21,10],[21,0,21,2],[20,0,20,2],[22,0,23,2],[14,0,14,1],[14,5,14,6],[10,0,10,1],[11,0,12,1],[11,3,12,3],[11,4,12,4],[11,5,12,6],[11,7,12,7],[11,8,12,8],[0,0,0,5],[0,7,0,10],[1,0,2,0],[1,1,2,5],[9,0,9,1],[13,0,13,1],[13,5,13,6],[11,2,12,2],[9,2,9,10],[4,0,4,10],[5,1,5,10],[6,1,6,2],[6,9,6,10],[6,11,6,13],[7,9,7,10],[7,11,7,13],[7,1,7,2],[6,4,6,7],[7,4,7,7],[11,9,12,9],[11,10,12,10],[10,2,10,10]]}
[{"$f":"'Budget Sheet Instructions'!B18","v":"Children’s Justice Act Partnerships for Indian Communities"},null,null,null,null,null,null,"Purpose Area (6)"]
["Program Office",null,null,null,null,null,null,null,{"$f":"'Budget Sheet Instructions'!J18","v":"OVC"},{"$f":"'Budget Sheet Instructions'!K18","v":"16.853"}]
[]
["Note: Non-Federal match is not required for this purpose area but can be provided if desired."]
["Budget Point of Contact Information:"]
["Tribe Name: "]
["Contact Last Name:",null,null,"First:",null,null,null,null,"Middle: "]
["Contact Phone: ",null,null,"Fax:",null,null,null,null,"Email:"]
["A. Personnel"]
["Name/Position",null,"Computation"]
["List each position and name, if known. New positions may be grouped by type.",null,"Show annual salary rate & amount of time devoted to the project for each name/position."]
[null,null,"# of Positions","Salary ","Rate","Time Worked\n(# of hours, days, months, years)",null,"%","Total Cost","Non-Federal Contribution","Federal Request"]
[]
[null,null,null,null,null,null,null,null,{"$f":"CEILING(C14*D14*F14*H14,1)","v":0},null,{"$f":"IF(I14-J14<0,0,I14-J14)","v":0}]
[null,null,null,null,null,null,null,null,{"$f":"CEILING(D15*F15*H15,1)","v":0},null,{"$f":"IF(I15-J15<0,0,I15-J15)","v":0}]
["Total(s)",null,null,null,null,null,null,null,{"$f":"SUM(I14:I15)","v":0},{"$f":"SUM(J14:J15)","v":0},{"$f":"SUM(K14:K15)","v":0}]
["Narrative"]
[]
[]
["B. Fringe Benefits"]
["Type of Benefit",null,null,"Computation"]
["List each grant-support fringe benefit that is provided to the grant-funded position.",null,null,"Show the basis for computation."]
[null,null,null,"Base",null,"Rate",null,null,"Total Cost","Non-Federal Contribution","Federal Request"]
[]
[null,null,null,null,null,null,null,null,{"$f":"CEILING(D25*F25,1)","v":0},null,{"$f":"IF(I25-J25<0,0,I25-J25)","v":0}]
[null,null,null,null,null,null,null,null,{"$f":"CEILING(D26*F26,1)","v":0},null,{"$f":"IF(I26-J26<0,0,I26-J26)","v":0}]
["Total",null,null,null,null,null,null,null,{"$f":"SUM(I25:I26)","v":0},{"$f":"SUM(J25:J26)","v":0},{"$f":"SUM(K25:K26)","v":0}]
["Narrative"]
[]
[]
["C. Travel","All applicants are required to budget sufficient funds to pay for airfare, lodging, and per diem to send two staff members to: the CTAS Orientation; an OVC-sponsored regional grantee training; and one National Indian Nations Conference. Please base all estimated cost on traveling to Washington, DC for these events."]
["Purpose of Travel","Location",null,"Type of Expense",null,"Computation"]
["Indicate the purpose of each trip or type of trip (training, advisory group meeting)","Indicate the travel destination.",null,"Hotel, airfare, per diem",null,"Compute the cost of each type of expense X the number of people traveling."]
[null,null,null,null,null,"Cost","Duration or Distance","# of Staff","Total Cost","Non-Federal Contribution","Federal Request"]
[]
[null,null,null,null,null,null,null,null,{"$f":"CEILING(F36*G36*H36,1)","v":0},null,{"$f":"IF(I36-J36<0,0,I36-J36)","v":0}]
[null,null,null,null,null,null,null,null,{"$f":"CEILING(F37*G37*H37,1)","v":0},null,{"$f":"IF(I37-J37<0,0,I37-J37)","v":0}]
["Total",null,null,null,null,null,null,null,{"$f":"SUM(I36:I37)","v":0},{"$f":"SUM(J36:J37)","v":0},{"$f":"SUM(K36:K37)","v":0}]
["Narrative"]
[]
[]
["D. Equipment"]
["Item",null,null,"Computation"]
["List and describe each item of equipment that will be purchased",null,null,"Compute the cost (e.g., the number of each item to be purchased X the cost per item)"]
[null,null,null,"# of Items",null,"Cost",null,null,"Total Cost","Non-Federal Contribution","Federal Request"]
[]
[null,null,null,null,null,null,null,null,{"$f":"CEILING(D47*F47,1)","v":0},null,{"$f":"IF(I47-J47<0,0,I47-J47)","v":0}]
[null,null,null,null,null,null,null,null,{"$f":"CEILING(D48*F48,1)","v":0},null,{"$f":"IF(I48-J48<0,0,I48-J48)","v":0}]
["Total",null,null,null,null,null,null,null,{"$f":"SUM(I47:I48)","v":0},{"$f":"SUM(J47:J48)","v":0},{"$f":"SUM(K47:K48)","v":0}]
["Narrative"]
[]
[]
["E. Supplies"]
["Supply Items",null,null,"Computation"]
["Provide a list of the types of items to be purchased with grant funds.",null,null,"Describe the item and the compute the costs. Computation: The number of each item to be purchased X the cost per item."]
[null,null,null,"# of Items",null,"Cost",null,null,"Total Cost","Non-Federal Contribution","Federal Request"]
[]
[null,null,null,null,null,null,null,null,{"$f":"CEILING(D58*F58,1)","v":0},null,{"$f":"IF(I58-J58<0,0,I58-J58)","v":0}]
[null,null,null,null,null,null,null,null,{"$f":"CEILING(D59*F59,1)","v":0},null,{"$f":"IF(I59-J59<0,0,I59-J59)","v":0}]
["Total",null,null,null,null,null,null,null,{"$f":"SUM(I58:I59)","v":0},{"$f":"SUM(J58:J59)","v":0},{"$f":"SUM(K58:K59)","v":0}]
["Narrative"]
[]
[]
["F. Construction"]
["List of Construction Activities",null,null,"Computation"]
["List and describe each item that is part of construction.",null,null,"Compute the costs (e.g., the number of each item to be purchased X the cost per item)"]
[null,null,null,"# of Items",null,"Cost",null,null,"Total Cost","Non-Federal Contribution","Federal Request"]
[]
[null,null,null,null,null,null,null,null,{"$f":"CEILING(D69*F69,1)","v":0},null,{"$f":"IF(I69-J69<0,0,I69-J69)","v":0}]
["N/A",null,null,null,null,null,null,null,{"$f":"CEILING(D70*F70,1)","v":0},null,{"$f":"IF(I70-J70<0,0,I70-J70)","v":0}]
["Total",null,null,null,null,null,null,null,{"$f":"SUM(I69:I70)","v":0},{"$f":"SUM(J69:J70)","v":0},{"$f":"SUM(K69:K70)","v":0}]
["Narrative"]
[]
[]
["G. Subawards (Subgrants)/Procurement Contracts"]
["Item"]
["Procurement contracts:  Provide a description of the products or services to be procured by contract and an estimate of the costs.  Applicants are encouraged to promote free and open competition in awarding contracts.  A separate justification must be provided for sole source procurements in excess of the Simplified Acquisition Threshold (currently $250,000). \n\nSubawards (Subgrants):  Provide a description of the activities to be carried out by subrecipients.  Include “(subaward)” label for each “Subawards (Subgrants)” entry."]
[null,null,null,null,null,null,null,null,"Total Cost","Non-Federal Contribution","Federal Request"]
[]
[null,null,null,null,null,null,null,null,null,null,{"$f":"IF(I80-J80<0,0,I80-J80)","v":0}]
[null,null,null,null,null,null,null,null,null,null,{"$f":"IF(I81-J81<0,0,I81-J81)","v":0}]
["Purpose of Travel","Location",null,"Type of Expense",null,"Computation"]
["Indicate the purpose of each trip or type of trip (training, advisory group meeting)","Indicate the travel destination.",null,"Hotel, airfare, per diem",null,"Compute the cost of each type of expense X the number of people traveling."]
[null,null,null,null,null,"Cost","Duration or Distance","# of Staff","Total Cost","Non-Federal Contribution","Federal Request"]
[]
[null,null,null,null,null,null,null,null,{"$f":"CEILING(F86*G86*H86,1)","v":0},null,{"$f":"IF(I86-J86<0,0,I86-J86)","v":0}]
[null,null,null,null,null,null,null,null,{"$f":"CEILING(F87*G87*H87,1)","v":0},null,{"$f":"IF(I87-J87<0,0,I87-J87)","v":0}]
["Total",null,null,null,null,null,null,null,{"$f":"SUM(I80:I81,I86:I87)","v":0},{"$f":"SUM(J80:J87)","v":0},{"$f":"SUM(K80:K87)","v":0}]
["Narrative"]
[]
[]
["H. Other Costs"]
["Description "]
["List and describe items that will be paid with grants funds."]
[null,null,null,null,null,null,null,null,"Total Cost","Non-Federal Contribution","Federal Request"]
[]
[null,null,null,null,null,null,null,null,null,null,{"$f":"IF(I97-J97<0,0,I97-J97)","v":0}]
[null,null,null,null,null,null,null,null,null,null,{"$f":"IF(I98-J98<0,0,I98-J98)","v":0}]
["Total",null,null,null,null,null,null,null,{"$f":"SUM(I97:I98)","v":0},{"$f":"SUM(J97:J98)","v":0},{"$f":"SUM(K97:K98)","v":0}]
["Narrative"]
[]
[]
["I. Indirect Costs"]
["Description",null,null,"Computation"]
["Describe what the approved rate is and how it is applied.",null,null,"Compute the indirect costs for those portions of the program which allow such costs."]
[null,null,null,"Base",null,"Indirect Cost Rate",null,null,"Total Cost","Non-Federal Contribution","Federal Request"]
[]
[null,null,null,null,null,null,null,null,{"$f":"CEILING(D108*F108,1)","v":0},null,{"$f":"IF(I108-J108<0,0,I108-J108)","v":0}]
[null,null,null,null,null,null,null,null,{"$f":"CEILING(D109*F109,1)","v":0},null,{"$f":"IF(I109-J109<0,0,I109-J109)","v":0}]
["Total",null,null,null,null,null,null,null,{"$f":"SUM(I108:I109)","v":0},{"$f":"SUM(J108:J109)","v":0},{"$f":"SUM(K108:K109)","v":0}]
["Narrative"]
[]
[]
["Budget Summary"]
["A. Personnel",null,null,null,null,null,null,null,null,null,{"$f":"'Budget Summary'!G7","v":0}]
["B. Fringe Benefits",null,null,null,null,null,null,null,null,null,{"$f":"'Budget Summary'!G8","v":0}]
["C. Travel",null,null,null,null,null,null,null,null,null,{"$f":"'Budget Summary'!G9","v":0}]
["D. Equipment",null,null,null,null,null,null,null,null,null,{"$f":"'Budget Summary'!G10","v":0}]
["E. Supplies",null,null,null,null,null,null,null,null,null,{"$f":"'Budget Summary'!G11","v":0}]
["F. Construction",null,null,null,null,null,null,null,null,null,{"$f":"'Budget Summary'!G12","v":"N/A"}]
["G. Subawards (Subgrants)/ Procurement Contracts",null,null,null,null,null,null,null,null,null,{"$f":"'Budget Summary'!G13","v":0}]
["H. Other",null,null,null,null,null,null,null,null,null,{"$f":"'Budget Summary'!G14","v":0}]
["Total Direct Costs",null,null,null,null,null,null,null,null,null,{"$f":"'Budget Summary'!G16","v":0}]
["I. Indirect Costs",null,null,null,null,null,null,null,null,null,{"$f":"'Budget Summary'!G17","v":0}]
["Total Project Costs",null,null,null,null,null,null,null,null,null,{"$f":"'Budget Summary'!G19","v":0}]
["Federal Request",null,null,null,null,null,null,null,null,null,{"$f":"'Budget Summary'!G22","v":0}]
["Non-Federal Contribution",null,null,null,null,null,null,null,null,null,{"$f":"'Budget Summary'!G23","v":0}]
["Required Match Met",null,null,null,null,null,null,null,null,null,{"$f":"'Budget Summary'!G24","v":"N/A"}]

{"sheet":"PA7","index":8,"n_rows":128,"n_cols":11,"rows_kept":128,"cut":false,"hidden":true,"merged":[[122,0,122,9],[123,0,123,9],[124,0,124,9],[125,0,125,9],[126,0,126,9],[127,0,127,9],[113,0,113,10],[114,0,114,9],[115,0,115,9],[116,0,116,9],[117,0,117,9],[118,0,118,9],[119,0,119,9],[120,0,120,9],[121,0,121,9],[0,0,0,5],[0,7,0,10],[1,0,2,0],[1,1,2,5],[9,0,9,1],[11,10,12,10],[13,0,13,1],[13,5,13,6],[14,0,14,1],[14,5,14,6],[10,0,10,1],[11,0,12,1],[11,3,12,3],[11,4,12,4],[11,5,12,6],[11,7,12,7],[11,8,12,8],[11,9,12,9],[11,2,12,2],[10,2,10,10],[9,2,9,10],[4,0,4,10],[5,1,5,10],[6,1,6,2],[22,3,23,4],[22,5,23,7],[22,8,23,8],[22,9,23,9],[22,10,23,10],[17,0,18,10],[20,3,20,10],[21,3,21,10],[15,0,15,7],[22,0,23,2],[21,0,21,2],[20,0,20,2],[24,3,24,4],[24,5,24,7],[25,0,25,1],[25,3,25,4],[25,5,25,7],[33,0,34,4],[33,5,34,5],[33,6,34,6],[33,7,34,7],[32,1,32,2],[24,0,24,2],[30,1,30,10],[35,3,35,4],[36,3,36,4],[37,0,37,7],[39,0,40,10],[42,3,42,10],[44,10,45,10],[26,0,26,7],[28,0,29,10],[31,3,31,4],[31,5,31,10],[32,3,32,4],[32,5,32,10],[33,10,34,10],[33,8,34,8],[33,9,34,9],[35,1,35,2],[31,1,31,2],[42,0,42,2],[46,3,46,4],[46,5,46,7],[47,0,47,1],[47,3,47,4],[47,5,47,7],[43,3,43,10],[44,3,45,4],[44,5,45,7],[44,8,45,8],[44,9,45,9],[46,0,46,2],[43,0,43,2],[44,0,45,2],[55,3,56,4],[55,5,56,7],[55,8,56,8],[55,9,56,9],[55,10,56,10],[48,0,48,7],[50,0,51,10],[53,3,53,10],[54,3,54,10],[54,0,54,2],[53,0,53,2],[55,0,56,2],[66,9,67,9],[66,10,67,10],[59,0,59,7],[61,0,62,10],[64,3,64,10],[65,3,65,10],[64,0,64,2],[65,0,65,2],[57,3,57,4],[57,5,57,7],[58,0,58,1],[58,3,58,4],[58,5,58,7],[57,0,57,2],[68,3,68,4],[68,5,68,7],[69,3,69,4],[69,5,69,7],[66,3,67,4],[66,5,67,7],[66,0,67,2],[69,0,69,2],[66,8,67,8],[68,0,68,2],[70,0,70,7],[72,0,73,10],[75,0,75,10],[76,0,76,10],[77,0,78,7],[77,8,78,8],[77,9,78,9],[77,10,78,10],[81,1,81,2],[74,0,74,1],[83,0,84,4],[83,5,84,5],[83,6,84,6],[83,7,84,7],[83,8,84,8],[83,9,84,9],[79,0,79,7],[80,0,80,7],[81,3,81,4],[81,5,81,10],[82,3,82,4],[82,5,82,10],[83,10,84,10],[82,1,82,2],[96,0,96,7],[104,0,104,2],[103,0,103,2],[85,3,85,4],[86,3,86,4],[87,0,87,7],[89,0,90,10],[92,0,92,10],[85,1,85,2],[97,0,97,7],[98,0,98,7],[100,0,101,10],[103,3,103,10],[104,3,104,10],[93,0,93,10],[94,0,95,7],[7,1,7,2],[6,4,6,7],[7,4,7,7],[6,9,6,10],[6,11,6,13],[7,9,7,10],[7,11,7,13],[109,0,109,7],[111,0,112,10],[107,3,107,4],[107,5,107,7],[108,0,108,1],[108,3,108,4],[108,5,108,7],[105,3,106,4],[105,5,106,7],[105,8,106,8],[105,9,106,9],[105,10,106,10],[105,0,106,2],[107,0,107,2],[94,8,95,8],[94,9,95,9],[94,10,95,10]]}
[{"$f":"'Budget Sheet Instructions'!B19","v":"Tribal Victim Services Program"},null,null,null,null,null,null,"Purpose Area (7)"]
["Program Office",null,null,null,null,null,null,null,{"$f":"'Budget Sheet Instructions'!J19","v":"OVC"},{"$f":"'Budget Sheet Instructions'!K19","v":"16.841"}]
[]
["Note: Non-Federal match is not required for this purpose area but can be provided if desired."]
["Budget Point of Contact Information:"]
["Tribe Name: "]
["Contact Last Name:",null,null,"First:",null,null,null,null,"Middle: "]
["Contact Phone: ",null,null,"Fax:",null,null,null,null,"Email:"]
["A. Personnel"]
["Name/Position",null,"Computation"]
["List each position and name, if known. New positions may be grouped by type.",null,"Show annual salary rate & amount of time devoted to the project for each name/position."]
[null,null,"# of Positions","Salary ","Rate","Time Worked\n(# of hours, days, months, years)",null,"%","Total Cost","Non-Federal Contribution","Federal Request"]
[]
[null,null,null,null,null,null,null,null,{"$f":"CEILING(C14*D14*F14*H14,1)","v":0},null,{"$f":"IF(I14-J14<0,0,I14-J14)","v":0}]
[null,null,null,null,null,null,null,null,{"$f":"CEILING(D15*F15*H15,1)","v":0},null,{"$f":"IF(I15-J15<0,0,I15-J15)","v":0}]
["Total(s)",null,null,null,null,null,null,null,{"$f":"SUM(I14:I15)","v":0},{"$f":"SUM(J14:J15)","v":0},{"$f":"SUM(K14:K15)","v":0}]
["Narrative"]
[]
[]
["B. Fringe Benefits"]
["Type of Benefit",null,null,"Computation"]
["List each grant-support fringe benefit that is provided to the grant-funded position.",null,null,"Show the basis for computation."]
[null,null,null,"Base",null,"Rate",null,null,"Total Cost","Non-Federal Contribution","Federal Request"]
[]
[null,null,null,null,null,null,null,null,{"$f":"CEILING(D25*F25,1)","v":0},null,{"$f":"IF(I25-J25<0,0,I25-J25)","v":0}]
[null,null,null,null,null,null,null,null,{"$f":"CEILING(D26*F26,1)","v":0},null,{"$f":"IF(I26-J26<0,0,I26-J26)","v":0}]
["Total",null,null,null,null,null,null,null,{"$f":"SUM(I25:I26)","v":0},{"$f":"SUM(J25:J26)","v":0},{"$f":"SUM(K25:K26)","v":0}]
["Narrative"]
[]
[]
["C. Travel","All applicants are required to budget sufficient funds to pay for airfare, lodging, and per diem to send two staff members to: the CTAS Orientation; an OVC-sponsored regional grantee training; and one National Indian Nations Conference. Please base all estimated cost on traveling to Washington, DC for these events."]
["Purpose of Travel","Location",null,"Type of Expense",null,"Computation"]
["Indicate the purpose of each trip or type of trip (training, advisory group meeting)","Indicate the travel destination.",null,"Hotel, airfare, per diem",null,"Compute the cost of each type of expense X the number of people traveling."]
[null,null,null,null,null,"Cost","Duration or Distance","# of Staff","Total Cost","Non-Federal Contribution","Federal Request"]
[]
[null,null,null,null,null,null,null,null,{"$f":"CEILING(F36*G36*H36,1)","v":0},null,{"$f":"IF(I36-J36<0,0,I36-J36)","v":0}]
[null,null,null,null,null,null,null,null,{"$f":"CEILING(F37*G37*H37,1)","v":0},null,{"$f":"IF(I37-J37<0,0,I37-J37)","v":0}]
["Total",null,null,null,null,null,null,null,{"$f":"SUM(I36:I37)","v":0},{"$f":"SUM(J36:J37)","v":0},{"$f":"SUM(K36:K37)","v":0}]
["Narrative"]
[]
[]
["D. Equipment"]
["Item",null,null,"Computation"]
["List and describe each item of equipment that will be purchased",null,null,"Compute the cost (e.g., the number of each item to be purchased X the cost per item)"]
[null,null,null,"# of Items",null,"Cost",null,null,"Total Cost","Non-Federal Contribution","Federal Request"]
[]
[null,null,null,null,null,null,null,null,{"$f":"CEILING(D47*F47,1)","v":0},null,{"$f":"IF(I47-J47<0,0,I47-J47)","v":0}]
[null,null,null,null,null,null,null,null,{"$f":"CEILING(D48*F48,1)","v":0},null,{"$f":"IF(I48-J48<0,0,I48-J48)","v":0}]
["Total",null,null,null,null,null,null,null,{"$f":"SUM(I47:I48)","v":0},{"$f":"SUM(J47:J48)","v":0},{"$f":"SUM(K47:K48)","v":0}]
["Narrative"]
[]
[]
["E. Supplies"]
["Supply Items",null,null,"Computation"]
["Provide a list of the types of items to be purchased with grant funds.",null,null,"Describe the item and the compute the costs. Computation: The number of each item to be purchased X the cost per item."]
[null,null,null,"# of Items",null,"Cost",null,null,"Total Cost","Non-Federal Contribution","Federal Request"]
[]
[null,null,null,null,null,null,null,null,{"$f":"CEILING(D58*F58,1)","v":0},null,{"$f":"IF(I58-J58<0,0,I58-J58)","v":0}]
[null,null,null,null,null,null,null,null,{"$f":"CEILING(D59*F59,1)","v":0},null,{"$f":"IF(I59-J59<0,0,I59-J59)","v":0}]
["Total",null,null,null,null,null,null,null,{"$f":"SUM(I58:I59)","v":0},{"$f":"SUM(J58:J59)","v":0},{"$f":"SUM(K58:K59)","v":0}]
["Narrative"]
[]
[]
["F. Construction"]
["List of Construction Activities",null,null,"Computation"]
["List and describe each item that is part of construction.",null,null,"Compute the costs (e.g., the number of each item to be purchased X the cost per item)"]
[null,null,null,"# of Items",null,"Cost",null,null,"Total Cost","Non-Federal Contribution","Federal Request"]
[]
[null,null,null,null,null,null,null,null,{"$f":"CEILING(D69*F69,1)","v":0},null,{"$f":"IF(I69-J69<0,0,I69-J69)","v":0}]
["N/A",null,null,null,null,null,null,null,{"$f":"CEILING(D70*F70,1)","v":0},null,{"$f":"IF(I70-J70<0,0,I70-J70)","v":0}]
["Total",null,null,null,null,null,null,null,{"$f":"SUM(I69:I70)","v":0},{"$f":"SUM(J69:J70)","v":0},{"$f":"SUM(K69:K70)","v":0}]
["Narrative"]
[]
[]
["G. Subawards (Subgrants)/Procurement Contracts"]
["Item"]
["Procurement contracts:  Provide a description of the products or services to be procured by contract and an estimate of the costs.  Applicants are encouraged to promote free and open competition in awarding contracts.  A separate justification must be provided for sole source procurements in excess of the Simplified Acquisition Threshold (currently $150,000). \n\nSubawards (Subgrants):  Provide a description of the activities to be carried out by subrecipients.  Include “(subaward)” label for each “Subawards (Subgrants)” entry."]
[null,null,null,null,null,null,null,null,"Total Cost","Non-Federal Contribution","Federal Request"]
[]
[null,null,null,null,null,null,null,null,null,null,{"$f":"IF(I80-J80<0,0,I80-J80)","v":0}]
[null,null,null,null,null,null,null,null,null,null,{"$f":"IF(I81-J81<0,0,I81-J81)","v":0}]
["Purpose of Travel","Location",null,"Type of Expense",null,"Computation"]
["Indicate the purpose of each trip or type of trip (training, advisory group meeting)","Indicate the travel destination.",null,"Hotel, airfare, per diem",null,"Compute the cost of each type of expense X the number of people traveling."]
[null,null,null,null,null,"Cost","Duration or Distance","# of Staff","Total Cost","Non-Federal Contribution","Federal Request"]
[]
[null,null,null,null,null,null,null,null,{"$f":"CEILING(F86*G86*H86,1)","v":0},null,{"$f":"IF(I86-J86<0,0,I86-J86)","v":0}]
[null,null,null,null,null,null,null,null,{"$f":"CEILING(F87*G87*H87,1)","v":0},null,{"$f":"IF(I87-J87<0,0,I87-J87)","v":0}]
["Total",null,null,null,null,null,null,null,{"$f":"SUM(I80:I81,I86:I87)","v":0},{"$f":"SUM(J80:J87)","v":0},{"$f":"SUM(K80:K87)","v":0}]
["Narrative"]
[]
[]
["H. Other Costs"]
["Description "]
["List and describe items that will be paid with grants funds."]
[null,null,null,null,null,null,null,null,"Total Cost","Non-Federal Contribution","Federal Request"]
[]
[null,null,null,null,null,null,null,null,null,null,{"$f":"IF(I97-J97<0,0,I97-J97)","v":0}]
[null,null,null,null,null,null,null,null,null,null,{"$f":"IF(I98-J98<0,0,I98-J98)","v":0}]
["Total",null,null,null,null,null,null,null,{"$f":"SUM(I97:I98)","v":0},{"$f":"SUM(J97:J98)","v":0},{"$f":"SUM(K97:K98)","v":0}]
["Narrative"]
[]
[]
["I. Indirect Costs"]
["Description",null,null,"Computation"]
["Describe what the approved rate is and how it is applied.",null,null,"Compute the indirect costs for those portions of the program which allow such costs."]
[null,null,null,"Base",null,"Indirect Cost Rate",null,null,"Total Cost","Non-Federal Contribution","Federal Request"]
[]
[null,null,null,null,null,null,null,null,{"$f":"CEILING(D108*F108,1)","v":0},null,{"$f":"IF(I108-J108<0,0,I108-J108)","v":0}]
[null,null,null,null,null,null,null,null,{"$f":"CEILING(D109*F109,1)","v":0},null,{"$f":"IF(I109-J109<0,0,I109-J109)","v":0}]
["Total",null,null,null,null,null,null,null,{"$f":"SUM(I108:I109)","v":0},{"$f":"SUM(J108:J109)","v":0},{"$f":"SUM(K108:K109)","v":0}]
["Narrative"]
[]
[]
["Budget Summary"]
["A. Personnel",null,null,null,null,null,null,null,null,null,{"$f":"'Budget Summary'!H7","v":0}]
["B. Fringe Benefits",null,null,null,null,null,null,null,null,null,{"$f":"'Budget Summary'!H8","v":0}]
["C. Travel",null,null,null,null,null,null,null,null,null,{"$f":"'Budget Summary'!H9","v":0}]
["D. Equipment",null,null,null,null,null,null,null,null,null,{"$f":"'Budget Summary'!H10","v":0}]
["E. Supplies",null,null,null,null,null,null,null,null,null,{"$f":"'Budget Summary'!H11","v":0}]
["F. Construction",null,null,null,null,null,null,null,null,null,{"$f":"'Budget Summary'!H12","v":"N/A"}]
["G. Subawards (Subgrants)/ Procurement Contracts",null,null,null,null,null,null,null,null,null,{"$f":"'Budget Summary'!H13","v":0}]
["H. Other",null,null,null,null,null,null,null,null,null,{"$f":"'Budget Summary'!H14","v":0}]
["Total Direct Costs",null,null,null,null,null,null,null,null,null,{"$f":"'Budget Summary'!H16","v":0}]
["I. Indirect Costs",null,null,null,null,null,null,null,null,null,{"$f":"'Budget Summary'!H17","v":0}]
["Total Project Costs",null,null,null,null,null,null,null,null,null,{"$f":"'Budget Summary'!H19","v":0}]
["Federal Request",null,null,null,null,null,null,null,null,null,{"$f":"'Budget Summary'!H22","v":0}]
["Non-Federal Contribution",null,null,null,null,null,null,null,null,null,{"$f":"'Budget Summary'!H23","v":0}]
["Required Match Met",null,null,null,null,null,null,null,null,null,{"$f":"'Budget Summary'!H24","v":"N/A"}]

{"sheet":"PA8","index":9,"n_rows":129,"n_cols":11,"rows_kept":129,"cut":false,"hidden":false,"merged":[[123,0,123,9],[124,0,124,9],[125,0,125,9],[126,0,126,9],[127,0,127,9],[128,0,128,9],[114,0,114,10],[115,0,115,9],[116,0,116,9],[117,0,117,9],[118,0,118,9],[119,0,119,9],[120,0,120,9],[121,0,121,9],[122,0,122,9],[17,0,18,10],[20,3,20,10],[21,3,21,10],[15,0,15,7],[21,0,21,2],[20,0,20,2],[0,0,0,5],[0,7,0,10],[1,0,2,0],[1,1,2,5],[9,0,9,1],[11,10,12,10],[13,0,13,1],[13,5,13,6],[14,0,14,1],[14,5,14,6],[10,0,10,1],[11,0,12,1],[11,3,12,3],[11,4,12,4],[11,5,12,6],[11,7,12,7],[11,8,12,8],[11,9,12,9],[11,2,12,2],[10,2,10,10],[9,2,9,10],[55,8,56,8],[55,9,56,9],[55,10,56,10],[48,0,48,7],[50,0,51,10],[53,3,53,10],[54,3,54,10],[46,3,46,4],[46,5,46,7],[47,0,47,1],[47,3,47,4],[47,5,47,7],[46,0,46,2],[54,0,54,2],[53,0,53,2],[32,3,32,4],[32,5,32,10],[33,10,34,10],[33,8,34,8],[33,9,34,9],[35,3,35,4],[57,3,57,4],[57,5,57,7],[58,0,58,1],[58,3,58,4],[58,5,58,7],[55,3,56,4],[55,5,56,7],[57,0,57,2],[55,0,56,2],[66,8,67,8],[66,9,67,9],[66,10,67,10],[59,0,59,7],[61,0,62,10],[64,3,64,10],[65,3,65,10],[66,0,67,2],[65,0,65,2],[64,0,64,2],[68,3,68,4],[68,5,68,7],[70,0,70,1],[70,3,70,4],[70,5,70,7],[69,3,69,4],[69,5,69,7],[69,0,69,2],[66,3,67,4],[66,5,67,7],[68,0,68,2],[71,0,71,7],[73,0,74,10],[76,0,76,10],[77,0,77,10],[78,0,79,7],[78,8,79,8],[78,9,79,9],[78,10,79,10],[83,1,83,2],[82,1,82,2],[75,0,75,1],[84,0,85,4],[84,5,85,5],[84,6,85,6],[84,7,85,7],[84,8,85,8],[84,9,85,9],[80,0,80,7],[81,0,81,7],[82,3,82,4],[82,5,82,10],[83,3,83,4],[83,5,83,10],[84,10,85,10],[95,9,96,9],[95,10,96,10],[97,0,97,7],[105,0,105,2],[104,0,104,2],[86,3,86,4],[87,3,87,4],[88,0,88,7],[90,0,91,10],[93,0,93,10],[86,1,86,2],[98,0,98,7],[99,0,99,7],[101,0,102,10],[104,3,104,10],[105,3,105,10],[94,0,94,10],[95,0,96,7],[95,8,96,8],[110,0,110,7],[112,0,113,10],[108,3,108,4],[108,5,108,7],[109,0,109,1],[109,3,109,4],[109,5,109,7],[106,3,107,4],[106,5,107,7],[106,8,107,8],[106,9,107,9],[106,10,107,10],[106,0,107,2],[108,0,108,2],[35,1,35,2],[25,0,25,1],[25,3,25,4],[25,5,25,7],[33,0,34,4],[33,5,34,5],[33,6,34,6],[33,7,34,7],[32,1,32,2],[31,1,31,2],[24,3,24,4],[24,5,24,7],[24,0,24,2],[26,0,26,7],[28,0,29,10],[31,3,31,4],[31,5,31,10],[22,8,23,8],[22,9,23,9],[22,10,23,10],[22,0,23,2],[22,3,23,4],[22,5,23,7],[43,3,43,10],[44,3,45,4],[44,5,45,7],[44,8,45,8],[44,9,45,9],[36,3,36,4],[37,0,37,7],[39,0,40,10],[42,3,42,10],[44,10,45,10],[44,0,45,2],[43,0,43,2],[42,0,42,2],[7,1,7,2],[6,4,6,7],[7,4,7,7],[4,0,4,10],[5,1,5,10],[6,1,6,2],[6,9,6,10],[6,11,6,13],[7,9,7,10],[7,11,7,13]]}
[{"$f":"'Budget Sheet Instructions'!B20","v":"Tribal Juvenile Healing To Wellness Courts"},null,null,null,null,null,null,"Purpose Area (8)"]
["Program Office",null,null,null,null,null,null,null,{"$f":"'Budget Sheet Instructions'!J20","v":"OJJDP"},{"$f":"'Budget Sheet Instructions'!K20","v":"16.585"}]
[]
["Note: Non-Federal match is not required for this purpose area but can be provided if desired."]
["Budget Point of Contact Information:"]
["Tribe Name: "]
["Contact Last Name:",null,null,"First:",null,null,null,null,"Middle: "]
["Contact Phone: ",null,null,"Fax:",null,null,null,null,"Email:"]
["A. Personnel"]
["Name/Position",null,"Computation"]
["List each position and name, if known. New positions may be grouped by type.",null,"Show annual salary rate & amount of time devoted to the project for each name/position."]
[null,null,"# of Positions","Salary ","Rate","Time Worked\n(# of hours, days, months, years)",null,"%","Total Cost","Non-Federal Contribution","Federal Request"]
[]
["Non-Federal match is not required for this purpose area but can be provided if desired.",null,null,null,null,null,null,null,{"$f":"CEILING(C14*D14*F14*H14,1)","v":0},null,{"$f":"IF(I14-J14<0,0,I14-J14)","v":0}]
[null,null,null,null,null,null,null,null,{"$f":"CEILING(D15*F15*H15,1)","v":0},null,0]
["Total(s)",null,null,null,null,null,null,null,{"$f":"SUM(I14:I15)","v":0},{"$f":"SUM(J14:J15)","v":0},{"$f":"SUM(K14:K15)","v":0}]
["Narrative"]
[]
[]
["B. Fringe Benefits"]
["Type of Benefit",null,null,"Computation"]
["List each grant-support fringe benefit that is provided to the grant-funded position.",null,null,"Show the basis for computation."]
[null,null,null,"Base",null,"Rate",null,null,"Total Cost","Non-Federal Contribution","Federal Request"]
[]
[null,null,null,null,null,null,null,null,{"$f":"CEILING(D25*F25,1)","v":0},null,{"$f":"IF(I25-J25<0,0,I25-J25)","v":0}]
[null,null,null,null,null,null,null,null,0,null,0]
["Total",null,null,null,null,null,null,null,{"$f":"SUM(I25:I26)","v":0},{"$f":"SUM(J25:J26)","v":0},{"$f":"SUM(K25:K26)","v":0}]
["Narrative"]
[]
[]
["C. Travel"]
["Purpose of Travel","Location",null,"Type of Expense",null,"Computation"]
["Indicate the purpose of each trip or type of trip (training, advisory group meeting)","Indicate the travel destination.",null,"Hotel, airfare, per diem",null,"Compute the cost of each type of expense X the number of people traveling."]
[null,null,null,null,null,"Cost","Duration or Distance","# of Staff","Total Cost","Non-Federal Contribution","Federal Request"]
[]
[null,null,null,null,null,null,null,null,{"$f":"CEILING(F36*G36*H36,1)","v":0},null,{"$f":"IF(I36-J36<0,0,I36-J36)","v":0}]
[null,null,null,null,null,null,null,null,0,null,0]
["Total",null,null,null,null,null,null,null,{"$f":"SUM(I36:I37)","v":0},{"$f":"SUM(J36:J37)","v":0},{"$f":"SUM(K36:K37)","v":0}]
["Narrative"]
[]
[]
["D. Equipment"]
["Item",null,null,"Computation"]
["List and describe each item of equipment that will be purchased",null,null,"Compute the cost (e.g., the number of each item to be purchased X the cost per item)"]
[null,null,null,"# of Items",null,"Cost",null,null,"Total Cost","Non-Federal Contribution","Federal Request"]
[]
[null,null,null,null,null,null,null,null,{"$f":"CEILING(D47*F47,1)","v":0},null,{"$f":"IF(I47-J47<0,0,I47-J47)","v":0}]
[null,null,null,null,null,null,null,null,0,null,0]
["Total",null,null,null,null,null,null,null,{"$f":"SUM(I47:I48)","v":0},{"$f":"SUM(J47:J48)","v":0},{"$f":"SUM(K47:K48)","v":0}]
["Narrative"]
[]
[]
["E. Supplies"]
["Supply Items",null,null,"Computation"]
["Provide a list of the types of items to be purchased with grant funds.",null,null,"Describe the item and the compute the costs. Computation: The number of each item to be purchased X the cost per item."]
[null,null,null,"# of Items",null,"Cost",null,null,"Total Cost","Non-Federal Contribution","Federal Request"]
[]
[null,null,null,null,null,null,null,null,{"$f":"CEILING(D58*F58,1)","v":0},null,{"$f":"IF(I58-J58<0,0,I58-J58)","v":0}]
[null,null,null,null,null,null,null,null,{"$f":"CEILING(D59*F59,1)","v":0},null,{"$f":"IF(I59-J59<0,0,I59-J59)","v":0}]
["Total",null,null,null,null,null,null,null,{"$f":"SUM(I58:I59)","v":0},{"$f":"SUM(J58:J59)","v":0},{"$f":"SUM(K58:K59)","v":0}]
["Narrative"]
[]
[]
["F. Construction"]
["List of Construction Activities",null,null,"Computation"]
["List and describe each item that is part of construction.",null,null,"Compute the costs (e.g., the number of each item to be purchased X the cost per item)"]
[null,null,null,"# of Items",null,"Cost",null,null,"Total Cost","Non-Federal Contribution","Federal Request"]
[]
[null,null,null,null,null,null,null,null,{"$f":"CEILING(D69*F69,1)","v":0},null,{"$f":"IF(I69-J69<0,0,I69-J69)","v":0}]
["N/A",null,null,null,null,null,null,null,{"$f":"CEILING(D70*F70,1)","v":0},null,{"$f":"IF(I70-J70<0,0,I70-J70)","v":0}]
[null,null,null,null,null,null,null,null,{"$f":"CEILING(D71*F71,1)","v":0},null,{"$f":"IF(I71-J71<0,0,I71-J71)","v":0}]
["Total",null,null,null,null,null,null,null,{"$f":"SUM(I69:I71)","v":0},{"$f":"SUM(J69:J71)","v":0},{"$f":"SUM(K69:K71)","v":0}]
["Narrative"]
[]
[]
["G. Subawards (Subgrants)/Procurement Contracts"]
["Item"]
["Procurement contracts:  Provide a description of the products or services to be procured by contract and an estimate of the costs.  Applicants are encouraged to promote free and open competition in awarding contracts.  A separate justification must be provided for sole source procurements in excess of the Simplified Acquisition Threshold (currently $250,000). \n\nSubawards (Subgrants):  Provide a description of the activities to be carried out by subrecipients.  Include “(subaward)” label for each “Subawards (Subgrants)” entry."]
[null,null,null,null,null,null,null,null,"Total Cost","Non-Federal Contribution","Federal Request"]
[]
[null,null,null,null,null,null,null,null,null,null,{"$f":"IF(I81-J81<0,0,I81-J81)","v":0}]
[null,null,null,null,null,null,null,null,null,null,{"$f":"IF(I82-J82<0,0,I82-J82)","v":0}]
["Purpose of Travel","Location",null,"Type of Expense",null,"Computation"]
["Indicate the purpose of each trip or type of trip (training, advisory group meeting)","Indicate the travel destination.",null,"Hotel, airfare, per diem",null,"Compute the cost of each type of expense X the number of people traveling."]
[null,null,null,null,null,"Cost","Duration or Distance","# of Staff","Total Cost","Non-Federal Contribution","Federal Request"]
[]
[null,null,null,null,null,null,null,null,{"$f":"CEILING(F87*G87*H87,1)","v":0},null,{"$f":"IF(I87-J87<0,0,I87-J87)","v":0}]
[null,null,null,null,null,null,null,null,{"$f":"CEILING(F88*G88*H88,1)","v":0},null,{"$f":"IF(I88-J88<0,0,I88-J88)","v":0}]
["Total",null,null,null,null,null,null,null,{"$f":"SUM(I81:I82,I87:I88)","v":0},{"$f":"SUM(J81:J88)","v":0},{"$f":"SUM(K81:K88)","v":0}]
["Narrative"]
[]
[]
["H. Other Costs"]
["Description "]
["List and describe items that will be paid with grants funds."]
[null,null,null,null,null,null,null,null,"Total Cost","Non-Federal Contribution","Federal Request"]
[]
[null,null,null,null,null,null,null,null,null,null,{"$f":"IF(I98-J98<0,0,I98-J98)","v":0}]
[null,null,null,null,null,null,null,null,null,null,0]
["Total",null,null,null,null,null,null,null,{"$f":"SUM(I98:I99)","v":0},{"$f":"SUM(J98:J99)","v":0},{"$f":"SUM(K98:K99)","v":0}]
["Narrative"]
[]
[]
["I. Indirect Costs"]
["Description",null,null,"Computation"]
["Describe what the approved rate is and how it is applied.",null,null,"Compute the indirect costs for those portions of the program which allow such costs."]
[null,null,null,"Base",null,"Indirect Cost Rate",null,null,"Total Cost","Non-Federal Contribution","Federal Request"]
[]
[null,null,null,null,null,null,null,null,{"$f":"CEILING(D109*F109,1)","v":0},null,{"$f":"IF(I109-J109<0,0,I109-J109)","v":0}]
[null,null,null,null,null,null,null,null,{"$f":"CEILING(D110*F110,1)","v":0},null,{"$f":"IF(I110-J110<0,0,I110-J110)","v":0}]
["Total",null,null,null,null,null,null,null,{"$f":"SUM(I109:I110)","v":0},{"$f":"SUM(J109:J110)","v":0},{"$f":"SUM(K109:K110)","v":0}]
["Narrative"]
[]
[]
["Budget Summary"]
["A. Personnel",null,null,null,null,null,null,null,null,null,{"$f":"'Budget Summary'!I7","v":0}]
["B. Fringe Benefits",null,null,null,null,null,null,null,null,null,{"$f":"'Budget Summary'!I8","v":0}]
["C. Travel",null,null,null,null,null,null,null,null,null,{"$f":"'Budget Summary'!I9","v":0}]
["D. Equipment",null,null,null,null,null,null,null,null,null,{"$f":"'Budget Summary'!I10","v":0}]
["E. Supplies",null,null,null,null,null,null,null,null,null,{"$f":"'Budget Summary'!I11","v":0}]
["F. Construction",null,null,null,null,null,null,null,null,null,{"$f":"'Budget Summary'!I12","v":"N/A"}]
["G. Subawards (Subgrants)/ Procurement Contracts",null,null,null,null,null,null,null,null,null,{"$f":"'Budget Summary'!I13","v":0}]
["H. Other",null,null,null,null,null,null,null,null,null,{"$f":"'Budget Summary'!I14","v":0}]
["Total Direct Costs",null,null,null,null,null,null,null,null,null,{"$f":"'Budget Summary'!I16","v":0}]
["I. Indirect Costs",null,null,null,null,null,null,null,null,null,{"$f":"'Budget Summary'!I17","v":0}]
["Total Project Costs",null,null,null,null,null,null,null,null,null,{"$f":"'Budget Summary'!I19","v":0}]
["Federal Request",null,null,null,null,null,null,null,null,null,{"$f":"'Budget Summary'!I22","v":0}]
["Non-Federal Contribution",null,null,null,null,null,null,null,null,null,{"$f":"'Budget Summary'!I23","v":0}]
["Required Match Met",null,null,null,null,null,null,null,null,null,{"$f":"'Budget Summary'!I24","v":"N/A"}]

{"sheet":"PA9","index":10,"n_rows":128,"n_cols":11,"rows_kept":128,"cut":false,"hidden":false,"merged":[[122,0,122,9],[123,0,123,9],[124,0,124,9],[125,0,125,9],[126,0,126,9],[127,0,127,9],[113,0,113,10],[114,0,114,9],[115,0,115,9],[116,0,116,9],[117,0,117,9],[118,0,118,9],[119,0,119,9],[120,0,120,9],[121,0,121,9],[108,0,108,1],[108,3,108,4],[108,5,108,7],[109,0,109,7],[111,0,112,10],[107,3,107,4],[107,5,107,7],[107,0,107,2],[96,0,96,7],[103,3,103,10],[104,0,104,2],[103,0,103,2],[105,0,106,2],[104,3,104,10],[105,3,106,4],[105,5,106,7],[105,8,106,8],[105,9,106,9],[105,10,106,10],[97,0,97,7],[98,0,98,7],[100,0,101,10],[92,0,92,10],[93,0,93,10],[94,0,95,7],[94,8,95,8],[94,9,95,9],[94,10,95,10],[83,10,84,10],[85,3,85,4],[86,3,86,4],[87,0,87,7],[89,0,90,10],[83,0,84,4],[83,5,84,5],[83,6,84,6],[83,7,84,7],[83,8,84,8],[83,9,84,9],[85,1,85,2],[82,3,82,4],[82,5,82,10],[70,0,70,7],[72,0,73,10],[75,0,75,10],[76,0,76,10],[77,0,78,7],[77,8,78,8],[77,9,78,9],[77,10,78,10],[81,1,81,2],[82,1,82,2],[65,0,65,2],[69,0,69,2],[66,0,67,2],[68,0,68,2],[79,0,79,7],[80,0,80,7],[81,3,81,4],[81,5,81,10],[68,3,68,4],[68,5,68,7],[69,3,69,4],[69,5,69,7],[65,3,65,10],[66,3,67,4],[66,5,67,7],[66,8,67,8],[66,9,67,9],[66,10,67,10],[74,0,74,1],[58,0,58,1],[58,3,58,4],[58,5,58,7],[59,0,59,7],[61,0,62,10],[64,3,64,10],[57,3,57,4],[57,5,57,7],[64,0,64,2],[57,0,57,2],[54,3,54,10],[55,3,56,4],[55,5,56,7],[55,8,56,8],[55,9,56,9],[55,10,56,10],[47,0,47,1],[47,3,47,4],[47,5,47,7],[48,0,48,7],[50,0,51,10],[53,3,53,10],[55,0,56,2],[54,0,54,2],[53,0,53,2],[44,3,45,4],[44,5,45,7],[44,8,45,8],[44,9,45,9],[44,10,45,10],[43,0,43,2],[44,0,45,2],[46,0,46,2],[46,3,46,4],[46,5,46,7],[43,3,43,10],[31,5,31,10],[35,3,35,4],[32,3,32,4],[32,5,32,10],[33,0,34,4],[33,5,34,5],[33,6,34,6],[33,7,34,7],[33,8,34,8],[33,9,34,9],[33,10,34,10],[9,2,9,10],[4,0,4,10],[5,1,5,10],[6,1,6,2],[6,4,6,7],[7,4,7,7],[42,0,42,2],[35,1,35,2],[36,3,36,4],[37,0,37,7],[39,0,40,10],[42,3,42,10],[31,1,31,2],[32,1,32,2],[6,9,6,10],[26,0,26,7],[28,0,29,10],[15,0,15,7],[17,0,18,10],[20,3,20,10],[21,3,21,10],[21,0,21,2],[20,0,20,2],[31,3,31,4],[6,11,6,13],[7,9,7,10],[7,11,7,13],[7,1,7,2],[14,0,14,1],[14,5,14,6],[0,7,0,10],[1,0,2,0],[1,1,2,5],[9,0,9,1],[13,0,13,1],[13,5,13,6],[11,2,12,2],[10,0,10,1],[11,0,12,1],[11,3,12,3],[11,4,12,4],[11,5,12,6],[11,7,12,7],[11,8,12,8],[11,9,12,9],[11,10,12,10],[0,0,0,5],[10,2,10,10],[25,0,25,1],[25,3,25,4],[25,5,25,7],[22,8,23,8],[22,9,23,9],[22,10,23,10],[24,3,24,4],[24,5,24,7],[22,0,23,2],[24,0,24,2],[22,3,23,4],[22,5,23,7]]}
[{"$f":"'Budget Sheet Instructions'!B21","v":"Tribal Youth Program"},null,null,null,null,null,null,"Purpose Area (9)"]
["Program Office",null,null,null,null,null,null,null,{"$f":"'Budget Sheet Instructions'!J21","v":"OJJDP"},{"$f":"'Budget Sheet Instructions'!K21","v":"16.731"}]
[]
["Note: Non-Federal match is not required for this purpose area but can be provided if desired."]
["Budget Point of Contact Information:"]
["Tribe Name: "]
["Contact Last Name:",null,null,"First:",null,null,null,null,"Middle: "]
["Contact Phone: ",null,null,"Fax:",null,null,null,null,"Email:"]
["A. Personnel"]
["Name/Position",null,"Computation"]
["List each position and name, if known. New positions may be grouped by type.",null,"Show annual salary rate & amount of time devoted to the project for each name/position."]
[null,null,"# of Positions","Salary ","Rate","Time Worked\n(# of hours, days, months, years)",null,"%","Total Cost","Non-Federal Contribution","Federal Request"]
[]
[null,null,null,null,null,null,null,null,{"$f":"CEILING(C14*D14*F14*H14,1)","v":0},null,{"$f":"IF(I14-J14<0,0,I14-J14)","v":0}]
[null,null,null,null,null,null,null,null,{"$f":"CEILING(D15*F15*H15,1)","v":0},null,0]
["Total(s)",null,null,null,null,null,null,null,{"$f":"SUM(I14:I15)","v":0},{"$f":"SUM(J14:J15)","v":0},{"$f":"SUM(K14:K15)","v":0}]
["Narrative"]
[]
[]
["B. Fringe Benefits"]
["Type of Benefit",null,null,"Computation"]
["List each grant-support fringe benefit that is provided to the grant-funded position.",null,null,"Show the basis for computation."]
[null,null,null,"Base",null,"Rate",null,null,"Total Cost","Non-Federal Contribution","Federal Request"]
[]
[null,null,null,null,null,null,null,null,{"$f":"CEILING(D25*F25,1)","v":0},null,{"$f":"IF(I25-J25<0,0,I25-J25)","v":0}]
[null,null,null,null,null,null,null,null,0,null,0]
["Total",null,null,null,null,null,null,null,{"$f":"SUM(I25:I26)","v":0},{"$f":"SUM(J25:J26)","v":0},{"$f":"SUM(K25:K26)","v":0}]
["Narrative"]
[]
[]
["C. Travel"]
["Purpose of Travel","Location",null,"Type of Expense",null,"Computation"]
["Indicate the purpose of each trip or type of trip (training, advisory group meeting)","Indicate the travel destination.",null,"Hotel, airfare, per diem",null,"Compute the cost of each type of expense X the number of people traveling."]
[null,null,null,null,null,"Cost","Duration or Distance","# of Staff","Total Cost","Non-Federal Contribution","Federal Request"]
[]
[null,null,null,null,null,null,null,null,{"$f":"CEILING(F36*G36*H36,1)","v":0},null,{"$f":"IF(I36-J36<0,0,I36-J36)","v":0}]
[null,null,null,null,null,null,null,null,0,null,0]
["Total",null,null,null,null,null,null,null,{"$f":"SUM(I36:I37)","v":0},{"$f":"SUM(J36:J37)","v":0},{"$f":"SUM(K36:K37)","v":0}]
["Narrative"]
[]
[]
["D. Equipment"]
["Item",null,null,"Computation"]
["List and describe each item of equipment that will be purchased",null,null,"Compute the cost (e.g., the number of each item to be purchased X the cost per item)"]
[null,null,null,"# of Items",null,"Cost",null,null,"Total Cost","Non-Federal Contribution","Federal Request"]
[]
[null,null,null,null,null,null,null,null,{"$f":"CEILING(D47*F47,1)","v":0},null,{"$f":"IF(I47-J47<0,0,I47-J47)","v":0}]
[null,null,null,null,null,null,null,null,{"$f":"CEILING(D48*F48,1)","v":0},null,{"$f":"IF(I48-J48<0,0,I48-J48)","v":0}]
["Total",null,null,null,null,null,null,null,{"$f":"SUM(I47:I48)","v":0},{"$f":"SUM(J47:J48)","v":0},{"$f":"SUM(K47:K48)","v":0}]
["Narrative"]
[]
[]
["E. Supplies"]
["Supply Items",null,null,"Computation"]
["Provide a list of the types of items to be purchased with grant funds.",null,null,"Describe the item and the compute the costs. Computation: The number of each item to be purchased X the cost per item."]
[null,null,null,"# of Items",null,"Cost",null,null,"Total Cost","Non-Federal Contribution","Federal Request"]
[]
[null,null,null,null,null,null,null,null,{"$f":"CEILING(D58*F58,1)","v":0},null,{"$f":"IF(I58-J58<0,0,I58-J58)","v":0}]
[null,null,null,null,null,null,null,null,{"$f":"CEILING(D59*F59,1)","v":0},null,{"$f":"IF(I59-J59<0,0,I59-J59)","v":0}]
["Total",null,null,null,null,null,null,null,{"$f":"SUM(I58:I59)","v":0},{"$f":"SUM(J58:J59)","v":0},{"$f":"SUM(K58:K59)","v":0}]
["Narrative"]
[]
[]
["F. Construction"]
["List of Construction Activities",null,null,"Computation"]
["List and describe each item that is part of construction.",null,null,"Compute the costs (e.g., the number of each item to be purchased X the cost per item)"]
[null,null,null,"# of Items",null,"Cost",null,null,"Total Cost","Non-Federal Contribution","Federal Request"]
[]
[null,null,null,null,null,null,null,null,{"$f":"CEILING(D69*F69,1)","v":0},null,{"$f":"IF(I69-J69<0,0,I69-J69)","v":0}]
["N/A",null,null,null,null,null,null,null,{"$f":"CEILING(D70*F70,1)","v":0},null,{"$f":"IF(I70-J70<0,0,I70-J70)","v":0}]
["Total",null,null,null,null,null,null,null,{"$f":"SUM(I69:I70)","v":0},{"$f":"SUM(J69:J70)","v":0},{"$f":"SUM(K69:K70)","v":0}]
["Narrative"]
[]
[]
["G. Subawards (Subgrants)/Procurement Contracts"]
["Item"]
["Procurement contracts:  Provide a description of the products or services to be procured by contract and an estimate of the costs.  Applicants are encouraged to promote free and open competition in awarding contracts.  A separate justification must be provided for sole source procurements in excess of the Simplified Acquisition Threshold (currently $250,000). \n\nSubawards (Subgrants):  Provide a description of the activities to be carried out by subrecipients.  Include “(subaward)” label for each “Subawards (Subgrants)” entry."]
[null,null,null,null,null,null,null,null,"Total Cost","Non-Federal Contribution","Federal Request"]
[]
[null,null,null,null,null,null,null,null,null,null,{"$f":"IF(I80-J80<0,0,I80-J80)","v":0}]
[null,null,null,null,null,null,null,null,null,null,{"$f":"IF(I81-J81<0,0,I81-J81)","v":0}]
["Purpose of Travel","Location",null,"Type of Expense",null,"Computation"]
["Indicate the purpose of each trip or type of trip (training, advisory group meeting)","Indicate the travel destination.",null,"Hotel, airfare, per diem",null,"Compute the cost of each type of expense X the number of people traveling."]
[null,null,null,null,null,"Cost","Duration or Distance","# of Staff","Total Cost","Non-Federal Contribution","Federal Request"]
[]
[null,null,null,null,null,null,null,null,{"$f":"CEILING(F86*G86*H86,1)","v":0},null,{"$f":"IF(I86-J86<0,0,I86-J86)","v":0}]
[null,null,null,null,null,null,null,null,{"$f":"CEILING(F87*G87*H87,1)","v":0},null,{"$f":"IF(I87-J87<0,0,I87-J87)","v":0}]
["Total",null,null,null,null,null,null,null,{"$f":"SUM(I80:I81,I86:I87)","v":0},{"$f":"SUM(J80:J87)","v":0},{"$f":"SUM(K80:K87)","v":0}]
["Narrative"]
[]
[]
["H. Other Costs"]
["Description "]
["List and describe items that will be paid with grants funds."]
[null,null,null,null,null,null,null,null,"Total Cost","Non-Federal Contribution","Federal Request"]
[]
[null,null,null,null,null,null,null,null,null,null,{"$f":"IF(I97-J97<0,0,I97-J97)","v":0}]
[null,null,null,null,null,null,null,null,null,null,0]
["Total",null,null,null,null,null,null,null,{"$f":"SUM(I97:I98)","v":0},{"$f":"SUM(J97:J98)","v":0},{"$f":"SUM(K97:K98)","v":0}]
["Narrative"]
[]
[]
["I. Indirect Costs"]
["Description",null,null,"Computation"]
["Describe what the approved rate is and how it is applied.",null,null,"Compute the indirect costs for those portions of the program which allow such costs."]
[null,null,null,"Base",null,"Indirect Cost Rate",null,null,"Total Cost","Non-Federal Contribution","Federal Request"]
[]
[null,null,null,null,null,null,null,null,{"$f":"CEILING(D108*F108,1)","v":0},null,{"$f":"IF(I108-J108<0,0,I108-J108)","v":0}]
[null,null,null,null,null,null,null,null,{"$f":"CEILING(D109*F109,1)","v":0},null,{"$f":"IF(I109-J109<0,0,I109-J109)","v":0}]
["Total",null,null,null,null,null,null,null,{"$f":"SUM(I108:I109)","v":0},{"$f":"SUM(J108:J109)","v":0},{"$f":"SUM(K108:K109)","v":0}]
["Narrative"]
[]
[]
["Budget Summary"]
["A. Personnel",null,null,null,null,null,null,null,null,null,{"$f":"'Budget Summary'!J7","v":0}]
["B. Fringe Benefits",null,null,null,null,null,null,null,null,null,{"$f":"'Budget Summary'!J8","v":0}]
["C. Travel",null,null,null,null,null,null,null,null,null,{"$f":"'Budget Summary'!J9","v":0}]
["D. Equipment",null,null,null,null,null,null,null,null,null,{"$f":"'Budget Summary'!J10","v":0}]
["E. Supplies",null,null,null,null,null,null,null,null,null,{"$f":"'Budget Summary'!J11","v":0}]
["F. Construction",null,null,null,null,null,null,null,null,null,{"$f":"'Budget Summary'!J12","v":"N/A"}]
["G. Subawards (Subgrants)/ Procurement Contracts",null,null,null,null,null,null,null,null,null,{"$f":"'Budget Summary'!J13","v":0}]
["H. Other",null,null,null,null,null,null,null,null,null,{"$f":"'Budget Summary'!J14","v":0}]
["Total Direct Costs",null,null,null,null,null,null,null,null,null,{"$f":"'Budget Summary'!J16","v":0}]
["I. Indirect Costs",null,null,null,null,null,null,null,null,null,{"$f":"'Budget Summary'!J17","v":0}]
["Total Project Costs",null,null,null,null,null,null,null,null,null,{"$f":"'Budget Summary'!J19","v":0}]
["Federal Request",null,null,null,null,null,null,null,null,null,{"$f":"'Budget Summary'!J22","v":0}]
["Non-Federal Contribution",null,null,null,null,null,null,null,null,null,{"$f":"'Budget Summary'!J23","v":0}]
["Required Match Met",null,null,null,null,null,null,null,null,null,{"$f":"'Budget Summary'!J24","v":"N/A"}]

{"sheet":"PA10","index":11,"n_rows":128,"n_cols":11,"rows_kept":128,"cut":false,"hidden":true,"merged":[[6,1,6,2],[6,4,6,7],[6,9,6,10],[6,11,6,13],[7,1,7,2],[7,4,7,7],[7,9,7,10],[7,11,7,13],[0,0,0,5],[0,7,0,10],[1,0,2,0],[1,1,2,5],[4,0,4,10],[5,1,5,10],[11,8,12,8],[11,9,12,9],[11,10,12,10],[13,0,13,1],[13,5,13,6],[14,0,14,1],[14,5,14,6],[9,0,9,1],[9,2,9,10],[10,0,10,1],[10,2,10,10],[11,0,12,1],[11,2,12,2],[11,3,12,3],[11,4,12,4],[11,5,12,6],[11,7,12,7],[22,0,23,2],[22,3,23,4],[22,5,23,7],[22,8,23,8],[22,9,23,9],[22,10,23,10],[15,0,15,7],[17,0,18,10],[20,0,20,2],[20,3,20,10],[21,0,21,2],[21,3,21,10],[26,0,26,7],[28,0,29,10],[31,1,31,2],[31,3,31,4],[31,5,31,10],[32,1,32,2],[32,3,32,4],[32,5,32,10],[24,0,24,2],[24,3,24,4],[24,5,24,7],[25,0,25,1],[25,3,25,4],[25,5,25,7],[33,10,34,10],[35,1,35,2],[35,3,35,4],[36,3,36,4],[37,0,37,7],[39,0,40,10],[33,0,34,4],[33,5,34,5],[33,6,34,6],[33,7,34,7],[33,8,34,8],[33,9,34,9],[46,0,46,2],[46,3,46,4],[46,5,46,7],[47,0,47,1],[47,3,47,4],[47,5,47,7],[42,0,42,2],[42,3,42,10],[43,0,43,2],[43,3,43,10],[44,0,45,2],[44,3,45,4],[44,5,45,7],[44,8,45,8],[44,9,45,9],[44,10,45,10],[55,8,56,8],[55,9,56,9],[55,10,56,10],[48,0,48,7],[50,0,51,10],[53,0,53,2],[53,3,53,10],[54,0,54,2],[54,3,54,10],[57,0,57,2],[57,3,57,4],[57,5,57,7],[58,0,58,1],[58,3,58,4],[58,5,58,7],[55,0,56,2],[55,3,56,4],[55,5,56,7],[66,8,67,8],[66,9,67,9],[66,10,67,10],[59,0,59,7],[61,0,62,10],[64,0,64,2],[64,3,64,10],[65,0,65,2],[65,3,65,10],[68,0,68,2],[68,3,68,4],[68,5,68,7],[69,0,69,2],[69,3,69,4],[69,5,69,7],[66,0,67,2],[66,3,67,4],[66,5,67,7],[79,0,79,7],[80,0,80,7],[81,1,81,2],[81,3,81,4],[81,5,81,10],[82,1,82,2],[82,3,82,4],[82,5,82,10],[70,0,70,7],[72,0,73,10],[74,0,74,1],[75,0,75,10],[76,0,76,10],[77,0,78,7],[77,8,78,8],[77,9,78,9],[77,10,78,10],[92,0,92,10],[93,0,93,10],[94,0,95,7],[94,8,95,8],[94,9,95,9],[94,10,95,10],[83,10,84,10],[85,1,85,2],[85,3,85,4],[86,3,86,4],[87,0,87,7],[89,0,90,10],[83,0,84,4],[83,5,84,5],[83,6,84,6],[83,7,84,7],[83,8,84,8],[83,9,84,9],[104,0,104,2],[104,3,104,10],[105,0,106,2],[105,3,106,4],[105,5,106,7],[105,8,106,8],[105,9,106,9],[105,10,106,10],[96,0,96,7],[97,0,97,7],[98,0,98,7],[100,0,101,10],[103,0,103,2],[103,3,103,10],[109,0,109,7],[111,0,112,10],[113,0,113,10],[114,0,114,9],[115,0,115,9],[116,0,116,9],[107,0,107,2],[107,3,107,4],[107,5,107,7],[108,0,108,1],[108,3,108,4],[108,5,108,7],[123,0,123,9],[124,0,124,9],[125,0,125,9],[126,0,126,9],[127,0,127,9],[117,0,117,9],[118,0,118,9],[119,0,119,9],[120,0,120,9],[121,0,121,9],[122,0,122,9]]}
[{"$f":"'Budget Sheet Instructions'!B22","v":"Addressing Violent Crime in Tribal Communities"},null,null,null,null,null,null,"Purpose Area (10)"]
["Program Office",null,null,null,null,null,null,null,{"$f":"'Budget Sheet Instructions'!J22","v":"BJA"},{"$f":"'Budget Sheet Instructions'!K22","v":"16.738"}]
[]
["Note: Non-Federal match is not required for this purpose area but can be provided if desired."]
["Budget Point of Contact Information:"]
["Tribe Name: "]
["Contact Last Name:",null,null,"First:",null,null,null,null,"Middle: "]
["Contact Phone: ",null,null,"Fax:",null,null,null,null,"Email:"]
["A. Personnel"]
["Name/Position",null,"Computation"]
["List each position and name, if known. New positions may be grouped by type.",null,"Show annual salary rate & amount of time devoted to the project for each name/position."]
[null,null,"# of Positions","Salary ","Rate","Time Worked\n(# of hours, days, months, years)",null,"%","Total Cost","Non-Federal Contribution","Federal Request"]
[]
[null,null,null,null,null,null,null,null,{"$f":"CEILING(C14*D14*F14*H14,1)","v":0},null,{"$f":"IF(I14-J14<0,0,I14-J14)","v":0}]
[null,null,null,null,null,null,null,null,{"$f":"CEILING(D15*F15*H15,1)","v":0},null,{"$f":"IF(I15-J15<0,0,I15-J15)","v":0}]
["Total(s)",null,null,null,null,null,null,null,{"$f":"SUM(I14:I15)","v":0},{"$f":"SUM(J14:J15)","v":0},{"$f":"SUM(K14:K15)","v":0}]
["Narrative"]
[]
[]
["B. Fringe Benefits"]
["Type of Benefit",null,null,"Computation"]
["List each grant-support fringe benefit that is provided to the grant-funded position.",null,null,"Show the basis for computation."]
[null,null,null,"Base",null,"Rate",null,null,"Total Cost","Non-Federal Contribution","Federal Request"]
[]
[null,null,null,null,null,null,null,null,{"$f":"CEILING(D25*F25,1)","v":0},null,{"$f":"IF(I25-J25<0,0,I25-J25)","v":0}]
[null,null,null,null,null,null,null,null,{"$f":"CEILING(D26*F26,1)","v":0},null,{"$f":"IF(I26-J26<0,0,I26-J26)","v":0}]
["Total",null,null,null,null,null,null,null,{"$f":"SUM(I25:I26)","v":0},{"$f":"SUM(J25:J26)","v":0},{"$f":"SUM(K25:K26)","v":0}]
["Narrative"]
[]
[]
["C. Travel"]
["Purpose of Travel","Location",null,"Type of Expense",null,"Computation"]
["Indicate the purpose of each trip or type of trip (training, advisory group meeting)","Indicate the travel destination.",null,"Hotel, airfare, per diem",null,"Compute the cost of each type of expense X the number of people traveling."]
[null,null,null,null,null,"Cost","Duration or Distance","# of Staff","Total Cost","Non-Federal Contribution","Federal Request"]
[]
[null,null,null,null,null,null,null,null,{"$f":"CEILING(F36*G36*H36,1)","v":0},null,{"$f":"IF(I36-J36<0,0,I36-J36)","v":0}]
[null,null,null,null,null,null,null,null,{"$f":"CEILING(F37*G37*H37,1)","v":0},null,{"$f":"IF(I37-J37<0,0,I37-J37)","v":0}]
["Total",null,null,null,null,null,null,null,{"$f":"SUM(I36:I37)","v":0},{"$f":"SUM(J36:J37)","v":0},{"$f":"SUM(K36:K37)","v":0}]
["Narrative"]
[]
[]
["D. Equipment"]
["Item",null,null,"Computation"]
["List and describe each item of equipment that will be purchased",null,null,"Compute the cost (e.g., the number of each item to be purchased X the cost per item)"]
[null,null,null,"# of Items",null,"Cost",null,null,"Total Cost","Non-Federal Contribution","Federal Request"]
[]
[null,null,null,null,null,null,null,null,{"$f":"CEILING(D47*F47,1)","v":0},null,{"$f":"IF(I47-J47<0,0,I47-J47)","v":0}]
[null,null,null,null,null,null,null,null,{"$f":"CEILING(D48*F48,1)","v":0},null,{"$f":"IF(I48-J48<0,0,I48-J48)","v":0}]
["Total",null,null,null,null,null,null,null,{"$f":"SUM(I47:I48)","v":0},{"$f":"SUM(J47:J48)","v":0},{"$f":"SUM(K47:K48)","v":0}]
["Narrative"]
[]
[]
["E. Supplies"]
["Supply Items",null,null,"Computation"]
["Provide a list of the types of items to be purchased with grant funds.",null,null,"Describe the item and the compute the costs. Computation: The number of each item to be purchased X the cost per item."]
[null,null,null,"# of Items",null,"Cost",null,null,"Total Cost","Non-Federal Contribution","Federal Request"]
[]
[null,null,null,null,null,null,null,null,{"$f":"CEILING(D58*F58,1)","v":0},null,{"$f":"IF(I58-J58<0,0,I58-J58)","v":0}]
[null,null,null,null,null,null,null,null,{"$f":"CEILING(D59*F59,1)","v":0},null,{"$f":"IF(I59-J59<0,0,I59-J59)","v":0}]
["Total",null,null,null,null,null,null,null,{"$f":"SUM(I58:I59)","v":0},{"$f":"SUM(J58:J59)","v":0},{"$f":"SUM(K58:K59)","v":0}]
["Narrative"]
[]
[]
["F. Construction"]
["List of Construction Activities",null,null,"Computation"]
["List and describe each item that is part of construction.",null,null,"Compute the costs (e.g., the number of each item to be purchased X the cost per item)"]
[null,null,null,"# of Items",null,"Cost",null,null,"Total Cost","Non-Federal Contribution","Federal Request"]
[]
[null,null,null,null,null,null,null,null,{"$f":"CEILING(D69*F69,1)","v":0},null,{"$f":"IF(I69-J69<0,0,I69-J69)","v":0}]
["N/A",null,null,null,null,null,null,null,{"$f":"CEILING(D70*F70,1)","v":0},null,{"$f":"IF(I70-J70<0,0,I70-J70)","v":0}]
["Total",null,null,null,null,null,null,null,{"$f":"SUM(I69:I70)","v":0},{"$f":"SUM(J69:J70)","v":0},{"$f":"SUM(K69:K70)","v":0}]
["Narrative"]
[]
[]
["G. Subawards (Subgrants)/Procurement Contracts"]
["Item"]
["Procurement contracts:  Provide a description of the products or services to be procured by contract and an estimate of the costs.  Applicants are encouraged to promote free and open competition in awarding contracts.  A separate justification must be provided for sole source procurements in excess of the Simplified Acquisition Threshold (currently $150,000). \n\nSubawards (Subgrants):  Provide a description of the activities to be carried out by subrecipients.  Include “(subaward)” label for each “Subawards (Subgrants)” entry.\n"]
[null,null,null,null,null,null,null,null,"Total Cost","Non-Federal Contribution","Federal Request"]
[]
[null,null,null,null,null,null,null,null,null,null,{"$f":"IF(I80-J80<0,0,I80-J80)","v":0}]
[null,null,null,null,null,null,null,null,null,null,{"$f":"IF(I81-J81<0,0,I81-J81)","v":0}]
["Purpose of Travel","Location",null,"Type of Expense",null,"Computation"]
["Indicate the purpose of each trip or type of trip (training, advisory group meeting)","Indicate the travel destination.",null,"Hotel, airfare, per diem",null,"Compute the cost of each type of expense X the number of people traveling."]
[null,null,null,null,null,"Cost","Duration or Distance","# of Staff","Total Cost","Non-Federal Contribution","Federal Request"]
[]
[null,null,null,null,null,null,null,null,{"$f":"CEILING(F86*G86*H86,1)","v":0},null,{"$f":"IF(I86-J86<0,0,I86-J86)","v":0}]
[null,null,null,null,null,null,null,null,{"$f":"CEILING(F87*G87*H87,1)","v":0},null,{"$f":"IF(I87-J87<0,0,I87-J87)","v":0}]
["Total",null,null,null,null,null,null,null,{"$f":"SUM(I80:I81,I86:I87)","v":0},{"$f":"SUM(J80:J87)","v":0},{"$f":"SUM(K80:K87)","v":0}]
["Narrative"]
[]
[]
["H. Other Costs"]
["Description "]
["List and describe items that will be paid with grants funds."]
[null,null,null,null,null,null,null,null,"Total Cost","Non-Federal Contribution","Federal Request"]
[]
[null,null,null,null,null,null,null,null,null,null,{"$f":"IF(I97-J97<0,0,I97-J97)","v":0}]
[null,null,null,null,null,null,null,null,null,null,{"$f":"IF(I98-J98<0,0,I98-J98)","v":0}]
["Total",null,null,null,null,null,null,null,{"$f":"SUM(I97:I98)","v":0},{"$f":"SUM(J97:J98)","v":0},{"$f":"SUM(K97:K98)","v":0}]
["Narrative"]
[]
[]
["I. Indirect Costs"]
["Description",null,null,"Computation"]
["Describe what the approved rate is and how it is applied.",null,null,"Compute the indirect costs for those portions of the program which allow such costs."]
[null,null,null,"Base",null,"Indirect Cost Rate",null,null,"Total Cost","Non-Federal Contribution","Federal Request"]
[]
[null,null,null,null,null,null,null,null,{"$f":"CEILING(D108*F108,1)","v":0},null,{"$f":"IF(I108-J108<0,0,I108-J108)","v":0}]
[null,null,null,null,null,null,null,null,{"$f":"CEILING(D109*F109,1)","v":0},null,{"$f":"IF(I109-J109<0,0,I109-J109)","v":0}]
["Total",null,null,null,null,null,null,null,{"$f":"SUM(I108:I109)","v":0},{"$f":"SUM(J108:J109)","v":0},{"$f":"SUM(K108:K109)","v":0}]
["Narrative"]
[]
[]
["Budget Summary"]
["A. Personnel",null,null,null,null,null,null,null,null,null,{"$f":"'Budget Summary'!K7","v":0}]
["B. Fringe Benefits",null,null,null,null,null,null,null,null,null,{"$f":"'Budget Summary'!K8","v":0}]
["C. Travel",null,null,null,null,null,null,null,null,null,{"$f":"'Budget Summary'!K9","v":0}]
["D. Equipment",null,null,null,null,null,null,null,null,null,{"$f":"'Budget Summary'!K10","v":0}]
["E. Supplies",null,null,null,null,null,null,null,null,null,{"$f":"'Budget Summary'!K11","v":0}]
["F. Construction",null,null,null,null,null,null,null,null,null,{"$f":"'Budget Summary'!K12","v":"N/A"}]
["G. Subawards (Subgrants)/ Procurement Contracts",null,null,null,null,null,null,null,null,null,{"$f":"'Budget Summary'!K13","v":0}]
["H. Other",null,null,null,null,null,null,null,null,null,{"$f":"'Budget Summary'!K14","v":0}]
["Total Direct Costs",null,null,null,null,null,null,null,null,null,{"$f":"'Budget Summary'!K16","v":0}]
["I. Indirect Costs",null,null,null,null,null,null,null,null,null,{"$f":"'Budget Summary'!K17","v":0}]
["Total Project Costs",null,null,null,null,null,null,null,null,null,{"$f":"'Budget Summary'!K19","v":0}]
["Federal Request",null,null,null,null,null,null,null,null,null,{"$f":"'Budget Summary'!K22","v":0}]
["Non-Federal Contribution",null,null,null,null,null,null,null,null,null,{"$f":"'Budget Summary'!K23","v":0}]
["Required Match Met",null,null,null,null,null,null,null,null,null,{"$f":"'Budget Summary'!K24","v":"N/A"}]

{"sheet":"Budget Summary","index":12,"n_rows":24,"n_cols":12,"rows_kept":24,"cut":false,"hidden":false,"merged":[[2,0,5,0],[0,0,0,11],[1,0,1,11]]}
["Budget Summary"]
["Note: Any errors detected on this page should be fixed on the Purpose Area specific tab."]
["Budget Category","PA(1)","PA (2)","PA (3)","PA (4)","PA (5)","PA (6)","PA (7)","PA(8)","PA(9)","PA(10)"]
[null,{"$f":"'PA1'!P2","v":"COPS"},"BJA",{"$f":"'PA3'!I2","v":"BJA"},{"$f":"'PA4'!I2","v":"BJA"},{"$f":"'PA5'!I2","v":"OVW"},{"$f":"'PA6'!I2","v":"OVC"},{"$f":"'PA7'!I2","v":"OVC"},{"$f":"'PA8'!I2","v":"OJJDP"},{"$f":"'PA9'!I2","v":"OJJDP"},{"$f":"'PA10'!I2","v":"BJA"}]
[null,{"$f":"'PA1'!Q2","v":"16.710"},{"$f":"'PA2'!J2","v":"16.608"},{"$f":"'PA3'!J2","v":"16.608"},{"$f":"'PA4'!J2","v":"16.596"},{"$f":"'PA5'!J2","v":"16.587"},{"$f":"'PA6'!J2","v":"16.853"},{"$f":"'PA7'!J2","v":"16.841"},{"$f":"'PA8'!J2","v":"16.585"},{"$f":"'PA9'!J2","v":"16.731"},{"$f":"'PA10'!J2","v":"16.738"}]
[null,{"$f":"'PA1'!A1","v":"Public Safety and Community Policing "},{"$f":"'PA2'!A1","v":"Comprehensive Tribal Justice Systems Strategic Planning"},{"$f":"'PA3'!A1","v":"Justice Systems and Alcohol and Substance Abuse"},{"$f":"'PA4'!A1","v":"Tribal Justice System Infrastructure Program"},{"$f":"'PA5'!A1","v":"Office on Violence Against Women Tribal Governments Program"},{"$f":"'PA6'!A1","v":"Children’s Justice Act Partnerships for Indian Communities"},{"$f":"'PA7'!A1","v":"Tribal Victim Services Program"},{"$f":"'PA8'!A1","v":"Tribal Juvenile Healing To Wellness Courts"},{"$f":"'PA9'!A1","v":"Tribal Youth Program"},{"$f":"'PA10'!A1","v":"Addressing Violent Crime in Tribal Communities"},"Total(s)"]
["A. Personnel",{"$f":"'PA1'!R38+'PA1'!R41","v":0},{"$f":"'PA2'!I16","v":0},{"$f":"'PA3'!I16","v":0},{"$f":"'PA4'!I16","v":0},{"$f":"'PA5'!I16","v":0},{"$f":"'PA6'!I16","v":0},{"$f":"'PA7'!I16","v":0},{"$f":"'PA8'!I16","v":0},{"$f":"'PA9'!I16","v":0},{"$f":"'PA10'!I16","v":0},{"$f":"SUM(B7:J7)","v":0}]
["B. Fringe Benefits",{"$f":"'PA1'!R39+'PA1'!R42","v":0},{"$f":"'PA2'!I27","v":0},{"$f":"'PA3'!I27","v":0},{"$f":"'PA4'!I27","v":0},{"$f":"'PA5'!I27","v":0},{"$f":"'PA6'!I27","v":0},{"$f":"'PA7'!I27","v":0},{"$f":"'PA8'!I27","v":0},{"$f":"'PA9'!I27","v":0},{"$f":"'PA10'!I27","v":0},0]
["C. Travel",{"$f":"TravelTotal","v":0},{"$f":"'PA2'!I38","v":0},{"$f":"'PA3'!I38","v":0},{"$f":"'PA4'!I38","v":0},{"$f":"'PA5'!I38","v":0},{"$f":"'PA6'!I38","v":0},{"$f":"'PA7'!I38","v":0},{"$f":"'PA8'!I38","v":0},{"$f":"'PA9'!I38","v":0},{"$f":"'PA10'!I38","v":0},0]
["D. Equipment",{"$f":"EquipmentTotal","v":0},{"$f":"'PA2'!I49","v":0},{"$f":"'PA3'!I49","v":0},{"$f":"'PA4'!I49","v":0},{"$f":"'PA5'!I49","v":0},{"$f":"'PA6'!I49","v":0},{"$f":"'PA7'!I49","v":0},{"$f":"'PA8'!I49","v":0},{"$f":"'PA9'!I49","v":0},{"$f":"'PA10'!I49","v":0},0]
["E. Supplies",{"$f":"SuppliesTotal","v":0},{"$f":"'PA2'!I60","v":0},{"$f":"'PA3'!I60","v":0},{"$f":"'PA4'!I60","v":0},{"$f":"'PA5'!I60","v":0},{"$f":"'PA6'!I60","v":0},{"$f":"'PA7'!I60","v":0},{"$f":"'PA8'!I60","v":0},{"$f":"'PA9'!I60","v":0},{"$f":"'PA10'!I60","v":0},0]
["F. Construction","N/A","N/A","N/A",{"$f":"'PA4'!I71","v":0},"N/A","N/A","N/A","N/A","N/A","N/A",0]
["G. Subawards (Subgrants)/ Procurement Contracts",{"$f":"ContractsItemTotal+ConsultantFeesTotal+ContractsTravelTotal+CunsultantExpensesTotal","v":0},{"$f":"'PA2'!I88","v":0},{"$f":"'PA3'!I88","v":0},{"$f":"'PA4'!I88","v":0},{"$f":"'PA5'!I88","v":0},{"$f":"'PA6'!I88","v":0},{"$f":"'PA7'!I88","v":0},{"$f":"'PA8'!I89","v":0},{"$f":"'PA9'!I88","v":0},{"$f":"'PA10'!I88","v":0},0]
["H. Other",{"$f":"OtherTotal","v":0},{"$f":"'PA2'!I99","v":0},{"$f":"'PA3'!I99","v":0},{"$f":"'PA4'!I99","v":0},{"$f":"'PA5'!I99","v":0},{"$f":"'PA6'!I99","v":0},{"$f":"'PA7'!I99","v":0},{"$f":"'PA8'!I100","v":0},{"$f":"'PA9'!I99","v":0},{"$f":"'PA10'!I99","v":0},0]
[]
["Total Direct Costs",{"$f":"SUM(B7:B14)","v":0},0,0,0,0,0,0,{"$f":"SUM(I7:I14)","v":0},{"$f":"SUM(J7:J14)","v":0},{"$f":"SUM(K7:K14)","v":0},{"$f":"SUM(B16:K16)","v":0}]
["I. Indirect Costs",{"$f":"IndirectTotal","v":0},{"$f":"'PA2'!I110","v":0},{"$f":"'PA3'!I110","v":0},{"$f":"'PA4'!I110","v":0},{"$f":"'PA5'!I110","v":0},{"$f":"'PA6'!I110","v":0},{"$f":"'PA7'!I110","v":0},{"$f":"'PA8'!I111","v":0},{"$f":"'PA9'!I110","v":0},{"$f":"'PA10'!I110","v":0},{"$f":"SUM(B17:J17)","v":0}]
[]
["Total Project Costs",{"$f":"SUM(B16,B17)","v":0},0,0,0,0,0,0,{"$f":"SUM(I16,I17)","v":0},{"$f":"SUM(J16,J17)","v":0},{"$f":"SUM(K16,K17)","v":0},{"$f":"SUM(B19:K19)","v":0}]
[]
[null,"Up to 100% of total Project","Up to 100% of total Project","Up to 100% of total Project","Up to 100% of total Project","Up to 100% of total Project","Up to 100% of total Project","Up to 100% of total Project","Up to 100% of total Project","Up to 100% of total Project","Up to 100% of total Project"]
["Federal Request",{"$f":"'PA1'!H180","v":0},{"$f":"SUM('PA2'!$K$16,'PA2'!$K$27,'PA2'!$K$38,'PA2'!$K$49,'PA2'!$K$60,'PA2'!$K$71,'PA2'!$K$88,'PA2'!$K$99,'PA2'!$K$110)","v":0},{"$f":"SUM('PA3'!$K$16,'PA3'!$K$27,'PA3'!$K$38,'PA3'!$K$49,'PA3'!$K$60,'PA3'!$K$71,'PA3'!$K$88,'PA3'!$K$99,'PA3'!$K$110)","v":0},{"$f":"SUM('PA4'!$K$16,'PA4'!$K$27,'PA4'!$K$38,'PA4'!$K$49,'PA4'!$K$60,'PA4'!$K$71,'PA4'!$K$88,'PA4'!$K$99,'PA4'!$K$110)","v":0},{"$f":"SUM('PA5'!$K$16,'PA5'!$K$27,'PA5'!$K$38,'PA5'!$K$49,'PA5'!$K$60,'PA5'!$K$71,'PA5'!$K$88,'PA5'!$K$99,'PA5'!$K$110)","v":0},{"$f":"SUM('PA6'!$K$16,'PA6'!$K$27,'PA6'!$K$38,'PA6'!$K$49,'PA6'!$K$60,'PA6'!$K$71,'PA6'!$K$88,'PA6'!$K$99,'PA6'!$K$110)","v":0},{"$f":"SUM('PA7'!$K$16,'PA7'!$K$27,'PA7'!$K$38,'PA7'!$K$49,'PA7'!$K$60,'PA7'!$K$71,'PA7'!$K$88,'PA7'!$K$99,'PA7'!$K$110)","v":0},{"$f":"SUM('PA8'!$K$16,'PA8'!$K$27,'PA8'!$K$38,'PA8'!$K$49,'PA8'!$K$60,'PA8'!$K$72,'PA8'!$K$89,'PA8'!$K$100,'PA8'!$K$111)","v":0},{"$f":"SUM('PA9'!$K$16,'PA9'!$K$27,'PA9'!$K$38,'PA9'!$K$49,'PA9'!$K$60,'PA9'!$K$71,'PA9'!$K$88,'PA9'!$K$99,'PA9'!$K$110)","v":0},{"$f":"SUM('PA10'!$K$16,'PA10'!$K$27,'PA10'!$K$38,'PA10'!$K$49,'PA10'!$K$60,'PA10'!$K$71,'PA10'!$K$88,'PA10'!$K$99,'PA10'!$K$110)","v":0},{"$f":"SUM(B22:J22)","v":0}]
["Non-Federal Contribution",{"$f":"'PA1'!D180","v":0},{"$f":"SUM('PA2'!$J$16,'PA2'!$J$27,'PA2'!$J$38,'PA2'!$J$49,'PA2'!$J$60,'PA2'!$J$71,'PA2'!$J$88,'PA2'!$J$99,'PA2'!$J$110)","v":0},{"$f":"SUM('PA3'!$J$16,'PA3'!$J$27,'PA3'!$J$38,'PA3'!$J$49,'PA3'!$J$60,'PA3'!$J$71,'PA3'!$J$88,'PA3'!$J$99,'PA3'!$J$110)","v":0},{"$f":"SUM('PA4'!$J$16,'PA4'!$J$27,'PA4'!$J$38,'PA4'!$J$49,'PA4'!$J$60,'PA4'!$J$71,'PA4'!$J$88,'PA4'!$J$99,'PA4'!$J$110)","v":0},{"$f":"SUM('PA5'!$J$16,'PA5'!$J$27,'PA5'!$J$38,'PA5'!$J$49,'PA5'!$J$60,'PA5'!$J$71,'PA5'!$J$88,'PA5'!$J$99,'PA5'!$J$110)","v":0},{"$f":"SUM('PA6'!$J$16,'PA6'!$J$27,'PA6'!$J$38,'PA6'!$J$49,'PA6'!$J$60,'PA6'!$J$71,'PA6'!$J$88,'PA6'!$J$99,'PA6'!$J$110)","v":0},{"$f":"SUM('PA7'!$J$16,'PA7'!$J$27,'PA7'!$J$38,'PA7'!$J$49,'PA7'!$J$60,'PA7'!$J$71,'PA7'!$J$88,'PA7'!$J$99,'PA7'!$J$110)","v":0},{"$f":"SUM('PA8'!$J$16,'PA8'!$J$27,'PA8'!$J$38,'PA8'!$J$49,'PA8'!$J$60,'PA8'!$J$72,'PA8'!$J$89,'PA8'!$J$100,'PA8'!$J$111)","v":0},{"$f":"SUM('PA9'!$J$16,'PA9'!$J$27,'PA9'!$J$38,'PA9'!$J$49,'PA9'!$J$60,'PA9'!$J$71,'PA9'!$J$88,'PA9'!$J$99,'PA9'!$J$110)","v":0},{"$f":"SUM('PA10'!$J$16,'PA10'!$J$27,'PA10'!$J$38,'PA10'!$J$49,'PA10'!$J$60,'PA10'!$J$71,'PA10'!$J$88,'PA10'!$J$99,'PA10'!$J$110)","v":0},{"$f":"SUM(B23:J23)","v":0}]
["Required Match Met","N/A","N/A","N/A","N/A","N/A","N/A","N/A","N/A","N/A","N/A","N/A"]

{"sheet":"Reference Data","index":13,"n_rows":48,"n_cols":3,"rows_kept":48,"cut":false,"hidden":true,"merged":[]}
[{"$f":"19760","v":19760},{"$f":"A1*0.9","v":17784},{"$f":"A1*0.1","v":1976}]
[]
[]
[]
[]
["PA1 Equipment Dropdown Options"]
["Vehicles"]
["Vehicles w/ accessory package"]
["Radios"]
["Computers"]
["Computer Aided Dispatch"]
["Records Management System"]
["Communication System"]
["Basic Issue Firearm"]
["Basic Issue Equipment"]
["Bullet Proof Vests"]
[]
["PA1 Supplies Dropdown Options"]
["Basic Issue Uniforms"]
[]
["PA1 Personnel Sworn Options"]
["Entry Level Sworn Officer"]
["Village Public Safety Officer (AK Only)"]
["Entry Level Sworn Ranger"]
["Entry Level Sworn Conservation and Wildlife Officer"]
["Village Police Officer (AK) "]
["Tribal Police Officer (AK) "]
[]
["PA1 Personnel Civilian Options"]
["Civilian Methamphetamine Coordinator"]
["Civilian Opioids Coordinator "]
[]
["Demographics Yes No Options"]
["Yes"]
["No"]
[]
["PA1 Sworn Officer Category Options"]
["New, additional officer positions"]
["Rehire officers laid off (from any jurisdiction) as a result of tribal, state, or local budget reductions"]
["Rehire officers scheduled to be laid off (at the time of the application) on a specific future date as a result of tribal, state, or local budget reductions"]
[]
["PA1 Civilian Officer Hiring Category Options"]
["N/A"]
[]
["PA1 Sick/Vaction Leave Options"]
["Choose One"]
["Yes"]
["No"]